﻿Directorate,Service,Division,Responsible Unit,Expense Type,Payment Date,Trans No,Net Amount,Supplier Name,
Children & Culture,Education Services,Secondary Schools,PFI Hldg Account-Grouped Schoo,Repairs and Maintenance - Responsive - Buildings,05/05/2021,5526779,"1,488.37",Tower Hamlets Schools LTD,
Children & Culture,Cultural and Related Services,Open Spaces,Mile End Park,Repairs and Maintenance - Responsive - General,05/05/2021,5528350,"3,575.00",JC Coster (Metalworks) Ltd,
Children & Culture,Cultural and Related Services,Open Spaces,Parks & Open Spaces Man&Admin,Repairs and Maintenance - Responsive - Buildings,05/05/2021,5528352,"1,630.00",JC Coster (Metalworks) Ltd,
Children & Culture,Children's Social Care,Support Service and Management Costs,Schools Catering,Kitchen Supplies - Food and Beverages,05/05/2021,5528440,523.77,Thomas Ridley & Son Ltd,
Children & Culture,Children's Social Care,Children's and Young People's Safety,Early Help Central Team,Services - Professional Fees - Translation Fees,05/05/2021,5528603,"1,223.50",Oncall Interpreters LTD,
Children & Culture,Children's Social Care,Children Looked After,S23-Resi-P&V/OLA-Child Home,Childrens Act Section 23 - Placement Fee,05/05/2021,5528609,"12,400.00",Horizon Residential Homes LTD,
Children & Culture,Children's Social Care,Support Service and Management Costs,Schools Catering,Kitchen Supplies - Food and Beverages,05/05/2021,5528640,595.50,Thomas Ridley & Son Ltd,
Children & Culture,Education Services,Early Years,Mowlem CC,Services - Professional Fees - Translation Fees,05/05/2021,5528798,397.50,Oncall Interpreters LTD,
Children & Culture,Children's Social Care,Children's and Young People's Safety,Child Protection Mgt & Admin,Services - Professional Fees - Translation Fees,05/05/2021,5528869,796.50,Oncall Interpreters LTD,
Children & Culture,Children's Social Care,Youth Justice,Youth Justice Team,Childrens Act Section 17 - Interpreting/Translation,05/05/2021,5528871,383.50,Oncall Interpreters LTD,
Children & Culture,Children's Social Care,Service Strategy,FSP Sect 17 - Team 5,Services - Professional Fees - Translation Fees,05/05/2021,5528873,"3,358.50",Oncall Interpreters LTD,
Children & Culture,Children's Social Care,Service Strategy,"FSP Sect 17 - Team 7		",Services - Professional Fees - Translation Fees,05/05/2021,5528874,"2,399.25",Oncall Interpreters LTD,
Children & Culture,Children's Social Care,Service Strategy,FSP Sect 17 - Team 9,Childrens Act Section 17 - Interpreting/Translation,05/05/2021,5528875,"1,562.95",Oncall Interpreters LTD,
Children & Culture,Children's Social Care,Children Looked After,S23-Other-Semi-Ind. Unit,Services - Professional Fees - Translation Fees,05/05/2021,5528884,"1,762.80",Oncall Interpreters LTD,
Children & Culture,Children's Social Care,Children Looked After,LCS/Allowances-Accom,Leaving Care Financial Assistance - Supp Accom/Hous Rents,05/05/2021,5529090,"1,800.00",Maia Care Services,
Children & Culture,Children's Social Care,Children Looked After,S23 Fam Pl P&V-F/Care,Childrens Act Section 23 - Placement Fee,05/05/2021,5529128,"7,085.67",Real Life,
Children & Culture,Children's Social Care,Children Looked After,LCS/Allowances-Accom,Leaving Care Financial Assistance - Supp Accom/Hous Rents,05/05/2021,5529131,"4,317.68",Real Life,
Children & Culture,Children's Social Care,Children Looked After,Virtual School PPG,Agency Staff - Associations,05/05/2021,5530224,509.94,Academics ltd,
Children & Culture,Children's Social Care,Children Looked After,S23-Other-Semi-Ind. Unit,Childrens Act Section 23 - Placement Fee,05/05/2021,5530700,"1,647.40",Atlantic Lodge,
Children & Culture,Children's Social Care,Children Looked After,S23-Other-Semi-Ind. Unit,Childrens Act Section 23 - Placement Fee,05/05/2021,5530701,"1,823.91",Atlantic Lodge,
Children & Culture,Children's Social Care,Children Looked After,S23-Other-Mother & Baby Unit,Childrens Act Section 23 - Placement Fee,05/05/2021,5530705,"10,407.01",Real Life,
Children & Culture,Children's Social Care,Children Looked After,S23-Other-Semi-Ind. Unit,Childrens Act Section 23 - Placement Fee,05/05/2021,5530706,"4,450.67",Real Life,
Children & Culture,Education Services,Other Strategic Functions,Music Trading Account,Third Party Payments - Voluntary Associations,05/05/2021,5530815,"3,000.00",Rich MIx CUltural Foundation,
Children & Culture,Education Services,Other Strategic Functions,Music Trading Account,Third Party Payments - Voluntary Associations,05/05/2021,5530816,"3,000.00",Rich MIx CUltural Foundation,
Children & Culture,Children's Social Care,Commissioning and Social Work,Advice and Assessment Section 17,Childrens Act Section 17 - Interpreting/Translation,05/05/2021,5530972,"4,636.25",Oncall Interpreters LTD,
Children & Culture,Cultural and Related Services,Open Spaces,Stepney Green,Repairs and Maintenance - Responsive - Non Store Items,05/05/2021,5531017,620.00,Agilisys Professional Services,
Children & Culture,Children's Social Care,Other Children's and Family Services,Permanancy and Adoption Support Team 1,Services - Professional Fees - Translation Fees,05/05/2021,5532602,419.00,Oncall Interpreters LTD,
Children & Culture,Education Services,Secondary Schools,PFI Hldg Account-Mulberry Scho,Payments to Private Contractors - Other Contractors,05/05/2021,5532647,"198,215.95",D4E Mulberry LTD,
Children & Culture,Children's Social Care,Commissioning and Social Work,Advice and Assessment Section 17,Childrens Act Section 17 - Other Placements Bed & Breakfast,05/05/2021,5532665,880.00,Finefair Management,
Children & Culture,Children's Social Care,Commissioning and Social Work,Advice and Assessment Section 17,Childrens Act Section 17 - Other Placements Bed & Breakfast,05/05/2021,5532667,"1,100.00",Finefair Management,
Children & Culture,Children's Social Care,Commissioning and Social Work,Advice and Assessment Section 17,Childrens Act Section 17 - Other Placements Bed & Breakfast,05/05/2021,5532801,555.00,PARK HOTEL,
Children & Culture,Children's Social Care,Service Strategy,"FSP Sect 17 - Team 6		",Services - Professional Fees - Translation Fees,05/05/2021,5534989,"2,175.00",Oncall Interpreters LTD,
Children & Culture,Children's Social Care,Family Support Services,IPST S17 NRPF,Services - Professional Fees - Translation Fees,05/05/2021,5534990,271.00,Oncall Interpreters LTD,
Children & Culture,Children's Social Care,Children Looked After,S23 Fam Pl P&V-F/Care,Childrens Act Section 23 - All Contact Expenses,05/05/2021,5535040,366.00,HOPE Superjobs Ltd,
Children & Culture,Children's Social Care,Children Looked After,S23 Fam Pl P&V-F/Care,Childrens Act Section 23 - All Contact Expenses,05/05/2021,5535041,528.00,HOPE Superjobs Ltd,
Children & Culture,Children's Social Care,Children Looked After,S23 Fam Pl P&V-F/Care,Childrens Act Section 23 - All Contact Expenses,05/05/2021,5535044,514.00,HOPE Superjobs Ltd,
Children & Culture,Children's Social Care,Children Looked After,S23 Fam Pl In-Hse-S/Term F/C,Childrens Act Section 23 - All Contact Expenses,05/05/2021,5535045,413.75,HOPE Superjobs Ltd,
Children & Culture,Education Services,Other Strategic Functions,High Needs Out Of Borough Academies & Free Schools,Third Party Payments - SEN Placement Funding,05/05/2021,5535134,"5,902.48",Chigwell School,
Children & Culture,Children's Social Care,Children Looked After,S23-Other-Semi-Ind. Unit,Childrens Act Section 23 - Placement Fee,05/05/2021,5535136,"3,260.00",Inclusive Care Support Ltd,
Children & Culture,Children's Social Care,Children Looked After,Children Looked After Team 1,Agency Staff,05/05/2021,5535198,275.80,Diverse Rec Limited t/a Social Personnel,
Children & Culture,Children's Social Care,Family Support Services,CNN Pool: Joint Family Support,Social Care - Homecare,05/05/2021,5535378,"58,098.78",APASENTH,
Children & Culture,Children's Social Care,Family Support Services,IPST S17 NRPF,Childrens Act Section 17 - Other Placements Bed & Breakfast,05/05/2021,5535453,"2,024.40",HAMLETTS LTD,
Children & Culture,Children's Social Care,Family Support Services,IPST S17 NRPF,Childrens Act Section 17 - Other Placements Bed & Breakfast,05/05/2021,5535454,"1,671.30",HAMLETTS LTD,
Children & Culture,Children's Social Care,Family Support Services,IPST S17 NRPF,Childrens Act Section 17 - Other Placements Bed & Breakfast,05/05/2021,5535455,"2,076.90",HAMLETTS LTD,
Children & Culture,Cultural and Related Services,Open Spaces,Stepney Green,Contract Cleaning,05/05/2021,5535484,360.98,Wetton Cleaning Services LTD,
Children & Culture,Cultural and Related Services,Open Spaces,Victoria Park,Contract Cleaning,05/05/2021,5535488,"1,644.16",Wetton Cleaning Services LTD,
Children & Culture,Children's Social Care,Children Looked After,LCS/Allowances-Accom,Leaving Care Financial Assistance - Supp Accom/Hous Rents,05/05/2021,5535746,385.71,Explore Independence Ltd,
Children & Culture,Education Services,Early Years,Children Centre Central Team,Computing - Purchase of Software,05/05/2021,5535909,"3,598.20",Groupcall Ltd,
Children & Culture,Children's Social Care,Children Looked After,Leaving Care-UASC,Leaving Care Financial Assistance - Reg Plan Maint L-Allow,05/05/2021,5535988,538.00,SOCIAL SERVICES LEAVING CARE SERVICE,
Children & Culture,Children's Social Care,Children Looked After,S23 Fam Pl P&V-F/Care,Childrens Act Section 23 - Non-Contact Taxi Costs,05/05/2021,5535992,304.00,AnR Cars Ltd,
Children & Culture,Education Services,Other Strategic Functions,Auxilary Aids,Subscriptions - Associations,07/05/2021,5506005,357.50,RNIB,
Children & Culture,Education Services,Other Strategic Functions,Auxilary Aids,Subscriptions - Associations,07/05/2021,5506005,377.55,RNIB,
Children & Culture,Education Services,Other Strategic Functions,SLS Trading Account,Agency Staff - Agency staff (general),07/05/2021,5525219,"1,400.00",Academics ltd,
Children & Culture,Education Services,Other Strategic Functions,SLS Trading Account,Agency Staff - Agency staff (general),07/05/2021,5527310,"1,400.00",Academics ltd,
Children & Culture,Education Services,Other Strategic Functions,Appeals Panel,Services - Professional Fees - Consultants Fees,07/05/2021,5528907,"24,500.00",Educationappeals Dotcom LTD,
Children & Culture,Education Services,Other Strategic Functions,High Needs Academies & Free Schs,Third Party Payments - SEN Top Up Funding,07/05/2021,5529042,"15,110.80",Waltham Forest College,
Children & Culture,No Service Specified,No Division Specified,Capital-Minor Works (SC),Building Works - Main Works,07/05/2021,5529065,"1,195.00",Environtec Ltd,
Children & Culture,Children's Social Care,Support Service and Management Costs,Sch. Meals A/c - Bigland Green,Kitchen Supplies - Catering Equipment,07/05/2021,5529233,438.00,W V Howe LTD,
Children & Culture,Children's Social Care,Support Service and Management Costs,Schools Catering,Kitchen Supplies - Food and Beverages,07/05/2021,5530106,256.80,William White Meats Ltd,
Children & Culture,Education Services,Other Strategic Functions,Music Trading Account,Third Party Payments - Other Agencies,07/05/2021,5530229,540.00,Redacted Section 40 FOI Act,
Children & Culture,Children's Social Care,Children Looked After,S23 Fam Pl P&V-F/Care,Childrens Act Section 23 - Placement Fee,07/05/2021,5530667,"3,535.80",Select Fostercare Services Ltd,
Children & Culture,Children's Social Care,Children Looked After,S23 Fam Pl P&V-F/Care,Childrens Act Section 23 - Placement Fee,07/05/2021,5530668,"3,535.80",Select Fostercare Services Ltd,
Children & Culture,Education Services,Early Years,3&4 Year old PVI�s,Third Party Payments - Voluntary Associations,07/05/2021,5533551,"92,847.30",Date Palm Nurseries Ltd,
Children & Culture,Education Services,Early Years,3&4 Year old PVI�s,Third Party Payments - Voluntary Associations,07/05/2021,5533589,"70,508.10",Riverhouse Montessori Nursery,
Children & Culture,Children's Social Care,Family Support Services,CNN Pool: Joint Family Support,Social Care - Homecare,07/05/2021,5535180,-396.75,Carebridge Staffing Ltd,
Children & Culture,Children's Social Care,Family Support Services,CNN Pool: Joint Family Support,Social Care - Homecare,07/05/2021,5535181,-396.75,Carebridge Staffing Ltd,
Children & Culture,Children's Social Care,Family Support Services,CNN Pool: Joint Family Support,Social Care - Homecare,07/05/2021,5535183,406.67,Carebridge Staffing Ltd,
Children & Culture,Children's Social Care,Family Support Services,CNN Pool: Joint Family Support,Social Care - Homecare,07/05/2021,5535184,406.67,Carebridge Staffing Ltd,
Children & Culture,Children's Social Care,Family Support Services,CNN Pool: Joint Family Support,Social Care - Homecare,07/05/2021,5535186,495.01,Carebridge Staffing Ltd,
Children & Culture,Children's Social Care,Children Looked After,LCS/Allowances-Accom,Leaving Care Financial Assistance - Supp Accom/Hous Rents,07/05/2021,5535208,"1,000.00",Maia Care Services,
Children & Culture,Children's Social Care,Children Looked After,LCS/Allowances-Accom,Leaving Care Financial Assistance - Supported Living,07/05/2021,5535208,"2,600.00",Maia Care Services,
Children & Culture,Children's Social Care,Children Looked After,Leaving Care-UASC,Leaving Care Financial Assistance - Reg Plan Maint L-Allow,07/05/2021,5535441,316.00,Maia Care Services,
Children & Culture,Children's Social Care,Children Looked After,Leaving Care-UASC,Leaving Care Financial Assistance - Supp Accom/Hous Rents,07/05/2021,5535441,"1,000.00",Maia Care Services,
Children & Culture,Children's Social Care,Children Looked After,Leaving Care-UASC,Leaving Care Financial Assistance - Supported Living,07/05/2021,5535441,"2,600.00",Maia Care Services,
Children & Culture,Children's Social Care,Family Support Services,IPST S17 NRPF,Childrens Act Section 17 - Other Placements Bed & Breakfast,07/05/2021,5535719,"1,200.00",Apolonia Property Services (Exodus Housing),
Children & Culture,Children's Social Care,Family Support Services,IPST S17 NRPF,Childrens Act Section 17 - Other Placements Bed & Breakfast,07/05/2021,5535720,"1,140.00",Apolonia Property Services (Exodus Housing),
Children & Culture,Children's Social Care,Family Support Services,IPST S17 NRPF,Childrens Act Section 17 - Other Placements Bed & Breakfast,07/05/2021,5535721,960.00,Apolonia Property Services (Exodus Housing),
Children & Culture,Children's Social Care,Family Support Services,IPST S17 NRPF,Childrens Act Section 17 - Other Placements Bed & Breakfast,07/05/2021,5535722,384.00,Apolonia Property Services (Exodus Housing),
Children & Culture,Children's Social Care,Family Support Services,IPST S17 NRPF,Childrens Act Section 17 - Other Placements Bed & Breakfast,07/05/2021,5535723,416.00,Apolonia Property Services (Exodus Housing),
Children & Culture,Children's Social Care,Family Support Services,IPST S17 NRPF,Childrens Act Section 17 - Other Placements Bed & Breakfast,07/05/2021,5535724,"1,350.00",Apolonia Property Services (Exodus Housing),
Children & Culture,Children's Social Care,Family Support Services,IPST S17 NRPF,Childrens Act Section 17 - Other Placements Bed & Breakfast,07/05/2021,5535725,"1,140.00",Apolonia Property Services (Exodus Housing),
Children & Culture,Children's Social Care,Family Support Services,IPST S17 NRPF,Childrens Act Section 17 - Other Placements Bed & Breakfast,07/05/2021,5535726,"1,050.00",Apolonia Property Services (Exodus Housing),
Children & Culture,Children's Social Care,Family Support Services,IPST S17 NRPF,Childrens Act Section 17 - Other Placements Bed & Breakfast,07/05/2021,5535727,"1,920.00",Apolonia Property Services (Exodus Housing),
Children & Culture,Children's Social Care,Family Support Services,IPST S17 NRPF,Childrens Act Section 17 - Other Placements Bed & Breakfast,07/05/2021,5535728,"1,020.00",Apolonia Property Services (Exodus Housing),
Children & Culture,Children's Social Care,Family Support Services,IPST S17 NRPF,Childrens Act Section 17 - Other Placements Bed & Breakfast,07/05/2021,5535729,"1,560.00",Apolonia Property Services (Exodus Housing),
Children & Culture,Children's Social Care,Family Support Services,IPST S17 NRPF,Childrens Act Section 17 - Other Placements Bed & Breakfast,07/05/2021,5535730,960.00,Apolonia Property Services (Exodus Housing),
Children & Culture,Children's Social Care,Family Support Services,IPST S17 NRPF,Childrens Act Section 17 - Other Placements Bed & Breakfast,07/05/2021,5535731,960.00,Apolonia Property Services (Exodus Housing),
Children & Culture,Children's Social Care,Family Support Services,IPST S17 NRPF,Childrens Act Section 17 - Other Placements Bed & Breakfast,07/05/2021,5535732,960.00,Apolonia Property Services (Exodus Housing),
Children & Culture,Children's Social Care,Family Support Services,IPST S17 NRPF,Childrens Act Section 17 - Other Placements Bed & Breakfast,07/05/2021,5535733,544.00,Apolonia Property Services (Exodus Housing),
Children & Culture,Children's Social Care,Family Support Services,IPST S17 NRPF,Childrens Act Section 17 - Other Placements Bed & Breakfast,07/05/2021,5535734,960.00,Apolonia Property Services (Exodus Housing),
Children & Culture,Children's Social Care,Children Looked After,Leaving Care-UASC,Leaving Care Financial Assistance - Supp Accom/Hous Rents,07/05/2021,5535880,501.43,Pangea Support Services,
Children & Culture,Children's Social Care,Children Looked After,Leaving Care-UASC,Leaving Care Financial Assistance - Supp Accom/Hous Rents,07/05/2021,5535881,"3,240.00",Pangea Support Services,
Children & Culture,Children's Social Care,Family Support Services,IPST S17 NRPF,Childrens Act Section 17 - Food Grants,07/05/2021,5535986,360.00,BETHNAL GREEN SOCIAL SERVICES,
Children & Culture,Children's Social Care,Family Support Services,IPST S17 NRPF,Childrens Act Section 17 - Food Grants,07/05/2021,5535986,563.00,BETHNAL GREEN SOCIAL SERVICES,
Children & Culture,Children's Social Care,Commissioning and Social Work,Advice and Assessment Section 17,Childrens Act Section 17 - Food Grants,07/05/2021,5535986,321.50,BETHNAL GREEN SOCIAL SERVICES,
Children & Culture,Children's Social Care,Commissioning and Social Work,Advice and Assessment Section 17,Childrens Act Section 17 - Food Grants,07/05/2021,5535986,462.00,BETHNAL GREEN SOCIAL SERVICES,
Children & Culture,Children's Social Care,Commissioning and Social Work,Advice and Assessment Section 17,Childrens Act Section 17 - Food Grants,07/05/2021,5535986,305.90,BETHNAL GREEN SOCIAL SERVICES,
Children & Culture,Children's Social Care,Commissioning and Social Work,Advice and Assessment Section 17,Childrens Act Section 17 - Food Grants,07/05/2021,5535986,300.00,BETHNAL GREEN SOCIAL SERVICES,
Children & Culture,Children's Social Care,Children Looked After,Carebank Staff,Management & Admin Salaries - Pay & Oncost,07/05/2021,5536535,300.00,Augustine Cement Solicitors,
Children & Culture,Children's Social Care,Family Support Services,IPST S17 NRPF,Childrens Act Section 17 - Other Placements Bed & Breakfast,07/05/2021,5536558,"1,140.00",Apolonia Property Services (Exodus Housing),
Children & Culture,Children's Social Care,Children Looked After,S23-Other-Semi-Ind. Unit,Childrens Act Section 23 - Placement Fee,07/05/2021,5536593,"4,635.68",ThamesCare,
Children & Culture,Children's Social Care,Children Looked After,S23-Other-Semi-Ind. Unit,Childrens Act Section 23 - Placement Fee,07/05/2021,5536595,"5,132.36",ThamesCare,
Children & Culture,Education Services,Other Strategic Functions,Alternative Provision,Third Party Payments - Payments to Schools,07/05/2021,5536642,"3,000.00",BISHOP CHALLONER BOYS SCHOOL,
Children & Culture,Education Services,Other Strategic Functions,Alternative Provision,Third Party Payments - Payments to Schools,07/05/2021,5536643,"3,000.00",LANGDON PARK SCHOOL,
Children & Culture,Education Services,Other Strategic Functions,Alternative Provision,Third Party Payments - Payments to Schools,07/05/2021,5536644,"3,000.00",Wapping High School,
Children & Culture,Education Services,Other Strategic Functions,Alternative Provision,Third Party Payments - Payments to Schools,07/05/2021,5536645,"4,000.00",BOW SCHOOL,
Children & Culture,Children's Social Care,Children Looked After,S23-Other-Semi-Ind. Unit,Childrens Act Section 23 - Placement Fee,07/05/2021,5536857,"4,966.80",ThamesCare,
Children & Culture,Education Services,Other Strategic Functions,C&C Covid19 Response,Repairs and Maintenance - Responsive - Security,10/05/2021,5528992,"4,800.00",JC Coster (Metalworks) Ltd,
Children & Culture,Children's Social Care,Support Service and Management Costs,Schools Catering,Kitchen Supplies - Food and Beverages,10/05/2021,5529163,316.55,Prescott-Thomas LTD.,
Children & Culture,Children's Social Care,Support Service and Management Costs,Sch. Meals A/c - Central Production Unit,Kitchen Supplies - Food and Beverages,10/05/2021,5529169,285.92,Prescott-Thomas LTD.,
Children & Culture,Education Services,Other Strategic Functions,Special Education Needs DSG,Computing - Purchase of Software,10/05/2021,5529248,"3,800.00",Servelec Education Limited,
Children & Culture,Children's Social Care,Children Looked After,S23 Fam Pl P&V-F/Care,Childrens Act Section 23 - Placement Fee,10/05/2021,5529265,"3,441.00",Foster Care Associates Limited,
Children & Culture,Children's Social Care,Support Service and Management Costs,Sch. Meals A/c - Central Production Unit,Repairs and Maintenance - Responsive - General,10/05/2021,5529271,429.00,Lambourne Refrigeration,
Children & Culture,Children's Social Care,Support Service and Management Costs,Schools Catering,Kitchen Supplies - Food and Beverages,10/05/2021,5529304,288.00,Prescott-Thomas LTD.,
Children & Culture,Children's Social Care,Support Service and Management Costs,Schools Catering,Kitchen Supplies - Food and Beverages,10/05/2021,5529307,367.95,Prescott-Thomas LTD.,
Children & Culture,Children's Social Care,Support Service and Management Costs,Schools Catering,Kitchen Supplies - Food and Beverages,10/05/2021,5529333,317.90,Prescott-Thomas LTD.,
Children & Culture,Children's Social Care,Support Service and Management Costs,Schools Catering,Kitchen Supplies - Food and Beverages,10/05/2021,5529346,280.22,Prescott-Thomas LTD.,
Children & Culture,Children's Social Care,Support Service and Management Costs,Schools Catering,Kitchen Supplies - Packaging,10/05/2021,5530110,469.20,Tri-Star Packaging Supplies LTD,
Children & Culture,Cultural and Related Services,Open Spaces,Mile End Park,Repairs and Maintenance - Responsive - Drainage & Sewers,10/05/2021,5530207,980.00,J&L Coster (Drainage) Ltd,
Children & Culture,Children's Social Care,Children Looked After,S23-Other-Mother & Baby Unit,Childrens Act Section 23 - Placement Fee,10/05/2021,5530216,"3,298.00",Jamma Umoja (Residential Services) LTD,
Children & Culture,Children's Social Care,Children Looked After,S23-Other-Mother & Baby Unit,Childrens Act Section 23 - Placement Fee,10/05/2021,5530217,618.00,Jamma Umoja (Residential Services) LTD,
Children & Culture,Education Services,Other Strategic Functions,Special Education Needs DSG,Third Party Payments - Other Agencies,10/05/2021,5530225,"7,465.00",KIDS,
Children & Culture,Children's Social Care,Support Service and Management Costs,Swanlea,Kitchen Supplies - Food and Beverages,10/05/2021,5530228,299.32,Chicken Joes,
Children & Culture,Children's Social Care,Family Support Services,CNN Pool: Joint Family Support,Social Care - Homecare,10/05/2021,5530829,"1,368.00",Ashton Care Ltd,
Children & Culture,Children's Social Care,Children Looked After,S23-Resi-P&V/OLA-Child Home,Childrens Act Section 23 - Placement Fee,10/05/2021,5531152,"34,485.50",Eastfield,
Children & Culture,Children's Social Care,Support Service and Management Costs,Schools Catering,Kitchen Supplies - Food and Beverages,10/05/2021,5532496,266.49,William White Meats Ltd,
Children & Culture,Children's Social Care,Support Service and Management Costs,Schools Catering,Kitchen Supplies - Food and Beverages,10/05/2021,5532498,307.17,William White Meats Ltd,
Children & Culture,Children's Social Care,Support Service and Management Costs,Schools Catering,Kitchen Supplies - Food and Beverages,10/05/2021,5532502,421.26,William White Meats Ltd,
Children & Culture,Children's Social Care,Support Service and Management Costs,Schools Catering,Kitchen Supplies - Food and Beverages,10/05/2021,5532505,294.70,William White Meats Ltd,
Children & Culture,Children's Social Care,Support Service and Management Costs,Schools Catering,Kitchen Supplies - Food and Beverages,10/05/2021,5532509,437.11,William White Meats Ltd,
Children & Culture,Children's Social Care,Support Service and Management Costs,Schools Catering,Kitchen Supplies - Food and Beverages,10/05/2021,5532510,444.52,William White Meats Ltd,
Children & Culture,Children's Social Care,Support Service and Management Costs,Schools Catering,Kitchen Supplies - Food and Beverages,10/05/2021,5532512,280.93,William White Meats Ltd,
Children & Culture,Children's Social Care,Support Service and Management Costs,Schools Catering,Kitchen Supplies - Food and Beverages,10/05/2021,5532514,325.23,William White Meats Ltd,
Children & Culture,Children's Social Care,Support Service and Management Costs,Schools Catering,Kitchen Supplies - Food and Beverages,10/05/2021,5532519,301.74,William White Meats Ltd,
Children & Culture,Children's Social Care,Support Service and Management Costs,Schools Catering,Kitchen Supplies - Food and Beverages,10/05/2021,5532524,377.11,William White Meats Ltd,
Children & Culture,Children's Social Care,Support Service and Management Costs,Schools Catering,Kitchen Supplies - Food and Beverages,10/05/2021,5532530,262.35,William White Meats Ltd,
Children & Culture,Children's Social Care,Support Service and Management Costs,Schools Catering,Kitchen Supplies - Food and Beverages,10/05/2021,5532531,264.95,William White Meats Ltd,
Children & Culture,Children's Social Care,Support Service and Management Costs,Schools Catering,Kitchen Supplies - Food and Beverages,10/05/2021,5532535,399.24,William White Meats Ltd,
Children & Culture,Children's Social Care,Support Service and Management Costs,Schools Catering,Kitchen Supplies - Food and Beverages,10/05/2021,5532980,299.43,Thomas Ridley & Son Ltd,
Children & Culture,Children's Social Care,Support Service and Management Costs,Schools Catering,Kitchen Supplies - Food and Beverages,10/05/2021,5532981,498.73,Thomas Ridley & Son Ltd,
Children & Culture,Children's Social Care,Support Service and Management Costs,Schools Catering,Kitchen Supplies - Food and Beverages,10/05/2021,5532982,596.09,Thomas Ridley & Son Ltd,
Children & Culture,Children's Social Care,Support Service and Management Costs,Schools Catering,Kitchen Supplies - Food and Beverages,10/05/2021,5532984,678.09,Thomas Ridley & Son Ltd,
Children & Culture,Children's Social Care,Support Service and Management Costs,Schools Catering,Kitchen Supplies - Food and Beverages,10/05/2021,5532985,317.43,Thomas Ridley & Son Ltd,
Children & Culture,Children's Social Care,Support Service and Management Costs,Schools Catering,Kitchen Supplies - Food and Beverages,10/05/2021,5532986,300.18,Thomas Ridley & Son Ltd,
Children & Culture,Children's Social Care,Support Service and Management Costs,Schools Catering,Kitchen Supplies - Food and Beverages,10/05/2021,5532987,665.41,Thomas Ridley & Son Ltd,
Children & Culture,Children's Social Care,Support Service and Management Costs,Schools Catering,Kitchen Supplies - Food and Beverages,10/05/2021,5532989,456.93,Thomas Ridley & Son Ltd,
Children & Culture,Children's Social Care,Support Service and Management Costs,Schools Catering,Kitchen Supplies - Food and Beverages,10/05/2021,5532990,697.05,Thomas Ridley & Son Ltd,
Children & Culture,Children's Social Care,Support Service and Management Costs,Schools Catering,Kitchen Supplies - Food and Beverages,10/05/2021,5532991,952.27,Thomas Ridley & Son Ltd,
Children & Culture,Children's Social Care,Support Service and Management Costs,Schools Catering,Kitchen Supplies - Food and Beverages,10/05/2021,5532993,252.96,Thomas Ridley & Son Ltd,
Children & Culture,Children's Social Care,Support Service and Management Costs,Schools Catering,Kitchen Supplies - Food and Beverages,10/05/2021,5532995,561.34,Thomas Ridley & Son Ltd,
Children & Culture,Children's Social Care,Support Service and Management Costs,Schools Catering,Kitchen Supplies - Food and Beverages,10/05/2021,5532997,"1,031.03",Thomas Ridley & Son Ltd,
Children & Culture,Children's Social Care,Support Service and Management Costs,Schools Catering,Kitchen Supplies - Food and Beverages,10/05/2021,5532998,549.12,Thomas Ridley & Son Ltd,
Children & Culture,Children's Social Care,Support Service and Management Costs,Schools Catering,Kitchen Supplies - Food and Beverages,10/05/2021,5532999,795.72,Thomas Ridley & Son Ltd,
Children & Culture,Children's Social Care,Support Service and Management Costs,Schools Catering,Kitchen Supplies - Food and Beverages,10/05/2021,5533000,676.40,Thomas Ridley & Son Ltd,
Children & Culture,Children's Social Care,Support Service and Management Costs,Schools Catering,Kitchen Supplies - Food and Beverages,10/05/2021,5533001,454.95,Thomas Ridley & Son Ltd,
Children & Culture,Children's Social Care,Support Service and Management Costs,Schools Catering,Kitchen Supplies - Food and Beverages,10/05/2021,5533003,422.64,Thomas Ridley & Son Ltd,
Children & Culture,Children's Social Care,Support Service and Management Costs,Schools Catering,Kitchen Supplies - Food and Beverages,10/05/2021,5533004,344.03,Thomas Ridley & Son Ltd,
Children & Culture,Children's Social Care,Support Service and Management Costs,Schools Catering,Kitchen Supplies - Food and Beverages,10/05/2021,5533006,885.93,Thomas Ridley & Son Ltd,
Children & Culture,Children's Social Care,Support Service and Management Costs,Schools Catering,Kitchen Supplies - Food and Beverages,10/05/2021,5533007,498.07,Thomas Ridley & Son Ltd,
Children & Culture,Children's Social Care,Support Service and Management Costs,Schools Catering,Kitchen Supplies - Food and Beverages,10/05/2021,5533009,878.09,Thomas Ridley & Son Ltd,
Children & Culture,Children's Social Care,Support Service and Management Costs,Schools Catering,Kitchen Supplies - Food and Beverages,10/05/2021,5533010,286.66,Thomas Ridley & Son Ltd,
Children & Culture,Children's Social Care,Support Service and Management Costs,Schools Catering,Kitchen Supplies - Food and Beverages,10/05/2021,5533012,924.61,Thomas Ridley & Son Ltd,
Children & Culture,Children's Social Care,Support Service and Management Costs,Sch. Meals A/c - Central Production Unit,Kitchen Supplies - Food and Beverages,10/05/2021,5533013,301.88,Thomas Ridley & Son Ltd,
Children & Culture,Children's Social Care,Support Service and Management Costs,Schools Catering,Kitchen Supplies - Food and Beverages,10/05/2021,5533014,781.38,Thomas Ridley & Son Ltd,
Children & Culture,Children's Social Care,Support Service and Management Costs,Schools Catering,Kitchen Supplies - Food and Beverages,10/05/2021,5533016,506.76,Thomas Ridley & Son Ltd,
Children & Culture,Children's Social Care,Support Service and Management Costs,Schools Catering,Kitchen Supplies - Food and Beverages,10/05/2021,5533018,655.82,Thomas Ridley & Son Ltd,
Children & Culture,Children's Social Care,Support Service and Management Costs,Schools Catering,Kitchen Supplies - Food and Beverages,10/05/2021,5533019,667.50,Thomas Ridley & Son Ltd,
Children & Culture,Children's Social Care,Support Service and Management Costs,Schools Catering,Kitchen Supplies - Food and Beverages,10/05/2021,5533020,878.46,Thomas Ridley & Son Ltd,
Children & Culture,Children's Social Care,Support Service and Management Costs,Sch. Meals A/c - Central Production Unit,Kitchen Supplies - Food and Beverages,10/05/2021,5533021,722.22,Thomas Ridley & Son Ltd,
Children & Culture,Children's Social Care,Support Service and Management Costs,Schools Catering,Kitchen Supplies - Food and Beverages,10/05/2021,5533023,531.80,Thomas Ridley & Son Ltd,
Children & Culture,Children's Social Care,Support Service and Management Costs,Schools Catering,Kitchen Supplies - Food and Beverages,10/05/2021,5533024,304.18,Thomas Ridley & Son Ltd,
Children & Culture,Children's Social Care,Support Service and Management Costs,Schools Catering,Kitchen Supplies - Food and Beverages,10/05/2021,5533025,315.32,Thomas Ridley & Son Ltd,
Children & Culture,Children's Social Care,Support Service and Management Costs,Schools Catering,Kitchen Supplies - Food and Beverages,10/05/2021,5533026,846.57,Thomas Ridley & Son Ltd,
Children & Culture,Children's Social Care,Support Service and Management Costs,Schools Catering,Kitchen Supplies - Food and Beverages,10/05/2021,5533027,741.06,Thomas Ridley & Son Ltd,
Children & Culture,Children's Social Care,Support Service and Management Costs,Schools Catering,Kitchen Supplies - Food and Beverages,10/05/2021,5533029,305.27,Thomas Ridley & Son Ltd,
Children & Culture,Children's Social Care,Support Service and Management Costs,Schools Catering,Kitchen Supplies - Food and Beverages,10/05/2021,5533030,393.12,Thomas Ridley & Son Ltd,
Children & Culture,Children's Social Care,Support Service and Management Costs,Schools Catering,Kitchen Supplies - Food and Beverages,10/05/2021,5533032,657.99,Thomas Ridley & Son Ltd,
Children & Culture,Children's Social Care,Children Looked After,LCS/Allowances-Accom,Leaving Care Financial Assistance - Supp Accom/Hous Rents,10/05/2021,5535193,"2,748.00",Step4ward services Kent LTD,
Children & Culture,Children's Social Care,Children's and Young People's Safety,Child Protection Mgt & Admin,Training Expenses - Staff External Training (UK Based),10/05/2021,5535788,400.00,Redacted Section 40 FOI Act,
Children & Culture,Education Services,Other Strategic Functions,Safeguarding Service,Education & Training - Non Staff Tuition Fees,10/05/2021,5536552,750.00,Optimus Education Ltd,
Children & Culture,Children's Social Care,Children Looked After,S23-Resi-P&V/OLA-Child Home,Childrens Act Section 23 - Placement Fee,10/05/2021,5536553,"23,357.10",Cambian Autism Services Ltd,
Children & Culture,Children's Social Care,Children Looked After,Leaving Care-UASC,Leaving Care Financial Assistance - Reg Plan Maint L-Allow,10/05/2021,5536608,316.00,Maia Care Services,
Children & Culture,Children's Social Care,Children Looked After,Leaving Care-UASC,Leaving Care Financial Assistance - Supp Accom/Hous Rents,10/05/2021,5536608,860.00,Maia Care Services,
Children & Culture,Children's Social Care,Children Looked After,Leaving Care-UASC,Leaving Care Financial Assistance - Supported Living,10/05/2021,5536608,"2,230.00",Maia Care Services,
Children & Culture,Cultural and Related Services,Recreation & Sport,GLL Sports Centres,Payments to Private Contractors - Private Contractor,10/05/2021,5536888,"1,542.00",Leisure-net Solutions Limited,
Children & Culture,Children's Social Care,Family Support Services,IPST S17 NRPF,Childrens Act Section 17 - Other Placements Bed & Breakfast,10/05/2021,5537062,960.00,Apolonia Property Services (Exodus Housing),
Children & Culture,Education Services,Other Strategic Functions,High Needs Out Of Borough Special Schools,Third Party Payments - SEN Top Up Funding,10/05/2021,5537181,"11,200.00",Fairley House School,
Children & Culture,Education Services,Other Strategic Functions,Property & Asset Management,Services - Professional Fees - Legal Fees/Expenses,10/05/2021,5537288,775.00,Five Paper Buildings,
Children & Culture,Children's Social Care,Children Looked After,Leaving Care-UASC,Leaving Care Financial Assistance - Supp Accom/Hous Rents,12/05/2021,5526002,450.00,HAMLETTS LTD,
Children & Culture,No Service Specified,No Division Specified,Capital-Minor Works (SC),Building Works - Main Works,12/05/2021,5526781,"1,605.00",Tower Hamlets Schools LTD,
Children & Culture,Cultural and Related Services,Open Spaces,Mile End Park,Repairs and Maintenance - Responsive - General,12/05/2021,5530653,"2,600.00",JC Coster (Metalworks) Ltd,
Children & Culture,Children's Social Care,Youth Justice,Youth Justice Team,Education & Training - Non Staff Tuition Fees,12/05/2021,5530838,"3,750.00",Ro-Ho Learning,
Children & Culture,Children's Social Care,Children Looked After,S23 Fam Pl P&V-F/Care,Childrens Act Section 23 - Placement Fee,12/05/2021,5530847,"3,446.40",CAPSTONE FOSTER CARE (SE) LTD,
Children & Culture,Children's Social Care,Children Looked After,S23 Fam Pl P&V-F/Care,Childrens Act Section 23 - Placement Fee,12/05/2021,5530848,"3,445.80",CAPSTONE FOSTER CARE (SE) LTD,
Children & Culture,Children's Social Care,Children Looked After,S23 Fam Pl P&V-F/Care,Childrens Act Section 23 - Placement Fee,12/05/2021,5530849,"3,113.70",CAPSTONE FOSTER CARE (SE) LTD,
Children & Culture,Children's Social Care,Support Service and Management Costs,Schools Catering,Computing - Maint Agreements - Maintenance,12/05/2021,5530856,"35,883.00",Cypad Ltd,
Children & Culture,Children's Social Care,Children Looked After,S23 Fam Pl P&V-F/Care,Childrens Act Section 23 - Placement Fee,12/05/2021,5530984,"3,381.43",Fostering Innovations Ltd,
Children & Culture,Children's Social Care,Children Looked After,S23 Fam Pl P&V-F/Care,Childrens Act Section 23 - Placement Fee,12/05/2021,5530985,"6,442.86",Fostering Innovations Ltd,
Children & Culture,Children's Social Care,Support Service and Management Costs,Swanlea,Kitchen Supplies - Food and Beverages,12/05/2021,5532537,489.19,William White Meats Ltd,
Children & Culture,Children's Social Care,Children Looked After,S23 Fam Pl P&V-F/Care,Childrens Act Section 23 - Placement Fee,12/05/2021,5532618,"3,313.80",Fostering Innovations Ltd,
Children & Culture,Children's Social Care,Children Looked After,S23 Fam Pl P&V-F/Care,Childrens Act Section 23 - Placement Fee,12/05/2021,5532619,"3,313.80",Fostering Innovations Ltd,
Children & Culture,Children's Social Care,Children Looked After,S23 Fam Pl P&V-F/Care,Childrens Act Section 23 - Placement Fee,12/05/2021,5532620,"3,381.43",Fostering Innovations Ltd,
Children & Culture,Children's Social Care,Children Looked After,S23 Fam Pl P&V-F/Care,Childrens Act Section 23 - Placement Fee,12/05/2021,5532783,"3,071.40",Children First Fostering Agency LTD,
Children & Culture,Children's Social Care,Support Service and Management Costs,Schools Catering,Kitchen Supplies - Food and Beverages,12/05/2021,5532811,472.33,Thomas Ridley & Son Ltd,
Children & Culture,Children's Social Care,Support Service and Management Costs,Schools Catering,Kitchen Supplies - Food and Beverages,12/05/2021,5532813,446.22,Thomas Ridley & Son Ltd,
Children & Culture,Children's Social Care,Support Service and Management Costs,Schools Catering,Kitchen Supplies - Food and Beverages,12/05/2021,5532815,712.49,Thomas Ridley & Son Ltd,
Children & Culture,Children's Social Care,Support Service and Management Costs,Schools Catering,Kitchen Supplies - Food and Beverages,12/05/2021,5532817,338.29,Thomas Ridley & Son Ltd,
Children & Culture,Children's Social Care,Support Service and Management Costs,Schools Catering,Kitchen Supplies - Food and Beverages,12/05/2021,5532818,459.91,Thomas Ridley & Son Ltd,
Children & Culture,Children's Social Care,Support Service and Management Costs,Schools Catering,Kitchen Supplies - Food and Beverages,12/05/2021,5532820,481.96,Thomas Ridley & Son Ltd,
Children & Culture,Children's Social Care,Support Service and Management Costs,Schools Catering,Kitchen Supplies - Food and Beverages,12/05/2021,5532822,445.19,Thomas Ridley & Son Ltd,
Children & Culture,Children's Social Care,Support Service and Management Costs,Schools Catering,Kitchen Supplies - Food and Beverages,12/05/2021,5532823,883.38,Thomas Ridley & Son Ltd,
Children & Culture,Children's Social Care,Support Service and Management Costs,Schools Catering,Kitchen Supplies - Food and Beverages,12/05/2021,5532824,441.14,Thomas Ridley & Son Ltd,
Children & Culture,Children's Social Care,Support Service and Management Costs,Schools Catering,Kitchen Supplies - Food and Beverages,12/05/2021,5532826,556.72,Thomas Ridley & Son Ltd,
Children & Culture,Children's Social Care,Support Service and Management Costs,Schools Catering,Kitchen Supplies - Food and Beverages,12/05/2021,5532828,332.68,Thomas Ridley & Son Ltd,
Children & Culture,Children's Social Care,Support Service and Management Costs,Schools Catering,Kitchen Supplies - Food and Beverages,12/05/2021,5532829,326.20,Thomas Ridley & Son Ltd,
Children & Culture,Children's Social Care,Support Service and Management Costs,Schools Catering,Kitchen Supplies - Food and Beverages,12/05/2021,5532830,380.86,Thomas Ridley & Son Ltd,
Children & Culture,Children's Social Care,Support Service and Management Costs,Schools Catering,Kitchen Supplies - Food and Beverages,12/05/2021,5532831,606.93,Thomas Ridley & Son Ltd,
Children & Culture,Children's Social Care,Support Service and Management Costs,Schools Catering,Kitchen Supplies - Food and Beverages,12/05/2021,5532832,444.79,Thomas Ridley & Son Ltd,
Children & Culture,Children's Social Care,Support Service and Management Costs,Schools Catering,Kitchen Supplies - Food and Beverages,12/05/2021,5532834,684.92,Thomas Ridley & Son Ltd,
Children & Culture,Children's Social Care,Support Service and Management Costs,Schools Catering,Kitchen Supplies - Food and Beverages,12/05/2021,5532836,264.35,Thomas Ridley & Son Ltd,
Children & Culture,Children's Social Care,Support Service and Management Costs,Schools Catering,Kitchen Supplies - Food and Beverages,12/05/2021,5532839,614.59,Thomas Ridley & Son Ltd,
Children & Culture,Children's Social Care,Support Service and Management Costs,Schools Catering,Kitchen Supplies - Food and Beverages,12/05/2021,5532840,"1,125.41",Thomas Ridley & Son Ltd,
Children & Culture,Children's Social Care,Support Service and Management Costs,Schools Catering,Kitchen Supplies - Food and Beverages,12/05/2021,5533035,446.82,Thomas Ridley & Son Ltd,
Children & Culture,Children's Social Care,Support Service and Management Costs,Schools Catering,Kitchen Supplies - Food and Beverages,12/05/2021,5533036,518.43,Thomas Ridley & Son Ltd,
Children & Culture,Children's Social Care,Support Service and Management Costs,Schools Catering,Kitchen Supplies - Food and Beverages,12/05/2021,5533038,325.97,Thomas Ridley & Son Ltd,
Children & Culture,Children's Social Care,Support Service and Management Costs,Schools Catering,Kitchen Supplies - Food and Beverages,12/05/2021,5533039,310.11,Thomas Ridley & Son Ltd,
Children & Culture,Children's Social Care,Support Service and Management Costs,Schools Catering,Kitchen Supplies - Food and Beverages,12/05/2021,5533041,423.38,Thomas Ridley & Son Ltd,
Children & Culture,Children's Social Care,Support Service and Management Costs,Swanlea,Kitchen Supplies - Food and Beverages,12/05/2021,5533044,"1,478.02",Thomas Ridley & Son Ltd,
Children & Culture,Children's Social Care,Support Service and Management Costs,Schools Catering,Kitchen Supplies - Food and Beverages,12/05/2021,5533046,299.86,Thomas Ridley & Son Ltd,
Children & Culture,Children's Social Care,Support Service and Management Costs,Schools Catering,Kitchen Supplies - Food and Beverages,12/05/2021,5533048,458.05,Thomas Ridley & Son Ltd,
Children & Culture,Children's Social Care,Support Service and Management Costs,Schools Catering,Kitchen Supplies - Food and Beverages,12/05/2021,5533049,565.32,Thomas Ridley & Son Ltd,
Children & Culture,Children's Social Care,Support Service and Management Costs,Schools Catering,Kitchen Supplies - Food and Beverages,12/05/2021,5533050,316.55,Thomas Ridley & Son Ltd,
Children & Culture,Children's Social Care,Support Service and Management Costs,Schools Catering,Kitchen Supplies - Food and Beverages,12/05/2021,5533051,554.82,Thomas Ridley & Son Ltd,
Children & Culture,Children's Social Care,Support Service and Management Costs,Schools Catering,Kitchen Supplies - Food and Beverages,12/05/2021,5533053,437.07,Thomas Ridley & Son Ltd,
Children & Culture,Children's Social Care,Support Service and Management Costs,Sch. Meals A/c - Central Production Unit,Kitchen Supplies - Food and Beverages,12/05/2021,5533054,"1,509.74",Thomas Ridley & Son Ltd,
Children & Culture,Children's Social Care,Support Service and Management Costs,Schools Catering,Kitchen Supplies - Food and Beverages,12/05/2021,5533055,295.64,Thomas Ridley & Son Ltd,
Children & Culture,Children's Social Care,Support Service and Management Costs,Schools Catering,Kitchen Supplies - Food and Beverages,12/05/2021,5533056,457.44,Thomas Ridley & Son Ltd,
Children & Culture,Children's Social Care,Support Service and Management Costs,Schools Catering,Kitchen Supplies - Food and Beverages,12/05/2021,5533057,590.99,Thomas Ridley & Son Ltd,
Children & Culture,Children's Social Care,Support Service and Management Costs,Schools Catering,Kitchen Supplies - Food and Beverages,12/05/2021,5533059,296.70,Thomas Ridley & Son Ltd,
Children & Culture,Education Services,Other Strategic Functions,Alternative Provision,Third Party Payments - Payments to Schools,12/05/2021,5533231,"24,500.00",It's Your Life,
Children & Culture,Education Services,Other Strategic Functions,Alternative Provision,Third Party Payments - Contingencies,12/05/2021,5533232,"24,500.00",It's Your Life,
Children & Culture,Education Services,Other Strategic Functions,Special Education Needs DSG,Third Party Payments - Payments to Schools,12/05/2021,5533325,"42,471.37",St Elizabeth's Centre,
Children & Culture,Children's Social Care,Children Looked After,S23-Resi-P&V/OLA-Boarding Sch,Childrens Act Section 23 - Placement Fee,12/05/2021,5533325,"42,471.37",St Elizabeth's Centre,
Children & Culture,Children's Social Care,Children Looked After,S23 Fam Pl P&V-F/Care,Social Care - Day Care,12/05/2021,5535046,424.00,HOPE Superjobs Ltd,
Children & Culture,Children's Social Care,Children Looked After,S23 Fam Pl P&V-F/Care,Childrens Act Section 23 - Placement Fee,12/05/2021,5535427,"5,957.14",Fostering Innovations Ltd,
Children & Culture,Children's Social Care,Children Looked After,Leaving Care-UASC,Leaving Care Financial Assistance - Supp Accom/Hous Rents,12/05/2021,5535445,"1,041.30",HAMLETTS LTD,
Children & Culture,Children's Social Care,Children Looked After,Leaving Care-UASC,Leaving Care Financial Assistance - Supp Accom/Hous Rents,12/05/2021,5535446,998.70,HAMLETTS LTD,
Children & Culture,Children's Social Care,Children Looked After,Leaving Care-UASC,Leaving Care Financial Assistance - Supp Accom/Hous Rents,12/05/2021,5535447,"1,041.30",HAMLETTS LTD,
Children & Culture,Children's Social Care,Children Looked After,Leaving Care-UASC,Leaving Care Financial Assistance - Supp Accom/Hous Rents,12/05/2021,5535448,"1,045.80",HAMLETTS LTD,
Children & Culture,Children's Social Care,Children Looked After,Leaving Care-UASC,Leaving Care Financial Assistance - Supp Accom/Hous Rents,12/05/2021,5535449,"1,041.30",HAMLETTS LTD,
Children & Culture,Children's Social Care,Children Looked After,LCS/Allowances-Accom,Leaving Care Financial Assistance - Supp Accom/Hous Rents,12/05/2021,5535450,"2,035.80",HAMLETTS LTD,
Children & Culture,Children's Social Care,Children Looked After,Leaving Care-UASC,Leaving Care Financial Assistance - Supp Accom/Hous Rents,12/05/2021,5535451,"1,041.30",HAMLETTS LTD,
Children & Culture,Children's Social Care,Children Looked After,Leaving Care-UASC,Leaving Care Financial Assistance - Supp Accom/Hous Rents,12/05/2021,5535452,"1,041.30",HAMLETTS LTD,
Children & Culture,Children's Social Care,Service Strategy,"FSP Sect 17 - Team 6		",Social Care - Day Care,12/05/2021,5535797,479.00,DNA Legal Ltd,
Children & Culture,Children's Social Care,Children Looked After,Leaving Care-UASC,Leaving Care Financial Assistance - Supp Accom/Hous Rents,12/05/2021,5535871,"4,628.57",Pangea Support Services,
Children & Culture,Children's Social Care,Children Looked After,Leaving Care-UASC,Leaving Care Financial Assistance - Supported Living,12/05/2021,5535872,264.29,Pangea Support Services,
Children & Culture,Children's Social Care,Children Looked After,Leaving Care-UASC,Leaving Care Financial Assistance - Supported Living,12/05/2021,5535873,"16,828.57",Pangea Support Services,
Children & Culture,Children's Social Care,Children Looked After,Leaving Care-UASC,Leaving Care Financial Assistance - Reg Plan Maint L-Allow,12/05/2021,5535878,"1,300.86",Pangea Support Services,
Children & Culture,Children's Social Care,Children Looked After,S23 Fam Pl P&V-F/Care,Childrens Act Section 23 - Placement Fee,12/05/2021,5536563,"5,232.60",Diverse Care (UK) Limited,
Children & Culture,Children's Social Care,Children Looked After,LCS/Allowances-Accom,Leaving Care Financial Assistance - Supported Living,12/05/2021,5537049,"2,147.86",Inclusive Care Support Ltd,
Children & Culture,Children's Social Care,Children Looked After,LCS/Allowances-Accom,Leaving Care Financial Assistance - Supported Living,12/05/2021,5537051,"1,933.07",Inclusive Care Support Ltd,
Children & Culture,Education Services,Other Strategic Functions,Non-Statemented Ed.Placemts,Third Party Payments - SEN Top Up Funding,12/05/2021,5537137,"2,625.00",Ellern Mede School,
Children & Culture,Education Services,Secondary Schools,PFI Hldg Account-Grouped Schoo,Repairs and Maintenance - Responsive - Buildings,12/05/2021,5537141,"7,333.20",Tower Hamlets Schools LTD,
Children & Culture,Education Services,Secondary Schools,PFI Hldg Account-Grouped Schoo,Repairs and Maintenance - Responsive - Buildings,12/05/2021,5537142,523.22,Tower Hamlets Schools LTD,
Children & Culture,Children's Social Care,Children Looked After,S23 Fam Pl P&V-F/Care,Childrens Act Section 23 - Placement Fee,12/05/2021,5537163,"2,952.90",CAPSTONE FOSTER CARE (SE) LTD,
Children & Culture,Children's Social Care,Children Looked After,Leaving Care-UASC,Leaving Care Financial Assistance - Supp Accom/Hous Rents,12/05/2021,5537170,"1,041.30",HAMLETTS LTD,
Children & Culture,Children's Social Care,Children Looked After,LCS/Allowances-Accom,Leaving Care Financial Assistance - Supp Accom/Hous Rents,12/05/2021,5537171,"1,041.30",HAMLETTS LTD,
Children & Culture,Children's Social Care,Children Looked After,LCS/Allowances-Accom,Leaving Care Financial Assistance - Supp Accom/Hous Rents,12/05/2021,5537172,"1,041.30",HAMLETTS LTD,
Children & Culture,Children's Social Care,Children Looked After,Leaving Care-UASC,Leaving Care Financial Assistance - Supp Accom/Hous Rents,12/05/2021,5537174,"1,041.30",HAMLETTS LTD,
Children & Culture,Children's Social Care,Support Service and Management Costs,Schools Catering,Materials - Cleaning Materials,12/05/2021,5537344,257.72,The Maintenance Supply Co Ltd,
Children & Culture,Education Services,Secondary Schools,PFI Hldg Account-Grouped Schoo,Repairs and Maintenance - Responsive - Buildings,14/05/2021,5477381,"14,980.00",Tower Hamlets Schools LTD,
Children & Culture,No Service Specified,No Division Specified,Capital-Minor Works (SC),Building Works - Main Works,14/05/2021,5477383,"9,421.72",Tower Hamlets Schools LTD,
Children & Culture,No Service Specified,No Division Specified,Capital-Minor Works (SC),Building Works - Main Works,14/05/2021,5506341,"2,176.23",Tower Hamlets Schools LTD,
Children & Culture,Education Services,Secondary Schools,PFI Hldg Account-Grouped Schoo,Repairs and Maintenance - Responsive - Repair & Maintenance,14/05/2021,5506342,"16,642.28",Tower Hamlets Schools LTD,
Children & Culture,No Service Specified,No Division Specified,Capital-Minor Works (SC),Building Works - Main Works,14/05/2021,5514996,"12,037.50",Tower Hamlets Schools LTD,
Children & Culture,Education Services,Secondary Schools,PFI Hldg Account-Grouped Schoo,Repairs and Maintenance - Responsive - Buildings,14/05/2021,5526783,"1,390.37",Tower Hamlets Schools LTD,
Children & Culture,No Service Specified,No Division Specified,Capital-Minor Works (SC),Building Works - Main Works,14/05/2021,5526786,"22,463.53",Tower Hamlets Schools LTD,
Children & Culture,Children's Social Care,Children Looked After,LCS/Allowances-Accom,Leaving Care Financial Assistance - Reg Plan Maint L-Allow,14/05/2021,5530214,348.00,Maia Care Services,
Children & Culture,Education Services,Other Strategic Functions,High Needs Out Of Borough Special Schools,Third Party Payments - SEN Placement Funding,14/05/2021,5530785,"21,269.43",Woodcroft School Ltd,
Children & Culture,Education Services,Other Strategic Functions,High Needs Out Of Borough Special Schools,Third Party Payments - SEN Placement Funding,14/05/2021,5530786,"21,269.43",Woodcroft School Ltd,
Children & Culture,Education Services,Other Strategic Functions,High Needs Out Of Borough Special Schools,Third Party Payments - SEN Placement Funding,14/05/2021,5530787,"21,269.43",Woodcroft School Ltd,
Children & Culture,Education Services,Other Strategic Functions,High Needs Out Of Borough Special Schools,Third Party Payments - SEN Placement Funding,14/05/2021,5530788,"21,269.43",Woodcroft School Ltd,
Children & Culture,Education Services,Other Strategic Functions,High Needs Out Of Borough Special Schools,Third Party Payments - SEN Placement Funding,14/05/2021,5530789,"21,269.43",Woodcroft School Ltd,
Children & Culture,Education Services,Other Strategic Functions,High Needs Out Of Borough Special Schools,Third Party Payments - SEN Placement Funding,14/05/2021,5530790,"21,269.43",Woodcroft School Ltd,
Children & Culture,Education Services,Other Strategic Functions,High Needs Out Of Borough Special Schools,Third Party Payments - SEN Placement Funding,14/05/2021,5530791,"21,269.43",Woodcroft School Ltd,
Children & Culture,Education Services,Other Strategic Functions,High Needs Out Of Borough Special Schools,Third Party Payments - SEN Placement Funding,14/05/2021,5530792,"21,269.43",Woodcroft School Ltd,
Children & Culture,Education Services,Other Strategic Functions,High Needs Out Of Borough Special Schools,Third Party Payments - SEN Placement Funding,14/05/2021,5530793,"21,269.43",Woodcroft School Ltd,
Children & Culture,Education Services,Early Years,SSEYCG Workforce Dev't,Educational/Training Supplies - Resources,14/05/2021,5530987,297.50,Nuco Training Ltd,
Children & Culture,Children's Social Care,Children Looked After,S23-Resi-P&V/OLA-Child Home,Childrens Act Section 23 - Placement Fee,14/05/2021,5530990,"8,815.65",Blossom Care Group Limited,
Children & Culture,Children's Social Care,Service Strategy,Child Care M & A,Staff Advertising,14/05/2021,5531126,"13,420.80",TMP UK Ltd,
Children & Culture,Children's Social Care,Support Service and Management Costs,Swanlea,Kitchen Supplies - Food and Beverages,14/05/2021,5531134,264.64,Tiffin Sandwiches,
Children & Culture,Children's Social Care,Support Service and Management Costs,Sch. Meals A/c - Redlands/Smithy,Catering - Hospitality,14/05/2021,5531135,"1,340.00",Tiffin Sandwiches,
Children & Culture,Children's Social Care,Support Service and Management Costs,Sch. Meals A/c - Osmani,Catering - Hospitality,14/05/2021,5531136,760.00,Tiffin Sandwiches,
Children & Culture,Children's Social Care,Support Service and Management Costs,Schools Catering,Kitchen Supplies - Food and Beverages,14/05/2021,5532546,356.26,William White Meats Ltd,
Children & Culture,Children's Social Care,Support Service and Management Costs,Sch. Meals A/c - Central Production Unit,Kitchen Supplies - Food and Beverages,14/05/2021,5532547,"1,439.91",William White Meats Ltd,
Children & Culture,Children's Social Care,Support Service and Management Costs,Schools Catering,Kitchen Supplies - Food and Beverages,14/05/2021,5532550,433.37,William White Meats Ltd,
Children & Culture,Children's Social Care,Support Service and Management Costs,Schools Catering,Kitchen Supplies - Food and Beverages,14/05/2021,5532553,280.86,William White Meats Ltd,
Children & Culture,Children's Social Care,Support Service and Management Costs,Schools Catering,Kitchen Supplies - Food and Beverages,14/05/2021,5532554,295.09,William White Meats Ltd,
Children & Culture,Education Services,Other Strategic Functions,High Needs Out Of Borough Special Schools,Third Party Payments - SEN Top Up Funding,14/05/2021,5532672,"12,434.00",Parayhouse School,
Children & Culture,Cultural and Related Services,Open Spaces,Stepney Green,Services - Professional Fees - Consultants Fees,14/05/2021,5532799,723.70,Agilisys Professional Services,
Children & Culture,Children's Social Care,Support Service and Management Costs,Schools Catering,Kitchen Supplies - Food and Beverages,14/05/2021,5532846,251.51,Thomas Ridley & Son Ltd,
Children & Culture,Children's Social Care,Support Service and Management Costs,Sch. Meals A/c - Central Production Unit,Kitchen Supplies - Food and Beverages,14/05/2021,5532847,"1,574.85",Thomas Ridley & Son Ltd,
Children & Culture,Children's Social Care,Support Service and Management Costs,Schools Catering,Kitchen Supplies - Food and Beverages,14/05/2021,5532851,408.71,Thomas Ridley & Son Ltd,
Children & Culture,Children's Social Care,Support Service and Management Costs,Schools Catering,Kitchen Supplies - Food and Beverages,14/05/2021,5532853,"1,492.86",Thomas Ridley & Son Ltd,
Children & Culture,Children's Social Care,Support Service and Management Costs,Schools Catering,Kitchen Supplies - Food and Beverages,14/05/2021,5532854,469.55,Thomas Ridley & Son Ltd,
Children & Culture,Children's Social Care,Support Service and Management Costs,Schools Catering,Kitchen Supplies - Food and Beverages,14/05/2021,5532855,280.43,Thomas Ridley & Son Ltd,
Children & Culture,Children's Social Care,Family Support Services,CNN Pool: Joint Family Support,Social Care - Homecare,14/05/2021,5533349,495.01,Carebridge Staffing Ltd,
Children & Culture,Children's Social Care,Support Service and Management Costs,Schools Catering,Kitchen Supplies - Food and Beverages,14/05/2021,5534885,387.04,William White Meats Ltd,
Children & Culture,Children's Social Care,Support Service and Management Costs,Schools Catering,Kitchen Supplies - Food and Beverages,14/05/2021,5534886,278.38,William White Meats Ltd,
Children & Culture,Children's Social Care,Support Service and Management Costs,Schools Catering,Kitchen Supplies - Food and Beverages,14/05/2021,5534888,423.26,William White Meats Ltd,
Children & Culture,Children's Social Care,Support Service and Management Costs,Schools Catering,Kitchen Supplies - Food and Beverages,14/05/2021,5534890,337.51,William White Meats Ltd,
Children & Culture,Children's Social Care,Support Service and Management Costs,Schools Catering,Kitchen Supplies - Food and Beverages,14/05/2021,5534893,305.53,William White Meats Ltd,
Children & Culture,Children's Social Care,Support Service and Management Costs,Schools Catering,Kitchen Supplies - Food and Beverages,14/05/2021,5534897,539.16,William White Meats Ltd,
Children & Culture,Children's Social Care,Support Service and Management Costs,Schools Catering,Kitchen Supplies - Food and Beverages,14/05/2021,5534899,471.67,William White Meats Ltd,
Children & Culture,Children's Social Care,Support Service and Management Costs,Schools Catering,Kitchen Supplies - Food and Beverages,14/05/2021,5534900,253.09,William White Meats Ltd,
Children & Culture,Children's Social Care,Support Service and Management Costs,Schools Catering,Kitchen Supplies - Food and Beverages,14/05/2021,5534902,308.58,William White Meats Ltd,
Children & Culture,Children's Social Care,Support Service and Management Costs,Schools Catering,Kitchen Supplies - Food and Beverages,14/05/2021,5534905,347.85,William White Meats Ltd,
Children & Culture,Children's Social Care,Support Service and Management Costs,Schools Catering,Kitchen Supplies - Food and Beverages,14/05/2021,5534907,398.29,William White Meats Ltd,
Children & Culture,Children's Social Care,Support Service and Management Costs,Schools Catering,Kitchen Supplies - Food and Beverages,14/05/2021,5534909,490.73,William White Meats Ltd,
Children & Culture,Children's Social Care,Support Service and Management Costs,Schools Catering,Kitchen Supplies - Food and Beverages,14/05/2021,5534910,296.15,William White Meats Ltd,
Children & Culture,Children's Social Care,Support Service and Management Costs,Schools Catering,Kitchen Supplies - Food and Beverages,14/05/2021,5534912,386.36,William White Meats Ltd,
Children & Culture,Children's Social Care,Support Service and Management Costs,Schools Catering,Kitchen Supplies - Food and Beverages,14/05/2021,5534913,476.99,William White Meats Ltd,
Children & Culture,Children's Social Care,Support Service and Management Costs,Schools Catering,Kitchen Supplies - Food and Beverages,14/05/2021,5534915,283.02,William White Meats Ltd,
Children & Culture,Children's Social Care,Support Service and Management Costs,Schools Catering,Kitchen Supplies - Food and Beverages,14/05/2021,5534918,404.50,William White Meats Ltd,
Children & Culture,Children's Social Care,Support Service and Management Costs,Sch. Meals A/c - Redlands/Smithy,Catering - Hospitality,14/05/2021,5535741,"1,340.00",Tiffin Sandwiches,
Children & Culture,Children's Social Care,Support Service and Management Costs,Sch. Meals A/c - Osmani,Catering - Hospitality,14/05/2021,5535742,760.00,Tiffin Sandwiches,
Children & Culture,Children's Social Care,Service Strategy,FSP Sect 17 - Team 1,Childrens Act Section 17 - Expert Assessmt/Witness Costs,14/05/2021,5537059,"1,355.00",E4 Law Limited T/A Lextox,
Children & Culture,No Service Specified,No Division Specified,Capital-Minor Works (SC),Building Works - Main Works,14/05/2021,5537140,"90,909.55",Tower Hamlets Schools LTD,
Children & Culture,Children's Social Care,Support Service and Management Costs,Schools Catering,Materials - Cleaning Materials,14/05/2021,5537398,276.37,The Maintenance Supply Co Ltd,
Children & Culture,Education Services,Secondary Schools,PFI Hldg Account-Mulberry Scho,Payments to Private Contractors - Other Contractors,14/05/2021,5537792,"7,918.97",D4E Mulberry LTD,
Children & Culture,Education Services,Other Strategic Functions,Property & Asset Management,Services - Professional Fees - Legal Fees/Expenses,14/05/2021,5538505,"15,500.00",Redacted Section 40 FOI Act,
Children & Culture,Cultural and Related Services,Open Spaces,Parks & Open Spaces Man&Admin,Payments to Private Contractors - Private Contractor,14/05/2021,5538553,"1,378.66",The Bromley by Bow Centre,
Children & Culture,Education Services,Other Strategic Functions,High Needs Other Boroughs,Third Party Payments - SEN Top Up Funding,14/05/2021,5538571,"10,000.00",Medway Council,
Children & Culture,Children's Social Care,Children Looked After,S23-Other-Mother & Baby Unit,Childrens Act Section 23 - Medical Expenses,14/05/2021,5538616,338.00,Abbott Toxicology Ltd,
Children & Culture,Education Services,Other Strategic Functions,High Needs Out Of Borough Special Schools,Third Party Payments - SEN Top Up Funding,14/05/2021,5538654,"13,667.00",The Pears Family Charitable Foundation School,
Children & Culture,Education Services,Other Strategic Functions,High Needs Out Of Borough Special Schools,Third Party Payments - SEN Top Up Funding,14/05/2021,5538655,"13,667.00",The Pears Family Charitable Foundation School,
Children & Culture,Education Services,Other Strategic Functions,High Needs Out Of Borough Special Schools,Third Party Payments - SEN Top Up Funding,14/05/2021,5538656,"13,667.00",The Pears Family Charitable Foundation School,
Children & Culture,Children's Social Care,Children Looked After,S23 Fam Pl P&V-F/Care,Childrens Act Section 23 - Placement Fee,14/05/2021,5538674,"3,257.14",Five Rivers Childcare Limited,
Children & Culture,Children's Social Care,Children Looked After,S23 Fam Pl P&V-F/Care,Childrens Act Section 23 - Placement Fee,14/05/2021,5538675,"3,461.57",Five Rivers Childcare Limited,
Children & Culture,Children's Social Care,Children Looked After,S23 Fam Pl P&V-F/Care,Childrens Act Section 23 - Placement Fee,14/05/2021,5538676,"3,461.57",Five Rivers Childcare Limited,
Children & Culture,Children's Social Care,Family Support Services,Short Breaks and Family Support,Third Party Payments - Voluntary Associations,14/05/2021,5538696,337.50,REMARK LTD,
Children & Culture,Children's Social Care,Support Service and Management Costs,Schools Catering,Repairs and Maintenance - Responsive - General,14/05/2021,5538697,"1,084.00",Lambourne Refrigeration,
Children & Culture,Education Services,Other Strategic Functions,High Needs Out Of Borough Special Schools,Third Party Payments - SEN Placement Funding,14/05/2021,5538845,"-22,509.18",Ambitious about Autism,
Children & Culture,Education Services,Other Strategic Functions,High Needs Out Of Borough Special Schools,Third Party Payments - SEN Placement Funding,14/05/2021,5538847,"26,054.91",Ambitious about Autism,
Children & Culture,Education Services,Other Strategic Functions,High Needs Out Of Borough Special Schools,Third Party Payments - SEN Placement Funding,14/05/2021,5538848,"26,244.01",Ambitious about Autism,
Children & Culture,Education Services,Other Strategic Functions,High Needs Out Of Borough Special Schools,Third Party Payments - SEN Placement Funding,14/05/2021,5538849,"26,244.01",Ambitious about Autism,
Children & Culture,Education Services,Other Strategic Functions,High Needs Out Of Borough Special Schools,Third Party Payments - SEN Placement Funding,14/05/2021,5538850,"26,054.91",Ambitious about Autism,
Children & Culture,Education Services,Other Strategic Functions,High Needs Out Of Borough Special Schools,Third Party Payments - SEN Placement Funding,14/05/2021,5538851,"26,244.01",Ambitious about Autism,
Children & Culture,Education Services,Other Strategic Functions,High Needs Out Of Borough Special Schools,Third Party Payments - SEN Placement Funding,14/05/2021,5538852,"26,244.01",Ambitious about Autism,
Children & Culture,Education Services,Other Strategic Functions,High Needs Out Of Borough Special Schools,Third Party Payments - SEN Placement Funding,14/05/2021,5538853,"26,054.91",Ambitious about Autism,
Children & Culture,Education Services,Other Strategic Functions,High Needs Other Boroughs,Third Party Payments - SEN Top Up Funding,14/05/2021,5538937,"16,795.00",Riverston School LTD,
Children & Culture,Education Services,Other Strategic Functions,High Needs Other Boroughs,Third Party Payments - SEN Top Up Funding,14/05/2021,5538939,"9,962.35",Riverston School LTD,
Children & Culture,Education Services,Other Strategic Functions,High Needs Other Boroughs,Third Party Payments - SEN Top Up Funding,14/05/2021,5538940,"11,110.50",Riverston School LTD,
Children & Culture,Education Services,Other Strategic Functions,High Needs Other Boroughs,Third Party Payments - SEN Top Up Funding,14/05/2021,5538941,"16,332.00",Riverston School LTD,
Children & Culture,Education Services,Other Strategic Functions,High Needs Other Boroughs,Third Party Payments - SEN Top Up Funding,14/05/2021,5538942,"16,575.00",Riverston School LTD,
Children & Culture,Education Services,Other Strategic Functions,High Needs Other Boroughs,Third Party Payments - SEN Top Up Funding,14/05/2021,5538943,"12,730.00",Riverston School LTD,
Children & Culture,Children's Social Care,Children Looked After,S23 Fam Pl P&V-F/Care,Childrens Act Section 23 - All Contact Expenses,14/05/2021,5538971,323.00,HOPE Superjobs Ltd,
Children & Culture,No Service Specified,No Division Specified,Capital-Minor Works (SC),Other Capital Payments - Other capital costs,14/05/2021,5538995,"3,192.83",Harrow Green Ltd,
Children & Culture,Cultural and Related Services,Open Spaces,Mile End Park,Repairs and Maintenance - Responsive - General,17/05/2021,5530928,"1,322.00",JC Coster (Metalworks) Ltd,
Children & Culture,Cultural and Related Services,Open Spaces,Mile End Park,Repairs and Maintenance - Responsive - General,17/05/2021,5530933,"3,230.00",JC Coster (Metalworks) Ltd,
Children & Culture,Cultural and Related Services,Open Spaces,Parks & Open Spaces Man&Admin,Repairs and Maintenance - Responsive - Buildings,17/05/2021,5530934,360.00,JC Coster (Metalworks) Ltd,
Children & Culture,Children's Social Care,Services for young people,Youth Service Management,Education & Training - Non Staff Tuition Fees,17/05/2021,5531099,"14,700.00",Half Moon Young People's Theatre,
Children & Culture,Children's Social Care,Support Service and Management Costs,Schools Catering,Kitchen Supplies - Catering Equipment,17/05/2021,5531115,625.00,W V Howe LTD,
Children & Culture,Children's Social Care,Support Service and Management Costs,Schools Catering,Kitchen Supplies - Food and Beverages,17/05/2021,5531209,288.54,Prescott-Thomas LTD.,
Children & Culture,Children's Social Care,Support Service and Management Costs,Schools Catering,Kitchen Supplies - Food and Beverages,17/05/2021,5531234,355.69,Prescott-Thomas LTD.,
Children & Culture,Children's Social Care,Support Service and Management Costs,Schools Catering,Kitchen Supplies - Food and Beverages,17/05/2021,5531248,268.88,Prescott-Thomas LTD.,
Children & Culture,Children's Social Care,Support Service and Management Costs,Schools Catering,Kitchen Supplies - Food and Beverages,17/05/2021,5531249,299.76,Prescott-Thomas LTD.,
Children & Culture,Cultural and Related Services,Open Spaces,Mile End Park,Repairs and Maintenance - Responsive - Drainage & Sewers,17/05/2021,5532629,"1,360.00",J&L Coster (Drainage) Ltd,
Children & Culture,Cultural and Related Services,Open Spaces,Parks & Open Spaces Man&Admin,Repairs and Maintenance - Responsive - Drainage & Sewers,17/05/2021,5532631,450.00,J&L Coster (Drainage) Ltd,
Children & Culture,Children's Social Care,Children Looked After,S23-Other-Mother & Baby Unit,Childrens Act Section 23 - Placement Fee,17/05/2021,5532648,618.00,Jamma Umoja (Residential Services) LTD,
Children & Culture,Education Services,Other Strategic Functions,Governor Service Trading Account,Training Expenses - Staff External Training (UK Based),17/05/2021,5532681,"14,445.00",Frontline Data Ltd,
Children & Culture,Children's Social Care,Children Looked After,S23-Other-Mother & Baby Unit,Childrens Act Section 23 - Placement Fee,17/05/2021,5532778,"3,298.00",Jamma Umoja (Residential Services) LTD,
Children & Culture,Children's Social Care,Children Looked After,C.B.C & Fam.Prev/Support-Mgmnt,Third Party Payments - Voluntary Associations,17/05/2021,5532779,"22,429.29",Welfare Call (LAC) LTD,
Children & Culture,Children's Social Care,Support Service and Management Costs,Schools Catering,Kitchen Supplies - Food and Beverages,17/05/2021,5532856,468.17,Thomas Ridley & Son Ltd,
Children & Culture,Children's Social Care,Support Service and Management Costs,Schools Catering,Kitchen Supplies - Food and Beverages,17/05/2021,5532857,326.79,Thomas Ridley & Son Ltd,
Children & Culture,Children's Social Care,Support Service and Management Costs,Schools Catering,Kitchen Supplies - Food and Beverages,17/05/2021,5532858,483.15,Thomas Ridley & Son Ltd,
Children & Culture,Children's Social Care,Support Service and Management Costs,Schools Catering,Kitchen Supplies - Food and Beverages,17/05/2021,5532859,433.91,Thomas Ridley & Son Ltd,
Children & Culture,Children's Social Care,Support Service and Management Costs,Schools Catering,Kitchen Supplies - Food and Beverages,17/05/2021,5532860,696.23,Thomas Ridley & Son Ltd,
Children & Culture,Children's Social Care,Support Service and Management Costs,Schools Catering,Kitchen Supplies - Food and Beverages,17/05/2021,5532861,317.36,Thomas Ridley & Son Ltd,
Children & Culture,Children's Social Care,Support Service and Management Costs,Schools Catering,Kitchen Supplies - Food and Beverages,17/05/2021,5532865,503.24,Thomas Ridley & Son Ltd,
Children & Culture,Children's Social Care,Support Service and Management Costs,Schools Catering,Kitchen Supplies - Food and Beverages,17/05/2021,5532866,850.17,Thomas Ridley & Son Ltd,
Children & Culture,Children's Social Care,Support Service and Management Costs,Schools Catering,Kitchen Supplies - Food and Beverages,17/05/2021,5532867,313.55,Thomas Ridley & Son Ltd,
Children & Culture,Children's Social Care,Support Service and Management Costs,Schools Catering,Kitchen Supplies - Food and Beverages,17/05/2021,5532868,455.85,Thomas Ridley & Son Ltd,
Children & Culture,Children's Social Care,Support Service and Management Costs,Schools Catering,Kitchen Supplies - Food and Beverages,17/05/2021,5532872,408.82,Thomas Ridley & Son Ltd,
Children & Culture,Children's Social Care,Support Service and Management Costs,Schools Catering,Kitchen Supplies - Food and Beverages,17/05/2021,5532873,725.25,Thomas Ridley & Son Ltd,
Children & Culture,Children's Social Care,Support Service and Management Costs,Schools Catering,Kitchen Supplies - Food and Beverages,17/05/2021,5532874,515.20,Thomas Ridley & Son Ltd,
Children & Culture,Children's Social Care,Support Service and Management Costs,Schools Catering,Kitchen Supplies - Food and Beverages,17/05/2021,5532875,865.55,Thomas Ridley & Son Ltd,
Children & Culture,Children's Social Care,Support Service and Management Costs,Schools Catering,Kitchen Supplies - Food and Beverages,17/05/2021,5532876,414.26,Thomas Ridley & Son Ltd,
Children & Culture,Children's Social Care,Support Service and Management Costs,Schools Catering,Kitchen Supplies - Food and Beverages,17/05/2021,5532878,366.91,Thomas Ridley & Son Ltd,
Children & Culture,Children's Social Care,Support Service and Management Costs,Schools Catering,Kitchen Supplies - Food and Beverages,17/05/2021,5532879,461.13,Thomas Ridley & Son Ltd,
Children & Culture,Children's Social Care,Support Service and Management Costs,Schools Catering,Kitchen Supplies - Food and Beverages,17/05/2021,5532882,280.12,Thomas Ridley & Son Ltd,
Children & Culture,Children's Social Care,Support Service and Management Costs,Schools Catering,Kitchen Supplies - Food and Beverages,17/05/2021,5532883,534.94,Thomas Ridley & Son Ltd,
Children & Culture,Children's Social Care,Support Service and Management Costs,Schools Catering,Kitchen Supplies - Food and Beverages,17/05/2021,5532884,347.04,Thomas Ridley & Son Ltd,
Children & Culture,Children's Social Care,Support Service and Management Costs,Schools Catering,Kitchen Supplies - Food and Beverages,17/05/2021,5532886,339.64,Thomas Ridley & Son Ltd,
Children & Culture,Children's Social Care,Support Service and Management Costs,Schools Catering,Kitchen Supplies - Food and Beverages,17/05/2021,5532887,287.33,Thomas Ridley & Son Ltd,
Children & Culture,Children's Social Care,Support Service and Management Costs,Schools Catering,Kitchen Supplies - Food and Beverages,17/05/2021,5532890,955.73,Thomas Ridley & Son Ltd,
Children & Culture,Children's Social Care,Support Service and Management Costs,Schools Catering,Kitchen Supplies - Food and Beverages,17/05/2021,5532891,550.50,Thomas Ridley & Son Ltd,
Children & Culture,Children's Social Care,Support Service and Management Costs,Schools Catering,Kitchen Supplies - Food and Beverages,17/05/2021,5532893,301.09,Thomas Ridley & Son Ltd,
Children & Culture,Children's Social Care,Support Service and Management Costs,Schools Catering,Kitchen Supplies - Food and Beverages,17/05/2021,5532894,355.14,Thomas Ridley & Son Ltd,
Children & Culture,Children's Social Care,Support Service and Management Costs,Schools Catering,Kitchen Supplies - Food and Beverages,17/05/2021,5532895,300.83,Thomas Ridley & Son Ltd,
Children & Culture,Children's Social Care,Support Service and Management Costs,Schools Catering,Kitchen Supplies - Food and Beverages,17/05/2021,5532897,356.09,Thomas Ridley & Son Ltd,
Children & Culture,Children's Social Care,Support Service and Management Costs,Schools Catering,Kitchen Supplies - Food and Beverages,17/05/2021,5532898,637.70,Thomas Ridley & Son Ltd,
Children & Culture,Children's Social Care,Support Service and Management Costs,Schools Catering,Kitchen Supplies - Food and Beverages,17/05/2021,5532899,450.68,Thomas Ridley & Son Ltd,
Children & Culture,Children's Social Care,Support Service and Management Costs,Schools Catering,Kitchen Supplies - Food and Beverages,17/05/2021,5532900,427.30,Thomas Ridley & Son Ltd,
Children & Culture,Children's Social Care,Support Service and Management Costs,Schools Catering,Kitchen Supplies - Food and Beverages,17/05/2021,5532901,362.43,Thomas Ridley & Son Ltd,
Children & Culture,Children's Social Care,Support Service and Management Costs,Schools Catering,Kitchen Supplies - Food and Beverages,17/05/2021,5532902,263.58,Thomas Ridley & Son Ltd,
Children & Culture,Children's Social Care,Support Service and Management Costs,Schools Catering,Kitchen Supplies - Food and Beverages,17/05/2021,5532904,351.07,Thomas Ridley & Son Ltd,
Children & Culture,Children's Social Care,Support Service and Management Costs,Schools Catering,Kitchen Supplies - Food and Beverages,17/05/2021,5532905,414.57,Thomas Ridley & Son Ltd,
Children & Culture,Children's Social Care,Support Service and Management Costs,Schools Catering,Kitchen Supplies - Food and Beverages,17/05/2021,5532907,310.18,Thomas Ridley & Son Ltd,
Children & Culture,Children's Social Care,Support Service and Management Costs,Schools Catering,Kitchen Supplies - Food and Beverages,17/05/2021,5532908,258.05,Thomas Ridley & Son Ltd,
Children & Culture,Children's Social Care,Support Service and Management Costs,Schools Catering,Kitchen Supplies - Food and Beverages,17/05/2021,5532909,674.94,Thomas Ridley & Son Ltd,
Children & Culture,Children's Social Care,Support Service and Management Costs,Sch. Meals A/c - Central Production Unit,Kitchen Supplies - Food and Beverages,17/05/2021,5532910,"1,684.44",Thomas Ridley & Son Ltd,
Children & Culture,Children's Social Care,Support Service and Management Costs,Schools Catering,Kitchen Supplies - Food and Beverages,17/05/2021,5532911,283.53,Thomas Ridley & Son Ltd,
Children & Culture,Children's Social Care,Children Looked After,S23 Fam Pl P&V-F/Care,Childrens Act Section 23 - Placement Fee,17/05/2021,5535430,"3,171.60",Synergy Fostering Ltd,
Children & Culture,Children's Social Care,Children Looked After,S23 Fam Pl P&V-F/Care,Childrens Act Section 23 - Placement Fee,17/05/2021,5535431,"3,171.60",Synergy Fostering Ltd,
Children & Culture,Children's Social Care,Children Looked After,S23-Other-Semi-Ind. Unit,Childrens Act Section 23 - Placement Fee,17/05/2021,5536592,"4,635.68",ThamesCare,
Children & Culture,Education Services,Secondary Schools,PFI Hldg Account-Grouped Schoo,Payments to Private Contractors - Other Contractors,17/05/2021,5536891,"1,340,267.69",Tower Hamlets Schools LTD,
Children & Culture,Children's Social Care,Children Looked After,S23 Fam Pl P&V-F/Care,Childrens Act Section 23 - Placement Fee,17/05/2021,5537164,"5,185.80",CAPSTONE FOSTER CARE (SE) LTD,
Children & Culture,Education Services,Other Strategic Functions,SEN External Travel,Non Staff Transport Costs - Reimbursement,17/05/2021,5538551,"7,257.00",Mile End Car Hire Limited,
Children & Culture,Education Services,Other Strategic Functions,SEN External Travel,Non Staff Transport Costs - Reimbursement,17/05/2021,5538552,"6,871.00",Mile End Car Hire Limited,
Children & Culture,Education Services,Other Strategic Functions,SEN External Travel,Non Staff Transport Costs - Reimbursement,17/05/2021,5538560,"103,957.24",Lindel Services LTD - T/A Fox Transport,
Children & Culture,Education Services,Other Strategic Functions,CS Prem Retirement (Non-School,Services - Professional Fees - Audit Fees,17/05/2021,5538575,"19,185.03",CAPITA BUSINESS SERVICES LTD,
Children & Culture,Education Services,Other Strategic Functions,SEN External Travel,Non Staff Transport Costs - Reimbursement,17/05/2021,5538588,"41,792.00",Healthcare and Transport Services Group Ltd,
Children & Culture,Children's Social Care,Children Looked After,S23 Fam Pl In-Hse-F&F F/Care,Childrens Act Section 23 - Placement Fee,17/05/2021,5538677,"4,714.29",Five Rivers Childcare Limited,
Children & Culture,Children's Social Care,Children Looked After,S23 Fam Pl P&V-F/Care,Childrens Act Section 23 - Placement Fee,17/05/2021,5538678,"6,214.29",Five Rivers Childcare Limited,
Children & Culture,Children's Social Care,Children Looked After,S23 Fam Pl P&V-F/Care,Childrens Act Section 23 - Placement Fee,17/05/2021,5538679,"2,921.27",Five Rivers Childcare Limited,
Children & Culture,Children's Social Care,Children Looked After,S23 Fam Pl P&V-F/Care,Childrens Act Section 23 - Placement Fee,17/05/2021,5538680,"4,885.71",Five Rivers Childcare Limited,
Children & Culture,Children's Social Care,Children Looked After,S23 Fam Pl In-Hse-S/Term F/C,Childrens Act Section 23 - All Contact Expenses,17/05/2021,5539091,550.00,HOPE Superjobs Ltd,
Children & Culture,Children's Social Care,Services for young people,LAPS 1 - 8,Educational/Training Supplies - Curriculum Visits/Activities,19/05/2021,5226483,950.00,Parkwood Leisure LTD,
Children & Culture,Children's Social Care,Support Service and Management Costs,Schools Catering,Services - Professional Fees - Financial Services Fees,19/05/2021,5227813,-900.00,Parkwood Leisure LTD,
Children & Culture,No Service Specified,No Division Specified,CS - Parks & Events,Sundry Creditors - Rechargeable Works - Deposits,19/05/2021,5519890,300.00,NHS BLOOD & TRANSFER,
Children & Culture,Children's Social Care,Children Looked After,S23-Other-Semi-Ind. Unit,Childrens Act Section 23 - Placement Fee,19/05/2021,5530955,"3,955.71",Alpha Care Service Ltd,
Children & Culture,Children's Social Care,Children Looked After,S23-Other-Semi-Ind. Unit,Childrens Act Section 23 - Placement Fee,19/05/2021,5530956,290.00,Alpha Care Service Ltd,
Children & Culture,Children's Social Care,Children Looked After,S23-Other-Semi-Ind. Unit,Childrens Act Section 23 - Placement Fee,19/05/2021,5530957,"3,955.71",Alpha Care Service Ltd,
Children & Culture,Children's Social Care,Children Looked After,S23-Other-Semi-Ind. Unit,Childrens Act Section 23 - Placement Fee,19/05/2021,5530958,290.00,Alpha Care Service Ltd,
Children & Culture,Education Services,Other Strategic Functions,High Needs Out Of Borough Further Education Colleges,Third Party Payments - SEN Top Up Funding,19/05/2021,5531142,"6,388.04",London Design & Engineering UTC,
Children & Culture,Children's Social Care,Children Looked After,S23-Other-Semi-Ind. Unit,Childrens Act Section 23 - Placement Fee,19/05/2021,5532636,"42,900.00",Go Ahead Homes Ltd,
Children & Culture,Children's Social Care,Children Looked After,S23-Other-Semi-Ind. Unit,Childrens Act Section 23 - Spec Pymnts Miscellaneous,19/05/2021,5532649,692.00,HAMLETTS LTD,
Children & Culture,Children's Social Care,Children Looked After,S23 Fam Pl P&V-F/Care,Childrens Act Section 23 - Commissioned Services,19/05/2021,5532654,"13,980.00",London Councils,
Children & Culture,No Service Specified,No Division Specified,Capital-Minor Works (SC),Building Works - Main Works,19/05/2021,5532690,"4,950.00",Potter Raper & Partnership,
Children & Culture,Children's Social Care,Children Looked After,Leaving Care-UASC,Leaving Care Financial Assistance - Reg Plan Maint L-Allow,19/05/2021,5532791,338.57,Pangea Support Services,
Children & Culture,Children's Social Care,Children Looked After,Leaving Care-UASC,Leaving Care Financial Assistance - Supp Accom/Hous Rents,19/05/2021,5532791,"1,157.14",Pangea Support Services,
Children & Culture,Children's Social Care,Children Looked After,C.B.C & Fam.Prev/Support-Mgmnt,Third Party Payments - Voluntary Associations,19/05/2021,5532800,"42,491.50",Volunteer Centre Tower Hamlets,
Children & Culture,Children's Social Care,Support Service and Management Costs,Schools Catering,Kitchen Supplies - Food and Beverages,19/05/2021,5532914,430.59,Thomas Ridley & Son Ltd,
Children & Culture,Children's Social Care,Support Service and Management Costs,Schools Catering,Kitchen Supplies - Food and Beverages,19/05/2021,5532915,683.41,Thomas Ridley & Son Ltd,
Children & Culture,Children's Social Care,Support Service and Management Costs,Schools Catering,Kitchen Supplies - Food and Beverages,19/05/2021,5532916,416.86,Thomas Ridley & Son Ltd,
Children & Culture,Children's Social Care,Support Service and Management Costs,Schools Catering,Kitchen Supplies - Food and Beverages,19/05/2021,5532918,252.48,Thomas Ridley & Son Ltd,
Children & Culture,Children's Social Care,Support Service and Management Costs,Schools Catering,Kitchen Supplies - Food and Beverages,19/05/2021,5532919,524.28,Thomas Ridley & Son Ltd,
Children & Culture,Children's Social Care,Support Service and Management Costs,Swanlea,Kitchen Supplies - Food and Beverages,19/05/2021,5532920,615.46,Thomas Ridley & Son Ltd,
Children & Culture,Children's Social Care,Support Service and Management Costs,Schools Catering,Kitchen Supplies - Food and Beverages,19/05/2021,5532921,595.13,Thomas Ridley & Son Ltd,
Children & Culture,Children's Social Care,Support Service and Management Costs,Schools Catering,Kitchen Supplies - Food and Beverages,19/05/2021,5532922,301.50,Thomas Ridley & Son Ltd,
Children & Culture,Children's Social Care,Support Service and Management Costs,Schools Catering,Kitchen Supplies - Food and Beverages,19/05/2021,5532923,316.00,Thomas Ridley & Son Ltd,
Children & Culture,Children's Social Care,Support Service and Management Costs,Schools Catering,Kitchen Supplies - Food and Beverages,19/05/2021,5532924,549.03,Thomas Ridley & Son Ltd,
Children & Culture,Children's Social Care,Support Service and Management Costs,Schools Catering,Kitchen Supplies - Food and Beverages,19/05/2021,5532925,565.83,Thomas Ridley & Son Ltd,
Children & Culture,Children's Social Care,Support Service and Management Costs,Schools Catering,Kitchen Supplies - Food and Beverages,19/05/2021,5532927,381.06,Thomas Ridley & Son Ltd,
Children & Culture,Children's Social Care,Support Service and Management Costs,Schools Catering,Kitchen Supplies - Food and Beverages,19/05/2021,5532928,540.66,Thomas Ridley & Son Ltd,
Children & Culture,Children's Social Care,Support Service and Management Costs,Schools Catering,Kitchen Supplies - Food and Beverages,19/05/2021,5532929,356.73,Thomas Ridley & Son Ltd,
Children & Culture,Children's Social Care,Support Service and Management Costs,Schools Catering,Kitchen Supplies - Food and Beverages,19/05/2021,5532930,681.16,Thomas Ridley & Son Ltd,
Children & Culture,Children's Social Care,Support Service and Management Costs,Schools Catering,Kitchen Supplies - Food and Beverages,19/05/2021,5532931,606.23,Thomas Ridley & Son Ltd,
Children & Culture,Children's Social Care,Support Service and Management Costs,Schools Catering,Kitchen Supplies - Food and Beverages,19/05/2021,5532932,414.06,Thomas Ridley & Son Ltd,
Children & Culture,Children's Social Care,Support Service and Management Costs,Schools Catering,Kitchen Supplies - Food and Beverages,19/05/2021,5532933,651.40,Thomas Ridley & Son Ltd,
Children & Culture,Children's Social Care,Support Service and Management Costs,Schools Catering,Kitchen Supplies - Food and Beverages,19/05/2021,5532934,428.37,Thomas Ridley & Son Ltd,
Children & Culture,Children's Social Care,Support Service and Management Costs,Schools Catering,Kitchen Supplies - Food and Beverages,19/05/2021,5532936,729.03,Thomas Ridley & Son Ltd,
Children & Culture,Children's Social Care,Support Service and Management Costs,Schools Catering,Kitchen Supplies - Food and Beverages,19/05/2021,5532937,266.44,Thomas Ridley & Son Ltd,
Children & Culture,Children's Social Care,Support Service and Management Costs,Schools Catering,Kitchen Supplies - Food and Beverages,19/05/2021,5532939,444.24,Thomas Ridley & Son Ltd,
Children & Culture,Children's Social Care,Support Service and Management Costs,Schools Catering,Kitchen Supplies - Food and Beverages,19/05/2021,5532940,326.89,Thomas Ridley & Son Ltd,
Children & Culture,Children's Social Care,Support Service and Management Costs,Schools Catering,Kitchen Supplies - Food and Beverages,19/05/2021,5532943,319.68,Thomas Ridley & Son Ltd,
Children & Culture,Children's Social Care,Support Service and Management Costs,Schools Catering,Kitchen Supplies - Food and Beverages,19/05/2021,5532945,566.26,Thomas Ridley & Son Ltd,
Children & Culture,Children's Social Care,Support Service and Management Costs,Schools Catering,Kitchen Supplies - Food and Beverages,19/05/2021,5532947,374.56,Thomas Ridley & Son Ltd,
Children & Culture,Children's Social Care,Support Service and Management Costs,Schools Catering,Kitchen Supplies - Food and Beverages,19/05/2021,5532948,486.73,Thomas Ridley & Son Ltd,
Children & Culture,Children's Social Care,Support Service and Management Costs,Schools Catering,Kitchen Supplies - Food and Beverages,19/05/2021,5532950,364.89,Thomas Ridley & Son Ltd,
Children & Culture,Children's Social Care,Support Service and Management Costs,Schools Catering,Kitchen Supplies - Food and Beverages,19/05/2021,5532951,732.72,Thomas Ridley & Son Ltd,
Children & Culture,Children's Social Care,Support Service and Management Costs,Schools Catering,Kitchen Supplies - Food and Beverages,19/05/2021,5532953,439.77,Thomas Ridley & Son Ltd,
Children & Culture,Children's Social Care,Support Service and Management Costs,Schools Catering,Kitchen Supplies - Food and Beverages,19/05/2021,5532955,605.17,Thomas Ridley & Son Ltd,
Children & Culture,Children's Social Care,Support Service and Management Costs,Sch. Meals A/c - Central Production Unit,Kitchen Supplies - Food and Beverages,19/05/2021,5532956,"2,203.76",Thomas Ridley & Son Ltd,
Children & Culture,Children's Social Care,Support Service and Management Costs,Schools Catering,Kitchen Supplies - Food and Beverages,19/05/2021,5532957,782.31,Thomas Ridley & Son Ltd,
Children & Culture,Children's Social Care,Support Service and Management Costs,Schools Catering,Kitchen Supplies - Food and Beverages,19/05/2021,5532961,423.61,Thomas Ridley & Son Ltd,
Children & Culture,Children's Social Care,Support Service and Management Costs,Schools Catering,Kitchen Supplies - Food and Beverages,19/05/2021,5532962,311.00,Thomas Ridley & Son Ltd,
Children & Culture,Children's Social Care,Support Service and Management Costs,Schools Catering,Kitchen Supplies - Food and Beverages,19/05/2021,5532963,491.79,Thomas Ridley & Son Ltd,
Children & Culture,Children's Social Care,Support Service and Management Costs,Schools Catering,Kitchen Supplies - Food and Beverages,19/05/2021,5532964,292.07,Thomas Ridley & Son Ltd,
Children & Culture,Children's Social Care,Support Service and Management Costs,Schools Catering,Kitchen Supplies - Food and Beverages,19/05/2021,5532965,686.60,Thomas Ridley & Son Ltd,
Children & Culture,Children's Social Care,Support Service and Management Costs,Schools Catering,Kitchen Supplies - Food and Beverages,19/05/2021,5532966,394.95,Thomas Ridley & Son Ltd,
Children & Culture,Children's Social Care,Support Service and Management Costs,Schools Catering,Kitchen Supplies - Food and Beverages,19/05/2021,5532967,461.74,Thomas Ridley & Son Ltd,
Children & Culture,Children's Social Care,Support Service and Management Costs,Schools Catering,Kitchen Supplies - Food and Beverages,19/05/2021,5532968,496.12,Thomas Ridley & Son Ltd,
Children & Culture,Children's Social Care,Support Service and Management Costs,Schools Catering,Kitchen Supplies - Food and Beverages,19/05/2021,5532970,540.34,Thomas Ridley & Son Ltd,
Children & Culture,Children's Social Care,Support Service and Management Costs,Schools Catering,Kitchen Supplies - Food and Beverages,19/05/2021,5532971,573.51,Thomas Ridley & Son Ltd,
Children & Culture,Children's Social Care,Support Service and Management Costs,Schools Catering,Kitchen Supplies - Food and Beverages,19/05/2021,5532973,373.74,Thomas Ridley & Son Ltd,
Children & Culture,No Service Specified,No Division Specified,Capital-Minor Works (SC),Building Works - Main Works,19/05/2021,5533208,"3,750.00",Natural Elements UK Ltd,
Children & Culture,Children's Social Care,Children Looked After,S23-Other-Semi-Ind. Unit,Childrens Act Section 23 - Placement Fee,19/05/2021,5533873,"-3,955.71",Alpha Care Service Ltd,
Children & Culture,Children's Social Care,Children Looked After,S23-Other-Semi-Ind. Unit,Childrens Act Section 23 - Placement Fee,19/05/2021,5533875,-290.00,Alpha Care Service Ltd,
Children & Culture,Children's Social Care,Support Service and Management Costs,Schools Catering,Kitchen Supplies - Food and Beverages,19/05/2021,5534925,302.79,William White Meats Ltd,
Children & Culture,Children's Social Care,Support Service and Management Costs,Swanlea,Kitchen Supplies - Food and Beverages,19/05/2021,5534931,337.30,William White Meats Ltd,
Children & Culture,Children's Social Care,Children Looked After,Leaving Care-UASC,Leaving Care Financial Assistance - Reg Plan Maint L-Allow,19/05/2021,5535224,338.57,Pangea Support Services,
Children & Culture,Children's Social Care,Children Looked After,Leaving Care-UASC,Leaving Care Financial Assistance - Supp Accom/Hous Rents,19/05/2021,5535224,"1,157.14",Pangea Support Services,
Children & Culture,Children's Social Care,Children Looked After,Leaving Care-UASC,Leaving Care Financial Assistance - Reg Plan Maint L-Allow,19/05/2021,5535228,338.57,Pangea Support Services,
Children & Culture,Children's Social Care,Children Looked After,Leaving Care-UASC,Leaving Care Financial Assistance - Supp Accom/Hous Rents,19/05/2021,5535228,"1,157.14",Pangea Support Services,
Children & Culture,Children's Social Care,Children Looked After,Leaving Care-UASC,Leaving Care Financial Assistance - Supp Accom/Hous Rents,19/05/2021,5535230,"1,157.14",Pangea Support Services,
Children & Culture,Children's Social Care,Children Looked After,Leaving Care-UASC,Leaving Care Financial Assistance - Reg Plan Maint L-Allow,19/05/2021,5535870,338.57,Pangea Support Services,
Children & Culture,Children's Social Care,Children Looked After,Leaving Care-UASC,Leaving Care Financial Assistance - Supp Accom/Hous Rents,19/05/2021,5535870,"1,157.14",Pangea Support Services,
Children & Culture,Children's Social Care,Children Looked After,Leaving Care-UASC,Leaving Care Financial Assistance - Reg Plan Maint L-Allow,19/05/2021,5535879,338.57,Pangea Support Services,
Children & Culture,Children's Social Care,Children Looked After,Leaving Care-UASC,Leaving Care Financial Assistance - Supp Accom/Hous Rents,19/05/2021,5535879,"1,157.14",Pangea Support Services,
Children & Culture,Children's Social Care,Children Looked After,S23-Other-Semi-Ind. Unit,Childrens Act Section 23 - Placement Fee,19/05/2021,5536594,"5,132.36",ThamesCare,
Children & Culture,Education Services,Secondary Schools,PFI Hldg Account-Grouped Schoo,Repairs and Maintenance - Responsive - Buildings,19/05/2021,5537143,604.50,Tower Hamlets Schools LTD,
Children & Culture,No Service Specified,No Division Specified,Capital-Minor Works (SC),Building Works - Main Works,19/05/2021,5537145,"1,081.93",Tower Hamlets Schools LTD,
Children & Culture,Education Services,Secondary Schools,PFI Hldg Account-Grouped Schoo,Repairs and Maintenance - Responsive - Buildings,19/05/2021,5537146,760.48,Tower Hamlets Schools LTD,
Children & Culture,Education Services,Secondary Schools,PFI Hldg Account-Grouped Schoo,Repairs and Maintenance - Responsive - Buildings,19/05/2021,5537147,"2,376.50",Tower Hamlets Schools LTD,
Children & Culture,Education Services,Secondary Schools,PFI Hldg Account-Grouped Schoo,Repairs and Maintenance - Responsive - Buildings,19/05/2021,5537150,"1,037.90",Tower Hamlets Schools LTD,
Children & Culture,Education Services,Secondary Schools,PFI Hldg Account-Grouped Schoo,Repairs and Maintenance - Responsive - Buildings,19/05/2021,5537156,"1,901.20",Tower Hamlets Schools LTD,
Children & Culture,No Service Specified,No Division Specified,Capital-Minor Works (SC),Building Works - Main Works,19/05/2021,5537157,"2,140.00",Tower Hamlets Schools LTD,
Children & Culture,Education Services,Secondary Schools,PFI Hldg Account-Grouped Schoo,Repairs and Maintenance - Responsive - Buildings,19/05/2021,5537158,"6,369.02",Tower Hamlets Schools LTD,
Children & Culture,Children's Social Care,Children Looked After,S23 Fam Pl P&V-F/Care,Childrens Act Section 23 - Placement Fee,19/05/2021,5537326,"3,653.66",Select Fostercare Services Ltd,
Children & Culture,No Service Specified,No Division Specified,Capital-Minor Works (SC),Building Works - Main Works,19/05/2021,5537442,"204,427.36",Kier Construciton Ltd,
Children & Culture,Children's Social Care,Children Looked After,S23 Fam Pl P&V-F/Care,Childrens Act Section 23 - Placement Fee,19/05/2021,5537748,"4,977.60",COMPASS FOSTERING LONDON LIMITED,
Children & Culture,Children's Social Care,Children Looked After,S23 Fam Pl P&V-F/Care,Childrens Act Section 23 - Placement Fee,19/05/2021,5537749,"5,866.20",COMPASS FOSTERING LONDON LIMITED,
Children & Culture,Education Services,Other Strategic Functions,Governor Service Trading Account,Third Party Payments - Voluntary Associations,19/05/2021,5538564,"1,863.00",The National Governors Association,
Children & Culture,Education Services,Other Strategic Functions,Governor Service Trading Account,Third Party Payments - Voluntary Associations,19/05/2021,5538565,"6,240.00",The National Governors Association,
Children & Culture,Education Services,Other Strategic Functions,Governor Service Trading Account,Third Party Payments - Voluntary Associations,19/05/2021,5538566,620.00,The National Governors Association,
Children & Culture,Children's Social Care,Children Looked After,LCS/Allowances-Accom,Leaving Care Financial Assistance - Supp Accom/Hous Rents,19/05/2021,5538617,"3,238.60",Inclusive Care Support Ltd,
Children & Culture,Children's Social Care,Children Looked After,S23 Fam Pl In-Hse-For Adopt,Childrens Act Section 23 - Placement Fee,19/05/2021,5538650,889.00,Families for Childrens Trust,
Children & Culture,Children's Social Care,Children Looked After,S23 Fam Pl In-Hse-For Adopt,Childrens Act Section 23 - Placement Fee,19/05/2021,5538651,889.00,Families for Childrens Trust,
Children & Culture,Children's Social Care,Children Looked After,S23 Fam Pl In-Hse-For Adopt,Childrens Act Section 23 - Placement Fee,19/05/2021,5538652,"28,507.00",Families for Childrens Trust,
Children & Culture,Children's Social Care,Children Looked After,S23 Fam Pl P&V-F/Care,Childrens Act Section 23 - Placement Fee,19/05/2021,5538863,"3,653.66",Select Fostercare Services Ltd,
Children & Culture,Children's Social Care,Children Looked After,LCS/Allowances-Accom,Leaving Care Financial Assistance - Supported Living,19/05/2021,5538911,"1,070.20",Sanctuary Housing,
Children & Culture,Children's Social Care,Children Looked After,S23-Other-Mother & Baby Unit,Childrens Act Section 23 - Non-Contact Taxi Costs,19/05/2021,5539014,780.00,Mile End Car Hire Limited,
Children & Culture,Cultural and Related Services,Open Spaces,Victoria Park,Uniforms & Clothing,19/05/2021,5539028,614.14,SMI Group,
Children & Culture,Children's Social Care,Children Looked After,S23 Fam Pl P&V-F/Care,Childrens Act Section 23 - Placement Fee,19/05/2021,5539052,"3,159.43",Five Rivers Childcare Limited,
Children & Culture,Children's Social Care,Children Looked After,S23 Fam Pl In-Hse-S/Term F/C,Childrens Act Section 23 - All Contact Expenses,19/05/2021,5539089,732.50,HOPE Superjobs Ltd,
Children & Culture,Children's Social Care,Children Looked After,S23 Fam Pl In-Hse-S/Term F/C,Childrens Act Section 23 - All Contact Expenses,19/05/2021,5539090,660.00,HOPE Superjobs Ltd,
Children & Culture,Children's Social Care,Children Looked After,S23 Fam Pl In-Hse-S/Term F/C,Childrens Act Section 23 - All Contact Expenses,19/05/2021,5539093,660.00,HOPE Superjobs Ltd,
Children & Culture,Children's Social Care,Children Looked After,S23 Fam Pl In-Hse-S/Term F/C,Childrens Act Section 23 - All Contact Expenses,19/05/2021,5539094,660.00,HOPE Superjobs Ltd,
Children & Culture,Children's Social Care,Children Looked After,S23 Fam Pl In-Hse-S/Term F/C,Childrens Act Section 23 - All Contact Expenses,19/05/2021,5539095,770.00,HOPE Superjobs Ltd,
Children & Culture,Children's Social Care,Children Looked After,S23 Fam Pl In-Hse-S/Term F/C,Childrens Act Section 23 - All Contact Expenses,19/05/2021,5539096,880.00,HOPE Superjobs Ltd,
Children & Culture,Children's Social Care,Commissioning and Social Work,Family Support & Protection Team 1,Recruitment Agency Costs,19/05/2021,5539175,"-1,152.09",Sanctuary Personnel Ltd,
Children & Culture,Education Services,Other Strategic Functions,High Needs Other Boroughs,Third Party Payments - SEN Placement Funding,19/05/2021,5539205,"27,804.00",Medway Council,
Children & Culture,Children's Social Care,Commissioning and Social Work,MASH Team,Recruitment Agency Costs,19/05/2021,5539213,"5,672.88",Sanctuary Personnel Ltd,
Children & Culture,Education Services,Other Strategic Functions,High Needs Academies & Free Schs,Third Party Payments - SEN Top Up Funding,19/05/2021,5539240,"4,612.50",The Complete Works Ltd,
Children & Culture,Education Services,Other Strategic Functions,High Needs Academies & Free Schs,Third Party Payments - SEN Top Up Funding,19/05/2021,5539241,"4,612.50",The Complete Works Ltd,
Children & Culture,Education Services,Other Strategic Functions,High Needs Academies & Free Schs,Third Party Payments - SEN Top Up Funding,19/05/2021,5539242,"7,175.00",The Complete Works Ltd,
Children & Culture,Education Services,Other Strategic Functions,High Needs Academies & Free Schs,Third Party Payments - SEN Top Up Funding,19/05/2021,5539243,"7,175.00",The Complete Works Ltd,
Children & Culture,Education Services,Other Strategic Functions,High Needs Academies & Free Schs,Third Party Payments - SEN Top Up Funding,19/05/2021,5539244,"4,612.50",The Complete Works Ltd,
Children & Culture,Education Services,Other Strategic Functions,High Needs Academies & Free Schs,Third Party Payments - SEN Top Up Funding,19/05/2021,5539245,"12,172.00",The Complete Works Ltd,
Children & Culture,Education Services,Other Strategic Functions,High Needs Academies & Free Schs,Third Party Payments - SEN Top Up Funding,19/05/2021,5539246,"7,175.00",The Complete Works Ltd,
Children & Culture,Children's Social Care,Children Looked After,S23 Fam Pl In-Hse-S/Term F/C,Childrens Act Section 23 - All Contact Expenses,19/05/2021,5539310,280.00,HOPE Superjobs Ltd,
Children & Culture,Children's Social Care,Support Service and Management Costs,Schools Catering,Kitchen Supplies - Food and Beverages,19/05/2021,5539336,"6,042.92",Morpeth School,
Children & Culture,Cultural and Related Services,Recreation & Sport,GLL Sports Centres,Payments to Private Contractors - Private Contractor,19/05/2021,5539357,"40,000.00",Parkwood Leisure LTD,
Children & Culture,Children's Social Care,Children Looked After,S23-Resi-P&V/OLA-Child Home,Childrens Act Section 23 - Placement Fee,19/05/2021,5539536,"5,440.00",Oasis Adolescent Services Limited,
Children & Culture,Children's Social Care,Children Looked After,S23-Other-Semi-Ind. Unit,Childrens Act Section 23 - Placement Fee,19/05/2021,5539542,"2,610.00",Rosedene Supported Living Ltd,
Children & Culture,Education Services,Other Strategic Functions,Property & Asset Management,Services - Professional Fees - Analysts Fees,19/05/2021,5539553,"1,125.00",Redacted Section 40 FOI Act,
Children & Culture,Cultural and Related Services,Open Spaces,Parks & Open Spaces Man&Admin,Grounds Maintenance - Contract - Horticultural Maintenance,21/05/2021,5524923,918.75,CITY SUBURBAN TREE SURGEONS,
Children & Culture,Cultural and Related Services,Open Spaces,Parks & Open Spaces Man&Admin,Grounds Maintenance - Contract - Horticultural Maintenance,21/05/2021,5524924,530.00,CITY SUBURBAN TREE SURGEONS,
Children & Culture,Children's Social Care,Support Service and Management Costs,Schools Catering,Repairs and Maintenance - Responsive - General,21/05/2021,5527602,250.00,Swiftclean LTD,
Children & Culture,Children's Social Care,Support Service and Management Costs,Schools Catering,Repairs and Maintenance - Responsive - General,21/05/2021,5527603,250.00,Swiftclean LTD,
Children & Culture,Children's Social Care,Support Service and Management Costs,Schools Catering,Repairs and Maintenance - Responsive - General,21/05/2021,5527604,250.00,Swiftclean LTD,
Children & Culture,Children's Social Care,Support Service and Management Costs,Schools Catering,Repairs and Maintenance - Responsive - General,21/05/2021,5527605,250.00,Swiftclean LTD,
Children & Culture,Children's Social Care,Support Service and Management Costs,Schools Catering,Repairs and Maintenance - Responsive - General,21/05/2021,5529216,250.00,Swiftclean LTD,
Children & Culture,Children's Social Care,Children Looked After,S23 Fam Pl P&V-F/Care,Childrens Act Section 23 - Placement Fee,21/05/2021,5532780,"4,050.00",St Christopher's Fellowship,
Children & Culture,Children's Social Care,Children Looked After,S23 Fam Pl P&V-F/Care,Childrens Act Section 23 - Placement Fee,21/05/2021,5532781,"4,500.00",St Christopher's Fellowship,
Children & Culture,Education Services,Other Strategic Functions,Special Education Needs DSG,Third Party Payments - SEN Top Up Funding,21/05/2021,5533209,"4,063.08",UK Behaviour Analysis & Research Group CIC,
Children & Culture,Children's Social Care,Children Looked After,S23-Resi-P&V/OLA-Child Home,Childrens Act Section 23 - Placement Fee,21/05/2021,5533213,"16,650.00",Hexagon Care Services,
Children & Culture,Education Services,Other Strategic Functions,High Needs Out Of Borough Further Education Colleges,Third Party Payments - SEN Top Up Funding,21/05/2021,5533223,"5,396.52",Eltham College,
Children & Culture,Education Services,Other Strategic Functions,High Needs Out Of Borough Further Education Colleges,Third Party Payments - SEN Top Up Funding,21/05/2021,5533223,"8,335.00",Eltham College,
Children & Culture,Cultural and Related Services,Culture & Heritage,Arts-Park Events,Events & Exhibitions,21/05/2021,5533233,550.00,Arts Without Borders,
Children & Culture,Education Services,Other Strategic Functions,Property & Asset Management,Services - Professional Fees - Structural Surveys,21/05/2021,5533245,"1,724.00",Redacted Section 40 FOI Act,
Children & Culture,Children's Social Care,Support Service and Management Costs,Schools Catering,Kitchen Supplies - Food and Beverages,21/05/2021,5533265,283.03,Thomas Ridley & Son Ltd,
Children & Culture,Children's Social Care,Support Service and Management Costs,Schools Catering,Kitchen Supplies - Food and Beverages,21/05/2021,5533266,326.04,Thomas Ridley & Son Ltd,
Children & Culture,Children's Social Care,Support Service and Management Costs,Schools Catering,Kitchen Supplies - Food and Beverages,21/05/2021,5533267,570.07,Thomas Ridley & Son Ltd,
Children & Culture,Children's Social Care,Support Service and Management Costs,Sch. Meals A/c - Central Production Unit,Kitchen Supplies - Food and Beverages,21/05/2021,5533268,499.22,Thomas Ridley & Son Ltd,
Children & Culture,Children's Social Care,Support Service and Management Costs,Swanlea,Kitchen Supplies - Food and Beverages,21/05/2021,5533271,614.49,Thomas Ridley & Son Ltd,
Children & Culture,Children's Social Care,Support Service and Management Costs,Schools Catering,Kitchen Supplies - Food and Beverages,21/05/2021,5533272,882.73,Thomas Ridley & Son Ltd,
Children & Culture,Children's Social Care,Support Service and Management Costs,Schools Catering,Kitchen Supplies - Food and Beverages,21/05/2021,5533273,384.49,Thomas Ridley & Son Ltd,
Children & Culture,Children's Social Care,Support Service and Management Costs,Schools Catering,Kitchen Supplies - Food and Beverages,21/05/2021,5533275,"2,100.24",Thomas Ridley & Son Ltd,
Children & Culture,Children's Social Care,Support Service and Management Costs,Schools Catering,Kitchen Supplies - Food and Beverages,21/05/2021,5533277,470.30,Thomas Ridley & Son Ltd,
Children & Culture,Children's Social Care,Service Strategy,FSP Sect 17 - Team 1,Childrens Act Section 17 - Other Childcare Support,21/05/2021,5533340,433.93,Little St Matthias Pre School,
Children & Culture,Children's Social Care,Support Service and Management Costs,Sch. Meals A/c - Redlands/Smithy,Catering - Hospitality,21/05/2021,5533342,"5,000.00",Tiffin Sandwiches,
Children & Culture,Children's Social Care,Support Service and Management Costs,Sch. Meals A/c - Osmani,Catering - Hospitality,21/05/2021,5533343,760.00,Tiffin Sandwiches,
Children & Culture,Children's Social Care,Support Service and Management Costs,Schools Catering,Kitchen Supplies - Food and Beverages,21/05/2021,5533441,256.89,Prescott-Thomas LTD.,
Children & Culture,Education Services,Early Years,Children Centre Central Team,Medical Requisites,21/05/2021,5533883,283.80,Supply Chain Coordination Limited (NHS Supply Chain),
Children & Culture,Children's Social Care,Service Strategy,FSP Sect 17 - Team 1,Childrens Act Section 17 - Other Childcare Support,21/05/2021,5533886,433.93,Little St Matthias Pre School,
Children & Culture,Children's Social Care,Support Service and Management Costs,Schools Catering,Kitchen Supplies - Food and Beverages,21/05/2021,5534934,331.55,William White Meats Ltd,
Children & Culture,Children's Social Care,Support Service and Management Costs,Schools Catering,Kitchen Supplies - Food and Beverages,21/05/2021,5534936,385.07,William White Meats Ltd,
Children & Culture,Children's Social Care,Support Service and Management Costs,Schools Catering,Kitchen Supplies - Food and Beverages,21/05/2021,5534940,318.05,William White Meats Ltd,
Children & Culture,Children's Social Care,Support Service and Management Costs,Schools Catering,Kitchen Supplies - Food and Beverages,21/05/2021,5534943,347.85,William White Meats Ltd,
Children & Culture,Children's Social Care,Support Service and Management Costs,Sch. Meals A/c - Central Production Unit,Kitchen Supplies - Food and Beverages,21/05/2021,5534944,"1,037.72",William White Meats Ltd,
Children & Culture,Children's Social Care,Children Looked After,LCS/Allowances-Accom,Leaving Care Financial Assistance - Supp Accom/Hous Rents,21/05/2021,5535202,"1,257.12",Primrose care & support,
Children & Culture,Children's Social Care,Children Looked After,LCS/Allowances-Accom,Leaving Care Financial Assistance - Supported Living,21/05/2021,5535202,342.72,Primrose care & support,
Children & Culture,Children's Social Care,Family Support Services,CNN Pool: Joint Family Support,Social Care - Homecare,21/05/2021,5537101,495.01,Carebridge Staffing Ltd,
Children & Culture,Education Services,Services to Young People and Other Community Learners,Supported Housing - Young People,Third Party Payments - Voluntary Associations,21/05/2021,5539202,"36,500.00",Providence Row Housing Association,
Children & Culture,Education Services,Other Strategic Functions,Children with Complex Needs,Third Party Payments - High Needs Specialist Equipment,21/05/2021,5539487,"2,402.00",Morpeth School,
Children & Culture,Children's Social Care,Children Looked After,S23-Other-Mother & Baby Unit,Childrens Act Section 23 - Placement Fee,21/05/2021,5540362,"3,317.00",National Fostering Agency,
Children & Culture,Children's Social Care,Children Looked After,S23-Other-Mother & Baby Unit,Childrens Act Section 23 - Placement Fee,21/05/2021,5540363,"3,317.00",National Fostering Agency,
Children & Culture,Children's Social Care,Children Looked After,S23-Other-Mother & Baby Unit,Childrens Act Section 23 - Placement Fee,21/05/2021,5540364,"2,996.00",National Fostering Agency,
Children & Culture,Children's Social Care,Children Looked After,S23-Other-Mother & Baby Unit,Childrens Act Section 23 - Placement Fee,21/05/2021,5540365,535.00,National Fostering Agency,
Children & Culture,Children's Social Care,Children Looked After,S23-Other-Mother & Baby Unit,Childrens Act Section 23 - Placement Fee,21/05/2021,5540368,"2,996.00",National Fostering Agency,
Children & Culture,Children's Social Care,Children Looked After,S23-Other-Mother & Baby Unit,Childrens Act Section 23 - Placement Fee,21/05/2021,5540369,"3,210.00",National Fostering Agency,
Children & Culture,Children's Social Care,Children Looked After,S23-Other-Mother & Baby Unit,Childrens Act Section 23 - Placement Fee,21/05/2021,5540370,"3,317.00",National Fostering Agency,
Children & Culture,Children's Social Care,Children Looked After,S23-Other-Mother & Baby Unit,Childrens Act Section 23 - Placement Fee,21/05/2021,5540371,"3,210.00",National Fostering Agency,
Children & Culture,Children's Social Care,Children Looked After,S23-Resi-P&V/OLA-Child Home,Childrens Act Section 23 - Placement Fee,21/05/2021,5540392,"22,692.86",Halliwell Homes,
Children & Culture,Education Services,Other Strategic Functions,High Needs Out Of Borough Further Education Colleges,Third Party Payments - SEN Top Up Funding,21/05/2021,5540632,"28,720.00",Cambridge Regional College,
Children & Culture,Children's Social Care,Children Looked After,S23-Resi-P&V/OLA-Child Home,Childrens Act Section 23 - Placement Fee,21/05/2021,5540648,"17,199.84",Julia Stewart Ltd,
Children & Culture,Children's Social Care,Children Looked After,Virtual School PPG,Agency Staff - Associations,21/05/2021,5540664,"1,019.88",Academics ltd,
Children & Culture,Children's Social Care,Children Looked After,Virtual School PPG,Agency Staff - Associations,21/05/2021,5540665,"1,274.85",Academics ltd,
Children & Culture,Children's Social Care,Children Looked After,Virtual School PPG,Agency Staff - Associations,21/05/2021,5540666,"1,019.88",Academics ltd,
Children & Culture,Children's Social Care,Children Looked After,Virtual School PPG,Agency Staff - Associations,21/05/2021,5540667,"1,019.88",Academics ltd,
Children & Culture,Children's Social Care,Children Looked After,Virtual School PPG,Agency Staff - Associations,21/05/2021,5540668,764.91,Academics ltd,
Children & Culture,Children's Social Care,Children Looked After,Virtual School PPG,Agency Staff - Associations,21/05/2021,5540669,254.97,Academics ltd,
Children & Culture,Children's Social Care,Family Support Services,IPST S17 NRPF,Childrens Act Section 17 - Other Placements Bed & Breakfast,21/05/2021,5540689,"4,250.00",Finefair Management,
Children & Culture,Children's Social Care,Family Support Services,IPST S17 NRPF,Childrens Act Section 17 - Other Placements Bed & Breakfast,21/05/2021,5540690,"2,550.00",Finefair Management,
Children & Culture,Children's Social Care,Family Support Services,IPST S17 NRPF,Childrens Act Section 17 - Other Placements Bed & Breakfast,21/05/2021,5540691,"2,400.00",Finefair Management,
Children & Culture,Children's Social Care,Family Support Services,IPST S17 NRPF,Childrens Act Section 17 - Other Placements Bed & Breakfast,21/05/2021,5540692,"1,350.00",Finefair Management,
Children & Culture,Children's Social Care,Family Support Services,IPST S17 NRPF,Childrens Act Section 17 - Other Placements Bed & Breakfast,21/05/2021,5540693,"1,200.00",Finefair Management,
Children & Culture,Children's Social Care,Family Support Services,IPST S17 NRPF,Childrens Act Section 17 - Other Placements Bed & Breakfast,21/05/2021,5540694,"1,500.00",Finefair Management,
Children & Culture,Children's Social Care,Family Support Services,IPST S17 NRPF,Childrens Act Section 17 - Other Placements Bed & Breakfast,21/05/2021,5540696,"2,160.00",Finefair Management,
Children & Culture,Children's Social Care,Family Support Services,IPST S17 NRPF,Childrens Act Section 17 - Other Placements Bed & Breakfast,21/05/2021,5540697,"2,400.00",Finefair Management,
Children & Culture,Children's Social Care,Family Support Services,IPST S17 NRPF,Childrens Act Section 17 - Other Placements Bed & Breakfast,21/05/2021,5540699,"2,160.00",Finefair Management,
Children & Culture,Children's Social Care,Support Service and Management Costs,Schools Catering,Kitchen Supplies - Food and Beverages,21/05/2021,5540728,374.03,Thomas Ridley & Son Ltd,
Children & Culture,Children's Social Care,Support Service and Management Costs,Schools Catering,Kitchen Supplies - Food and Beverages,21/05/2021,5540729,374.03,Thomas Ridley & Son Ltd,
Children & Culture,Education Services,Other Strategic Functions,Schools Library,Services - Professional Fees - Design Fees,21/05/2021,5540808,500.00,WILLIAM DAVIS PRIMARY SCHOOL,
Children & Culture,Children's Social Care,Support Service and Management Costs,Schools Catering,Kitchen Supplies - Food and Beverages,24/05/2021,5533367,659.86,Thomas Ridley & Son Ltd,
Children & Culture,Children's Social Care,Support Service and Management Costs,Schools Catering,Kitchen Supplies - Food and Beverages,24/05/2021,5533370,257.67,Thomas Ridley & Son Ltd,
Children & Culture,Children's Social Care,Support Service and Management Costs,Schools Catering,Kitchen Supplies - Food and Beverages,24/05/2021,5533371,478.12,Thomas Ridley & Son Ltd,
Children & Culture,Children's Social Care,Support Service and Management Costs,Schools Catering,Kitchen Supplies - Food and Beverages,24/05/2021,5533372,298.48,Thomas Ridley & Son Ltd,
Children & Culture,Children's Social Care,Support Service and Management Costs,Schools Catering,Kitchen Supplies - Food and Beverages,24/05/2021,5533374,562.77,Thomas Ridley & Son Ltd,
Children & Culture,Children's Social Care,Support Service and Management Costs,Sch. Meals A/c - Central Production Unit,Kitchen Supplies - Food and Beverages,24/05/2021,5533375,305.40,Thomas Ridley & Son Ltd,
Children & Culture,Children's Social Care,Support Service and Management Costs,Schools Catering,Kitchen Supplies - Food and Beverages,24/05/2021,5533377,299.31,Thomas Ridley & Son Ltd,
Children & Culture,Children's Social Care,Support Service and Management Costs,Schools Catering,Kitchen Supplies - Food and Beverages,24/05/2021,5533379,495.79,Thomas Ridley & Son Ltd,
Children & Culture,Children's Social Care,Support Service and Management Costs,Schools Catering,Kitchen Supplies - Food and Beverages,24/05/2021,5533380,588.94,Thomas Ridley & Son Ltd,
Children & Culture,Children's Social Care,Support Service and Management Costs,Schools Catering,Kitchen Supplies - Food and Beverages,24/05/2021,5533381,267.92,Thomas Ridley & Son Ltd,
Children & Culture,Children's Social Care,Support Service and Management Costs,Schools Catering,Kitchen Supplies - Food and Beverages,24/05/2021,5533383,319.79,Thomas Ridley & Son Ltd,
Children & Culture,Children's Social Care,Support Service and Management Costs,Schools Catering,Kitchen Supplies - Food and Beverages,24/05/2021,5533385,629.16,Thomas Ridley & Son Ltd,
Children & Culture,Children's Social Care,Support Service and Management Costs,Schools Catering,Kitchen Supplies - Food and Beverages,24/05/2021,5533386,407.74,Thomas Ridley & Son Ltd,
Children & Culture,Children's Social Care,Support Service and Management Costs,Schools Catering,Kitchen Supplies - Food and Beverages,24/05/2021,5533391,475.95,Thomas Ridley & Son Ltd,
Children & Culture,Children's Social Care,Support Service and Management Costs,Schools Catering,Kitchen Supplies - Food and Beverages,24/05/2021,5533392,401.80,Thomas Ridley & Son Ltd,
Children & Culture,Children's Social Care,Support Service and Management Costs,Schools Catering,Kitchen Supplies - Food and Beverages,24/05/2021,5533393,447.50,Thomas Ridley & Son Ltd,
Children & Culture,Children's Social Care,Support Service and Management Costs,Schools Catering,Kitchen Supplies - Food and Beverages,24/05/2021,5533395,276.52,Thomas Ridley & Son Ltd,
Children & Culture,Children's Social Care,Support Service and Management Costs,Schools Catering,Kitchen Supplies - Food and Beverages,24/05/2021,5533396,351.69,Thomas Ridley & Son Ltd,
Children & Culture,Children's Social Care,Support Service and Management Costs,Schools Catering,Kitchen Supplies - Food and Beverages,24/05/2021,5533398,450.26,Thomas Ridley & Son Ltd,
Children & Culture,Children's Social Care,Support Service and Management Costs,Schools Catering,Kitchen Supplies - Food and Beverages,24/05/2021,5533399,488.30,Thomas Ridley & Son Ltd,
Children & Culture,Children's Social Care,Support Service and Management Costs,Schools Catering,Kitchen Supplies - Food and Beverages,24/05/2021,5533400,385.20,Thomas Ridley & Son Ltd,
Children & Culture,Children's Social Care,Support Service and Management Costs,Schools Catering,Kitchen Supplies - Food and Beverages,24/05/2021,5533401,462.44,Thomas Ridley & Son Ltd,
Children & Culture,Children's Social Care,Support Service and Management Costs,Schools Catering,Kitchen Supplies - Food and Beverages,24/05/2021,5533402,549.17,Thomas Ridley & Son Ltd,
Children & Culture,Children's Social Care,Support Service and Management Costs,Schools Catering,Kitchen Supplies - Food and Beverages,24/05/2021,5533403,597.47,Thomas Ridley & Son Ltd,
Children & Culture,Children's Social Care,Support Service and Management Costs,Schools Catering,Kitchen Supplies - Food and Beverages,24/05/2021,5533404,269.42,Thomas Ridley & Son Ltd,
Children & Culture,Children's Social Care,Support Service and Management Costs,Schools Catering,Kitchen Supplies - Food and Beverages,24/05/2021,5533406,508.18,Thomas Ridley & Son Ltd,
Children & Culture,Children's Social Care,Support Service and Management Costs,Schools Catering,Kitchen Supplies - Food and Beverages,24/05/2021,5533408,594.41,Thomas Ridley & Son Ltd,
Children & Culture,Children's Social Care,Support Service and Management Costs,Schools Catering,Kitchen Supplies - Food and Beverages,24/05/2021,5533410,259.55,Thomas Ridley & Son Ltd,
Children & Culture,Children's Social Care,Support Service and Management Costs,Schools Catering,Kitchen Supplies - Food and Beverages,24/05/2021,5533411,567.41,Thomas Ridley & Son Ltd,
Children & Culture,Children's Social Care,Support Service and Management Costs,Schools Catering,Kitchen Supplies - Food and Beverages,24/05/2021,5533415,375.66,Thomas Ridley & Son Ltd,
Children & Culture,Children's Social Care,Support Service and Management Costs,Schools Catering,Kitchen Supplies - Food and Beverages,24/05/2021,5533416,915.74,Thomas Ridley & Son Ltd,
Children & Culture,Children's Social Care,Support Service and Management Costs,Schools Catering,Kitchen Supplies - Food and Beverages,24/05/2021,5533417,358.81,Thomas Ridley & Son Ltd,
Children & Culture,Children's Social Care,Support Service and Management Costs,Schools Catering,Kitchen Supplies - Food and Beverages,24/05/2021,5533418,783.32,Thomas Ridley & Son Ltd,
Children & Culture,Children's Social Care,Support Service and Management Costs,Schools Catering,Kitchen Supplies - Food and Beverages,24/05/2021,5533420,363.22,Thomas Ridley & Son Ltd,
Children & Culture,Cultural and Related Services,Open Spaces,Victoria Park,Repairs and Maintenance - Responsive - Repair & Maintenance,24/05/2021,5533867,730.00,JC Coster (Metalworks) Ltd,
Children & Culture,Cultural and Related Services,Open Spaces,Mile End Park,Repairs and Maintenance - Responsive - Drainage & Sewers,24/05/2021,5533900,410.00,J&L Coster (Drainage) Ltd,
Children & Culture,Cultural and Related Services,Open Spaces,Parks & Open Spaces Man&Admin,Repairs and Maintenance - Responsive - Drainage & Sewers,24/05/2021,5533901,360.00,J&L Coster (Drainage) Ltd,
Children & Culture,Children's Social Care,Support Service and Management Costs,Schools Catering,Kitchen Supplies - Food and Beverages,24/05/2021,5533917,389.05,Thomas Ridley & Son Ltd,
Children & Culture,Children's Social Care,Support Service and Management Costs,Schools Catering,Kitchen Supplies - Food and Beverages,24/05/2021,5533919,463.74,Thomas Ridley & Son Ltd,
Children & Culture,Children's Social Care,Support Service and Management Costs,Schools Catering,Kitchen Supplies - Food and Beverages,24/05/2021,5533920,318.76,Thomas Ridley & Son Ltd,
Children & Culture,Children's Social Care,Support Service and Management Costs,Schools Catering,Kitchen Supplies - Food and Beverages,24/05/2021,5533922,680.09,Thomas Ridley & Son Ltd,
Children & Culture,Children's Social Care,Support Service and Management Costs,Schools Catering,Kitchen Supplies - Food and Beverages,24/05/2021,5533923,640.42,Thomas Ridley & Son Ltd,
Children & Culture,Children's Social Care,Support Service and Management Costs,Schools Catering,Kitchen Supplies - Food and Beverages,24/05/2021,5533924,378.21,Thomas Ridley & Son Ltd,
Children & Culture,Children's Social Care,Support Service and Management Costs,Sch. Meals A/c - Central Production Unit,Kitchen Supplies - Food and Beverages,24/05/2021,5533925,954.10,Thomas Ridley & Son Ltd,
Children & Culture,Children's Social Care,Support Service and Management Costs,Schools Catering,Kitchen Supplies - Food and Beverages,24/05/2021,5533967,421.84,Prescott-Thomas LTD.,
Children & Culture,Children's Social Care,Support Service and Management Costs,Schools Catering,Kitchen Supplies - Food and Beverages,24/05/2021,5533983,329.28,Prescott-Thomas LTD.,
Children & Culture,Children's Social Care,Children Looked After,S23-Other-Mother & Baby Unit,Childrens Act Section 23 - Placement Fee,24/05/2021,5535013,"3,298.00",Jamma Umoja (Residential Services) LTD,
Children & Culture,Children's Social Care,Children Looked After,S23-Other-Mother & Baby Unit,Childrens Act Section 23 - Placement Fee,24/05/2021,5535014,618.00,Jamma Umoja (Residential Services) LTD,
Children & Culture,Children's Social Care,Children Looked After,S23 Fam Pl P&V-F/Care,Childrens Act Section 23 - Placement Fee,24/05/2021,5535150,"3,407.10",Affinity Fostering Services Ltd,
Children & Culture,Children's Social Care,Children Looked After,S23 Fam Pl P&V-F/Care,Childrens Act Section 23 - Placement Fee,24/05/2021,5535151,"3,235.80",Affinity Fostering Services Ltd,
Children & Culture,Children's Social Care,Children Looked After,S23 Fam Pl P&V-F/Care,Childrens Act Section 23 - Placement Fee,24/05/2021,5535152,"3,236.70",Affinity Fostering Services Ltd,
Children & Culture,Children's Social Care,Children Looked After,S23 Fam Pl P&V-F/Care,Childrens Act Section 23 - Placement Fee,24/05/2021,5535153,"3,407.10",Affinity Fostering Services Ltd,
Children & Culture,Children's Social Care,Children Looked After,S23 Fam Pl P&V-F/Care,Childrens Act Section 23 - Placement Fee,24/05/2021,5535154,"3,642.90",Affinity Fostering Services Ltd,
Children & Culture,Children's Social Care,Children Looked After,S23 Fam Pl P&V-F/Care,Childrens Act Section 23 - Placement Fee,24/05/2021,5535155,"5,464.20",Affinity Fostering Services Ltd,
Children & Culture,Children's Social Care,Children Looked After,S23 Fam Pl P&V-F/Care,Childrens Act Section 23 - Placement Fee,24/05/2021,5535189,"29,361.34",Calcot Services for Children Ltd,
Children & Culture,Cultural and Related Services,Culture & Heritage,Arts-Park Events,Events & Exhibitions,24/05/2021,5535209,"2,000.00",The Nest Collective,
Children & Culture,Education Services,Other Strategic Functions,Music Trading Account,Educational/Training Supplies - Arts & Crafts,24/05/2021,5535214,"1,738.00",LMS Music Supplies,
Children & Culture,Children's Social Care,Children Looked After,S23-Other-Semi-Ind. Unit,Childrens Act Section 23 - Placement Fee,24/05/2021,5535436,"3,510.00",Ascension Supported Living,
Children & Culture,Children's Social Care,Support Service and Management Costs,Schools Catering,Kitchen Supplies - Food and Beverages,24/05/2021,5536686,423.69,William White Meats Ltd,
Children & Culture,Children's Social Care,Support Service and Management Costs,Schools Catering,Kitchen Supplies - Food and Beverages,24/05/2021,5536690,302.98,William White Meats Ltd,
Children & Culture,Children's Social Care,Support Service and Management Costs,Schools Catering,Kitchen Supplies - Food and Beverages,24/05/2021,5536693,374.27,William White Meats Ltd,
Children & Culture,Children's Social Care,Support Service and Management Costs,Schools Catering,Kitchen Supplies - Food and Beverages,24/05/2021,5536694,259.52,William White Meats Ltd,
Children & Culture,Children's Social Care,Support Service and Management Costs,Schools Catering,Kitchen Supplies - Food and Beverages,24/05/2021,5536698,495.30,William White Meats Ltd,
Children & Culture,Children's Social Care,Support Service and Management Costs,Schools Catering,Kitchen Supplies - Food and Beverages,24/05/2021,5536700,284.80,William White Meats Ltd,
Children & Culture,Children's Social Care,Support Service and Management Costs,Schools Catering,Kitchen Supplies - Food and Beverages,24/05/2021,5536703,446.37,William White Meats Ltd,
Children & Culture,Children's Social Care,Support Service and Management Costs,Schools Catering,Kitchen Supplies - Food and Beverages,24/05/2021,5536712,270.64,William White Meats Ltd,
Children & Culture,Children's Social Care,Support Service and Management Costs,Schools Catering,Kitchen Supplies - Food and Beverages,24/05/2021,5536714,285.63,William White Meats Ltd,
Children & Culture,Children's Social Care,Support Service and Management Costs,Schools Catering,Kitchen Supplies - Food and Beverages,24/05/2021,5536717,344.66,William White Meats Ltd,
Children & Culture,Children's Social Care,Children Looked After,S23 Fam Pl P&V-F/Care,Childrens Act Section 23 - Placement Fee,24/05/2021,5536806,"3,407.10",Affinity Fostering Services Ltd,
Children & Culture,Children's Social Care,Children Looked After,S23 Fam Pl P&V-F/Care,Childrens Act Section 23 - Placement Fee,24/05/2021,5536807,"3,638.40",Affinity Fostering Services Ltd,
Children & Culture,Children's Social Care,Support Service and Management Costs,Schools Catering,Materials - Cleaning Materials,24/05/2021,5537407,252.30,The Maintenance Supply Co Ltd,
Children & Culture,Children's Social Care,Children Looked After,LCS/Allowances-Accom,Leaving Care Financial Assistance - Grant Pay Special Needs,24/05/2021,5540820,"3,164.09",London Borough Of Newham,
Children & Culture,Children's Social Care,Children Looked After,S23 Fam Pl In-Hse-For Adopt,Childrens Act Section 23 - Placement Fee,24/05/2021,5540834,"18,000.00",West Sussex County Council,
Children & Culture,Children's Social Care,Children Looked After,S23-Other-Semi-Ind. Unit,Childrens Act Section 23 - Placement Fee,26/05/2021,5533872,"3,955.71",Alpha Care Service Ltd,
Children & Culture,Children's Social Care,Children Looked After,S23-Other-Semi-Ind. Unit,Childrens Act Section 23 - Placement Fee,26/05/2021,5533874,290.00,Alpha Care Service Ltd,
Children & Culture,Children's Social Care,Support Service and Management Costs,Swanlea,Kitchen Supplies - Packaging,26/05/2021,5535105,294.48,Tri-Star Packaging Supplies LTD,
Children & Culture,Cultural and Related Services,Open Spaces,Victoria Park,Repairs and Maintenance - Responsive - Repair & Maintenance,26/05/2021,5535106,"4,500.00",JC Coster (Metalworks) Ltd,
Children & Culture,Cultural and Related Services,Open Spaces,Mile End Park,Repairs and Maintenance - Responsive - General,26/05/2021,5535107,750.00,JC Coster (Metalworks) Ltd,
Children & Culture,Children's Social Care,Children Looked After,S23 Fam Pl P&V-F/Care,Childrens Act Section 23 - Placement Fee,26/05/2021,5535148,"3,900.00",Family Fostering,
Children & Culture,Children's Social Care,Children Looked After,S23-Other-Prison,Childrens Act Section 23 - Placement Fee,26/05/2021,5535161,"9,951.00",National Offender Management Service,
Children & Culture,Children's Social Care,Children Looked After,Virtual School PPG,Agency Staff - Associations,26/05/2021,5535199,"1,524.00",Active & Creative Teachers Recruitment,
Children & Culture,Children's Social Care,Children Looked After,LCS/Allowances-Accom,Leaving Care Financial Assistance - Supp Accom/Hous Rents,26/05/2021,5535203,"2,357.10",Primrose care & support,
Children & Culture,Children's Social Care,Children Looked After,LCS/Allowances-Accom,Leaving Care Financial Assistance - Supported Living,26/05/2021,5535203,642.60,Primrose care & support,
Children & Culture,Children's Social Care,Children Looked After,S23-Other-Semi-Ind. Unit,Childrens Act Section 23 - Placement Fee,26/05/2021,5535205,"4,805.66",Naza Connect Care Ltd,
Children & Culture,Education Services,Other Strategic Functions,Property & Asset Management,Services - Professional Fees - Analysts Fees,26/05/2021,5535234,"2,187.50",Redacted Section 40 FOI Act,
Children & Culture,Children's Social Care,Support Service and Management Costs,Schools Catering,Kitchen Supplies - Food and Beverages,26/05/2021,5535236,577.16,Thomas Ridley & Son Ltd,
Children & Culture,Children's Social Care,Support Service and Management Costs,Schools Catering,Kitchen Supplies - Food and Beverages,26/05/2021,5535238,264.24,Thomas Ridley & Son Ltd,
Children & Culture,Children's Social Care,Support Service and Management Costs,Schools Catering,Kitchen Supplies - Food and Beverages,26/05/2021,5535239,361.45,Thomas Ridley & Son Ltd,
Children & Culture,Children's Social Care,Support Service and Management Costs,Swanlea,Kitchen Supplies - Food and Beverages,26/05/2021,5535240,528.11,Thomas Ridley & Son Ltd,
Children & Culture,Children's Social Care,Support Service and Management Costs,Schools Catering,Kitchen Supplies - Food and Beverages,26/05/2021,5535242,285.69,Thomas Ridley & Son Ltd,
Children & Culture,Children's Social Care,Support Service and Management Costs,Schools Catering,Kitchen Supplies - Food and Beverages,26/05/2021,5535244,323.41,Thomas Ridley & Son Ltd,
Children & Culture,Children's Social Care,Support Service and Management Costs,Schools Catering,Kitchen Supplies - Food and Beverages,26/05/2021,5535245,477.01,Thomas Ridley & Son Ltd,
Children & Culture,Children's Social Care,Support Service and Management Costs,Schools Catering,Kitchen Supplies - Food and Beverages,26/05/2021,5535246,344.03,Thomas Ridley & Son Ltd,
Children & Culture,Children's Social Care,Support Service and Management Costs,Schools Catering,Kitchen Supplies - Food and Beverages,26/05/2021,5535247,426.96,Thomas Ridley & Son Ltd,
Children & Culture,Children's Social Care,Support Service and Management Costs,Schools Catering,Kitchen Supplies - Food and Beverages,26/05/2021,5535250,408.53,Thomas Ridley & Son Ltd,
Children & Culture,Children's Social Care,Support Service and Management Costs,Schools Catering,Kitchen Supplies - Food and Beverages,26/05/2021,5535251,443.12,Thomas Ridley & Son Ltd,
Children & Culture,Children's Social Care,Support Service and Management Costs,Schools Catering,Kitchen Supplies - Food and Beverages,26/05/2021,5535252,499.11,Thomas Ridley & Son Ltd,
Children & Culture,Children's Social Care,Support Service and Management Costs,Schools Catering,Kitchen Supplies - Food and Beverages,26/05/2021,5535254,555.96,Thomas Ridley & Son Ltd,
Children & Culture,Children's Social Care,Support Service and Management Costs,Sch. Meals A/c - Central Production Unit,Kitchen Supplies - Food and Beverages,26/05/2021,5535255,"1,099.01",Thomas Ridley & Son Ltd,
Children & Culture,Children's Social Care,Support Service and Management Costs,Schools Catering,Kitchen Supplies - Food and Beverages,26/05/2021,5535257,516.93,Thomas Ridley & Son Ltd,
Children & Culture,Children's Social Care,Support Service and Management Costs,Schools Catering,Kitchen Supplies - Food and Beverages,26/05/2021,5535258,593.05,Thomas Ridley & Son Ltd,
Children & Culture,Children's Social Care,Support Service and Management Costs,Schools Catering,Kitchen Supplies - Food and Beverages,26/05/2021,5535260,830.93,Thomas Ridley & Son Ltd,
Children & Culture,Children's Social Care,Support Service and Management Costs,Schools Catering,Kitchen Supplies - Food and Beverages,26/05/2021,5535266,500.60,Thomas Ridley & Son Ltd,
Children & Culture,Children's Social Care,Support Service and Management Costs,Schools Catering,Kitchen Supplies - Food and Beverages,26/05/2021,5535268,285.95,Thomas Ridley & Son Ltd,
Children & Culture,Children's Social Care,Support Service and Management Costs,Schools Catering,Kitchen Supplies - Food and Beverages,26/05/2021,5535269,541.70,Thomas Ridley & Son Ltd,
Children & Culture,Children's Social Care,Support Service and Management Costs,Schools Catering,Kitchen Supplies - Food and Beverages,26/05/2021,5535270,320.44,Thomas Ridley & Son Ltd,
Children & Culture,Children's Social Care,Support Service and Management Costs,Schools Catering,Kitchen Supplies - Food and Beverages,26/05/2021,5535271,"1,139.52",Thomas Ridley & Son Ltd,
Children & Culture,Children's Social Care,Support Service and Management Costs,Schools Catering,Kitchen Supplies - Food and Beverages,26/05/2021,5535272,"1,022.39",Thomas Ridley & Son Ltd,
Children & Culture,Children's Social Care,Support Service and Management Costs,Schools Catering,Kitchen Supplies - Food and Beverages,26/05/2021,5535273,901.31,Thomas Ridley & Son Ltd,
Children & Culture,Children's Social Care,Support Service and Management Costs,Schools Catering,Kitchen Supplies - Food and Beverages,26/05/2021,5535274,510.83,Thomas Ridley & Son Ltd,
Children & Culture,Children's Social Care,Support Service and Management Costs,Schools Catering,Kitchen Supplies - Food and Beverages,26/05/2021,5535275,469.18,Thomas Ridley & Son Ltd,
Children & Culture,Children's Social Care,Support Service and Management Costs,Schools Catering,Kitchen Supplies - Food and Beverages,26/05/2021,5535276,999.21,Thomas Ridley & Son Ltd,
Children & Culture,Children's Social Care,Support Service and Management Costs,Schools Catering,Kitchen Supplies - Food and Beverages,26/05/2021,5535277,917.99,Thomas Ridley & Son Ltd,
Children & Culture,Children's Social Care,Support Service and Management Costs,Schools Catering,Kitchen Supplies - Food and Beverages,26/05/2021,5535278,480.65,Thomas Ridley & Son Ltd,
Children & Culture,Children's Social Care,Support Service and Management Costs,Schools Catering,Kitchen Supplies - Food and Beverages,26/05/2021,5535284,667.42,Thomas Ridley & Son Ltd,
Children & Culture,Children's Social Care,Support Service and Management Costs,Schools Catering,Kitchen Supplies - Food and Beverages,26/05/2021,5535285,279.85,Thomas Ridley & Son Ltd,
Children & Culture,Children's Social Care,Support Service and Management Costs,Schools Catering,Kitchen Supplies - Food and Beverages,26/05/2021,5535286,496.23,Thomas Ridley & Son Ltd,
Children & Culture,Children's Social Care,Support Service and Management Costs,Schools Catering,Kitchen Supplies - Food and Beverages,26/05/2021,5535287,380.10,Thomas Ridley & Son Ltd,
Children & Culture,Children's Social Care,Support Service and Management Costs,Schools Catering,Kitchen Supplies - Food and Beverages,26/05/2021,5535288,583.29,Thomas Ridley & Son Ltd,
Children & Culture,Children's Social Care,Support Service and Management Costs,Schools Catering,Kitchen Supplies - Food and Beverages,26/05/2021,5535289,284.27,Thomas Ridley & Son Ltd,
Children & Culture,Children's Social Care,Support Service and Management Costs,Schools Catering,Kitchen Supplies - Food and Beverages,26/05/2021,5535291,596.12,Thomas Ridley & Son Ltd,
Children & Culture,Children's Social Care,Support Service and Management Costs,Schools Catering,Kitchen Supplies - Food and Beverages,26/05/2021,5535292,373.44,Thomas Ridley & Son Ltd,
Children & Culture,Children's Social Care,Support Service and Management Costs,Schools Catering,Kitchen Supplies - Food and Beverages,26/05/2021,5535293,623.13,Thomas Ridley & Son Ltd,
Children & Culture,Children's Social Care,Support Service and Management Costs,Schools Catering,Kitchen Supplies - Food and Beverages,26/05/2021,5535294,662.40,Thomas Ridley & Son Ltd,
Children & Culture,Children's Social Care,Support Service and Management Costs,Schools Catering,Kitchen Supplies - Food and Beverages,26/05/2021,5535295,332.65,Thomas Ridley & Son Ltd,
Children & Culture,Children's Social Care,Support Service and Management Costs,Schools Catering,Kitchen Supplies - Food and Beverages,26/05/2021,5535296,873.99,Thomas Ridley & Son Ltd,
Children & Culture,Children's Social Care,Support Service and Management Costs,Schools Catering,Kitchen Supplies - Food and Beverages,26/05/2021,5535297,447.24,Thomas Ridley & Son Ltd,
Children & Culture,Children's Social Care,Support Service and Management Costs,Schools Catering,Kitchen Supplies - Food and Beverages,26/05/2021,5535298,281.93,Thomas Ridley & Son Ltd,
Children & Culture,Children's Social Care,Support Service and Management Costs,Schools Catering,Kitchen Supplies - Food and Beverages,26/05/2021,5535309,382.57,Prescott-Thomas LTD.,
Children & Culture,Children's Social Care,Youth Justice,Youth Justice Team,Services - Professional Fees - Consultants Fees,26/05/2021,5535432,"1,500.00",Ro-Ho Learning,
Children & Culture,Education Services,Other Strategic Functions,Schools Library,Services - Professional Fees - Consultants Fees,26/05/2021,5535433,709.00,West Creative Limited,
Children & Culture,Children's Social Care,Support Service and Management Costs,Schools Catering,Refuse Collection,26/05/2021,5535523,"1,194.00",GREENER SOLUTIONS LTD,
Children & Culture,Children's Social Care,Children Looked After,LCS/Allowances-Accom,Leaving Care Financial Assistance - Supp Accom/Hous Rents,26/05/2021,5536596,"4,714.20",ThamesCare,
Children & Culture,Children's Social Care,Children Looked After,LCS/Allowances-Accom,Leaving Care Financial Assistance - Supp Accom/Hous Rents,26/05/2021,5536597,"2,485.50",ThamesCare,
Children & Culture,Children's Social Care,Children Looked After,LCS/Allowances-Accom,Leaving Care Financial Assistance - Supp Accom/Hous Rents,26/05/2021,5536598,"2,357.10",ThamesCare,
Children & Culture,Children's Social Care,Children Looked After,LCS/Allowances-Accom,Leaving Care Financial Assistance - Supported Living,26/05/2021,5536598,642.60,ThamesCare,
Children & Culture,Children's Social Care,Children Looked After,LCS/Allowances-Accom,Leaving Care Financial Assistance - Supp Accom/Hous Rents,26/05/2021,5536619,"1,743.00",METROPOLITAN & CROWN,
Children & Culture,Children's Social Care,Support Service and Management Costs,Sch. Meals A/c - Central Production Unit,Kitchen Supplies - Food and Beverages,26/05/2021,5536751,958.00,William White Meats Ltd,
Children & Culture,Children's Social Care,Support Service and Management Costs,Schools Catering,Kitchen Supplies - Food and Beverages,26/05/2021,5536759,404.51,William White Meats Ltd,
Children & Culture,Children's Social Care,Support Service and Management Costs,Schools Catering,Repairs and Maintenance - Responsive - Repair & Maintenance,26/05/2021,5537794,261.10,Lambourne Refrigeration,
Children & Culture,Children's Social Care,Children Looked After,Leaving Care-UASC,Leaving Care Financial Assistance - Supp Accom/Hous Rents,26/05/2021,5537807,"1,771.34",HAMLETTS LTD,
Children & Culture,Children's Social Care,Children Looked After,S23-Other-Prison,Childrens Act Section 23 - Placement Fee,26/05/2021,5539215,"9,951.00",National Offender Management Service,
Children & Culture,Children's Social Care,Children Looked After,Leaving Care-UASC,Leaving Care Financial Assistance - Supp Accom/Hous Rents,26/05/2021,5539233,"1,041.30",HAMLETTS LTD,
Children & Culture,Children's Social Care,Children Looked After,Leaving Care-UASC,Leaving Care Financial Assistance - Supp Accom/Hous Rents,26/05/2021,5539234,485.94,HAMLETTS LTD,
Children & Culture,Children's Social Care,Children Looked After,Leaving Care-UASC,Leaving Care Financial Assistance - Supp Accom/Hous Rents,26/05/2021,5539235,"1,041.30",HAMLETTS LTD,
Children & Culture,Children's Social Care,Children Looked After,Leaving Care-UASC,Leaving Care Financial Assistance - Supp Accom/Hous Rents,26/05/2021,5539236,998.70,HAMLETTS LTD,
Children & Culture,Children's Social Care,Children Looked After,Leaving Care-UASC,Leaving Care Financial Assistance - Supp Accom/Hous Rents,26/05/2021,5539237,"1,041.30",HAMLETTS LTD,
Children & Culture,Children's Social Care,Children Looked After,Leaving Care-UASC,Leaving Care Financial Assistance - Supp Accom/Hous Rents,26/05/2021,5539238,921.30,HAMLETTS LTD,
Children & Culture,Cultural and Related Services,Recreation & Sport,GLL Sports Centres,Payments to Private Contractors - Private Contractor,26/05/2021,5539356,"760,000.00",Greenwich Leisure LTD,
Children & Culture,Children's Social Care,Children Looked After,S23-Other-Prison,Childrens Act Section 23 - Placement Fee,26/05/2021,5539519,"9,951.00",National Offender Management Service,
Children & Culture,Children's Social Care,Children Looked After,Virtual School PPG,Agency Staff - Associations,26/05/2021,5540670,"1,019.88",Academics ltd,
Children & Culture,Children's Social Care,Children Looked After,Virtual School PPG,Agency Staff - Associations,26/05/2021,5540671,"1,274.85",Academics ltd,
Children & Culture,Children's Social Care,Children Looked After,Virtual School PPG,Agency Staff - Associations,26/05/2021,5540672,"1,019.88",Academics ltd,
Children & Culture,Children's Social Care,Children Looked After,Virtual School PPG,Agency Staff - Associations,26/05/2021,5540673,"1,019.88",Academics ltd,
Children & Culture,Children's Social Care,Children Looked After,Virtual School PPG,Agency Staff - Associations,26/05/2021,5540674,764.91,Academics ltd,
Children & Culture,Children's Social Care,Children Looked After,Virtual School PPG,Agency Staff - Associations,26/05/2021,5540675,254.97,Academics ltd,
Children & Culture,Cultural and Related Services,Open Spaces,Victoria Park,Electricity,26/05/2021,5540757,254.00,EDF Energy Customer Field Services,
Children & Culture,Cultural and Related Services,Open Spaces,Victoria Park,Electricity,26/05/2021,5540801,254.00,EDF Energy Customer Field Services,
Children & Culture,Education Services,Other Strategic Functions,Children with Complex Needs,Non Staff Transport Costs - Reimbursement,26/05/2021,5540844,"1,230.00",Healthcare and Transport Services Group Ltd,
Children & Culture,Education Services,Other Strategic Functions,Children with Complex Needs,Non Staff Transport Costs - Reimbursement,26/05/2021,5540847,738.00,Healthcare and Transport Services Group Ltd,
Children & Culture,Children's Social Care,Children Looked After,S23 Fam Pl In-Hse-Placed Home,Childrens Act Section 23 - Commissioned Services,26/05/2021,5540861,"1,091.61",Heartwood Outreach Services Ltd,
Children & Culture,Children's Social Care,Children Looked After,S23 Fam Pl P&V-F/Care,Childrens Act Section 23 - Placement Fee,26/05/2021,5540911,"4,445.80",CAPSTONE FOSTER CARE (SE) LTD,
Children & Culture,Education Services,Early Years,SSEYCG Two Year Old Pilot,Third Party Payments - Voluntary Associations,26/05/2021,5541000,"1,072.50",Acola Kids Ltd,
Children & Culture,Education Services,Early Years,SSEYCG Two Year Old Pilot,Third Party Payments - Voluntary Associations,26/05/2021,5541001,"1,072.50",Allen Gardens Playgroup,
Children & Culture,Education Services,Early Years,SSEYCG Two Year Old Pilot,Third Party Payments - Voluntary Associations,26/05/2021,5541002,"1,072.50",Avebury Playgroup,
Children & Culture,Education Services,Early Years,SSEYCG Two Year Old Pilot,Third Party Payments - Voluntary Associations,26/05/2021,5541003,"1,072.50",Barkantine Community Nursery,
Children & Culture,Education Services,Early Years,SSEYCG Two Year Old Pilot,Third Party Payments - Voluntary Associations,26/05/2021,5541004,"2,145.00",Calvary Poplar Preschool,
Children & Culture,Education Services,Early Years,SSEYCG Two Year Old Pilot,Third Party Payments - Voluntary Associations,26/05/2021,5541005,"7,312.50",Date Palm Nurseries Ltd,
Children & Culture,Education Services,Early Years,SSEYCG Two Year Old Pilot,Third Party Payments - Voluntary Associations,26/05/2021,5541006,"2,681.25",GLOBAL KIDS DAY CARE,
Children & Culture,Education Services,Early Years,SSEYCG Two Year Old Pilot,Third Party Payments - Voluntary Associations,26/05/2021,5541007,"1,072.50",Account 3 Ltd,
Children & Culture,Education Services,Early Years,SSEYCG Two Year Old Pilot,Third Party Payments - Voluntary Associations,26/05/2021,5541008,"1,072.50",Lincoln Hall Playgroup,
Children & Culture,Education Services,Early Years,SSEYCG Two Year Old Pilot,Third Party Payments - Voluntary Associations,26/05/2021,5541009,"1,021.95",Little Limehouse Preschool,
Children & Culture,Education Services,Early Years,SSEYCG Two Year Old Pilot,Third Party Payments - Voluntary Associations,26/05/2021,5541010,"1,072.50",Little Miracles Nursery,
Children & Culture,Education Services,Early Years,SSEYCG Two Year Old Pilot,Third Party Payments - Voluntary Associations,26/05/2021,5541011,"1,072.50",Puddle Jumpers Ltd,
Children & Culture,Education Services,Early Years,SSEYCG Two Year Old Pilot,Third Party Payments - Voluntary Associations,26/05/2021,5541012,"5,362.50",Spring Nursery Limited,
Children & Culture,Education Services,Early Years,SSEYCG Two Year Old Pilot,Third Party Payments - Voluntary Associations,26/05/2021,5541013,"1,072.50",WEAVERSFIELD COMMUNITY NURSERY,
Children & Culture,Education Services,Early Years,3&4 Year old PVI�s,Third Party Payments - Voluntary Associations,26/05/2021,5541016,615.45,LANTERNS DAY NURSERY,
Children & Culture,Education Services,Early Years,SSEYCG Two Year Old Pilot,Third Party Payments - Voluntary Associations,26/05/2021,5541017,"3,849.30",Little Limehouse Preschool,
Children & Culture,Children's Social Care,Children Looked After,S23 Fam Pl In-Hse-S/Term F/C,Childrens Act Section 23 - Non-Contact Taxi Costs,26/05/2021,5541065,522.00,Healthcare and Transport Services Group Ltd,
Children & Culture,Education Services,Other Strategic Functions,High Needs Out Of Borough Further Education Colleges,Third Party Payments - SEN Top Up Funding,26/05/2021,5541066,"1,425.00",Bromley College of Further and Higher Education (LSEC),
Children & Culture,Education Services,Other Strategic Functions,Children with Complex Needs,Third Party Payments - High Needs Specialist Equipment,26/05/2021,5542410,"1,058.14",Morpeth School,
Children & Culture,Children's Social Care,Children Looked After,Virtual School PPG,Education & Training - Non Staff Tuition Fees,26/05/2021,5542422,"1,500.00",Anchor Teaching Ltd,
Children & Culture,Children's Social Care,Children Looked After,Leaving Care-UASC,Leaving Care Financial Assistance - Reg Plan Maint L-Allow,26/05/2021,5542465,"1,072.14",Pangea Support Services,
Children & Culture,Children's Social Care,Children Looked After,Leaving Care-UASC,Leaving Care Financial Assistance - Supported Living,26/05/2021,5542465,678.57,Pangea Support Services,
Children & Culture,Education Services,Other Strategic Functions,Children with Complex Needs,Third Party Payments - Individual Tuition,26/05/2021,5543110,825.00,OSMAN IBRAHIM OSMAN,
Children & Culture,Education Services,Early Years,Children Centre Central Team,Training Expenses - Staff External Training (UK Based),28/05/2021,5530824,"1,900.00",Servelec Education Limited,
Children & Culture,Children's Social Care,Children Looked After,LCS/Allowances-Accom,Leaving Care Financial Assistance - Supp Accom/Hous Rents,28/05/2021,5535434,"2,061.00",Step4ward services Kent LTD,
Children & Culture,Children's Social Care,Children Looked After,S23-Other-Semi-Ind. Unit,Childrens Act Section 23 - Placement Fee,28/05/2021,5535443,"3,236.00",Inspire Growth Services Ltd,
Children & Culture,Children's Social Care,Children Looked After,S23-Other-Semi-Ind. Unit,Childrens Act Section 23 - Placement Fee,28/05/2021,5535444,400.26,Inspire Growth Services Ltd,
Children & Culture,No Service Specified,No Division Specified,Capital-Minor Works (SC),Other External Fees - Consultants Fees,28/05/2021,5535493,"16,500.00",Building Design Partnership,
Children & Culture,Children's Social Care,Support Service and Management Costs,Schools Catering,Kitchen Supplies - Food and Beverages,28/05/2021,5535505,325.01,Thomas Ridley & Son Ltd,
Children & Culture,Children's Social Care,Support Service and Management Costs,Schools Catering,Kitchen Supplies - Food and Beverages,28/05/2021,5535506,380.33,Thomas Ridley & Son Ltd,
Children & Culture,Children's Social Care,Support Service and Management Costs,Sch. Meals A/c - Central Production Unit,Kitchen Supplies - Food and Beverages,28/05/2021,5535509,904.34,Thomas Ridley & Son Ltd,
Children & Culture,Children's Social Care,Support Service and Management Costs,Schools Catering,Kitchen Supplies - Food and Beverages,28/05/2021,5535511,"1,309.58",Thomas Ridley & Son Ltd,
Children & Culture,Children's Social Care,Support Service and Management Costs,Schools Catering,Kitchen Supplies - Food and Beverages,28/05/2021,5535512,378.83,Thomas Ridley & Son Ltd,
Children & Culture,Children's Social Care,Support Service and Management Costs,Swanlea,Kitchen Supplies - Food and Beverages,28/05/2021,5535516,664.30,Thomas Ridley & Son Ltd,
Children & Culture,Children's Social Care,Support Service and Management Costs,Swanlea,Kitchen Supplies - Food and Beverages,28/05/2021,5535517,498.06,Thomas Ridley & Son Ltd,
Children & Culture,Children's Social Care,Support Service and Management Costs,Schools Catering,Kitchen Supplies - Food and Beverages,28/05/2021,5535519,491.64,Thomas Ridley & Son Ltd,
Children & Culture,Cultural and Related Services,Open Spaces,Mile End Park,Repairs and Maintenance - Responsive - General,28/05/2021,5535675,320.00,JC Coster (Metalworks) Ltd,
Children & Culture,Cultural and Related Services,Open Spaces,Parks & Open Spaces Man&Admin,Repairs and Maintenance - Responsive - Buildings,28/05/2021,5535676,360.00,JC Coster (Metalworks) Ltd,
Children & Culture,Education Services,Services to Young People and Other Community Learners,Supported Housing - Young People,Social Care - Day Care,28/05/2021,5535685,"61,250.01",One Housing Group,
Children & Culture,No Service Specified,No Division Specified,Capital-Minor Works (SC),Building Works - Main Works,28/05/2021,5535710,"1,800.00",E Riley Associates Chartered Surveyors,
Children & Culture,No Service Specified,No Division Specified,Capital-Minor Works (SC),Building Works - Main Works,28/05/2021,5535711,"1,800.00",E Riley Associates Chartered Surveyors,
Children & Culture,No Service Specified,No Division Specified,Capital-Minor Works (SC),Building Works - Main Works,28/05/2021,5535712,"2,700.00",E Riley Associates Chartered Surveyors,
Children & Culture,Education Services,Other Strategic Functions,High Needs Out Of Borough Special Schools,Third Party Payments - SEN Top Up Funding,28/05/2021,5535745,"16,168.67",Moor House School and College,
Children & Culture,No Service Specified,No Division Specified,Capital-Minor Works (SC),Building Works - Main Works,28/05/2021,5535747,"1,277.50",Capital Property & Construction  Consultants  Ltd,
Children & Culture,Children's Social Care,Children Looked After,S23 Fam Pl P&V-F/Care,Childrens Act Section 23 - Placement Fee,28/05/2021,5535748,"3,180.00",Greater London Fostering LTD,
Children & Culture,Children's Social Care,Children Looked After,S23 Fam Pl P&V-F/Care,Childrens Act Section 23 - Placement Fee,28/05/2021,5535750,"5,142.60",Shining Stars Fostering Agency,
Children & Culture,Children's Social Care,Children Looked After,S23 Fam Pl P&V-F/Care,Childrens Act Section 23 - Placement Fee,28/05/2021,5535751,"5,142.60",Shining Stars Fostering Agency,
Children & Culture,Children's Social Care,Children Looked After,LCS/Allowances-Accom,Leaving Care Financial Assistance - Supported Living,28/05/2021,5535791,771.30,Elliot Leigh TLC Ltd,
Children & Culture,Children's Social Care,Children Looked After,LCS/Allowances-Accom,Leaving Care Financial Assistance - Supported Living,28/05/2021,5535792,342.90,Elliot Leigh TLC Ltd,
Children & Culture,Children's Social Care,Children Looked After,Leaving Care-UASC,Leaving Care Financial Assistance - Supp Accom/Hous Rents,28/05/2021,5535793,"1,371.30",Elliot Leigh TLC Ltd,
Children & Culture,Children's Social Care,Children Looked After,LCS/Allowances-Accom,Leaving Care Financial Assistance - Supp Accom/Hous Rents,28/05/2021,5535794,"1,028.70",Elliot Leigh TLC Ltd,
Children & Culture,Children's Social Care,Children Looked After,LCS/Allowances-Accom,Leaving Care Financial Assistance - Supp Accom/Hous Rents,28/05/2021,5535795,342.90,Elliot Leigh TLC Ltd,
Children & Culture,Children's Social Care,Children Looked After,S23 Fam Pl P&V-F/Care,Property Leases - Buildings,28/05/2021,5535796,"3,463.20",Elliot Leigh TLC Ltd,
Children & Culture,Children's Social Care,Children Looked After,S23-Other-Semi-Ind. Unit,Childrens Act Section 23 - Placement Fee,28/05/2021,5535832,"3,068.00",Go Ahead Homes Ltd,
Children & Culture,Children's Social Care,Children Looked After,S23 Fam Pl P&V-F/Care,Childrens Act Section 23 - Placement Fee,28/05/2021,5535834,"3,427.50",Ryancare Fostering Ltd,
Children & Culture,Children's Social Care,Children Looked After,S23 Fam Pl P&V-F/Care,Childrens Act Section 23 - Placement Fee,28/05/2021,5535836,"3,256.20",Ryancare Fostering Ltd,
Children & Culture,Children's Social Care,Children Looked After,S23 Fam Pl P&V-F/Care,Childrens Act Section 23 - Placement Fee,28/05/2021,5535839,311.37,CAPSTONE FOSTER CARE (SE) LTD,
Children & Culture,Children's Social Care,Children Looked After,S23 Fam Pl P&V-F/Care,Childrens Act Section 23 - Placement Fee,28/05/2021,5535840,344.58,CAPSTONE FOSTER CARE (SE) LTD,
Children & Culture,Children's Social Care,Children Looked After,S23 Fam Pl P&V-F/Care,Childrens Act Section 23 - Placement Fee,28/05/2021,5535841,344.64,CAPSTONE FOSTER CARE (SE) LTD,
Children & Culture,Children's Social Care,Children Looked After,S23 Fam Pl P&V-F/Care,Childrens Act Section 23 - Placement Fee,28/05/2021,5535843,"3,051.33",CAPSTONE FOSTER CARE (SE) LTD,
Children & Culture,Children's Social Care,Children Looked After,S23-Resi-P&V/OLA-Child Home,Childrens Act Section 23 - Placement Fee,28/05/2021,5535867,"11,314.29",CARE Ltd,
Children & Culture,Education Services,Other Strategic Functions,Information & Support Services,Subscriptions - Associations,28/05/2021,5535882,300.00,ADCS,
Children & Culture,No Service Specified,No Division Specified,Capital-Minor Works (SC),Other External Fees - Other External Fees,28/05/2021,5535891,"1,000.00",Perega Ltd,
Children & Culture,Children's Social Care,Support Service and Management Costs,Schools Catering,Kitchen Supplies - Food and Beverages,28/05/2021,5535900,360.07,Thomas Ridley & Son Ltd,
Children & Culture,Children's Social Care,Support Service and Management Costs,Schools Catering,Kitchen Supplies - Food and Beverages,28/05/2021,5535902,294.34,Thomas Ridley & Son Ltd,
Children & Culture,Children's Social Care,Support Service and Management Costs,Schools Catering,Kitchen Supplies - Food and Beverages,28/05/2021,5535903,475.52,Thomas Ridley & Son Ltd,
Children & Culture,Children's Social Care,Support Service and Management Costs,Sch. Meals A/c - Central Production Unit,Kitchen Supplies - Food and Beverages,28/05/2021,5535904,294.50,Thomas Ridley & Son Ltd,
Children & Culture,Children's Social Care,Support Service and Management Costs,Schools Catering,Kitchen Supplies - Food and Beverages,28/05/2021,5535906,281.82,Thomas Ridley & Son Ltd,
Children & Culture,No Service Specified,No Division Specified,Capital-Minor Works (SC),Other External Fees - Other External Fees,28/05/2021,5535922,"11,242.00",Rivington Street Studio,
Children & Culture,Education Services,Other Strategic Functions,Special Education Needs DSG,Third Party Payments - Individual Tuition,28/05/2021,5536537,"13,580.28",Integrated Service Programme,
Children & Culture,Children's Social Care,Children Looked After,S23 Fam Pl P&V-F/Care,Childrens Act Section 23 - Placement Fee,28/05/2021,5536562,"3,528.00",Foster Care Link Ltd,
Children & Culture,Cultural and Related Services,Recreation & Sport,Football Development Programme,Recreational Activities,28/05/2021,5536570,500.00,A-Z SPORTS COACHING LTD,
Children & Culture,Children's Social Care,Children Looked After,S23-Other-Semi-Ind. Unit,Childrens Act Section 23 - Placement Fee,28/05/2021,5536571,"3,857.14",Explore Independence Ltd,
Children & Culture,Children's Social Care,Children Looked After,S23-Other-Semi-Ind. Unit,Childrens Act Section 23 - Placement Fee,28/05/2021,5536573,"3,857.14",Explore Independence Ltd,
Children & Culture,Children's Social Care,Children Looked After,S23-Other-Semi-Ind. Unit,Childrens Act Section 23 - Placement Fee,28/05/2021,5536575,"7,457.14",Explore Independence Ltd,
Children & Culture,Children's Social Care,Children Looked After,S23 Fam Pl P&V-F/Care,Childrens Act Section 23 - Placement Fee,28/05/2021,5536577,"3,100.00",Aspirations Fostering,
Children & Culture,Children's Social Care,Children Looked After,S23 Fam Pl P&V-F/Care,Childrens Act Section 23 - Placement Fee,28/05/2021,5536582,"5,766.62",By The Bridge Ltd,
Children & Culture,Children's Social Care,Children Looked After,S23 Fam Pl P&V-F/Care,Childrens Act Section 23 - Placement Fee,28/05/2021,5536583,"3,963.35",Eastern Fostering Services,
Children & Culture,Children's Social Care,Children Looked After,S23-Resi-P&V/OLA-Child Home,Childrens Act Section 23 - Placement Fee,28/05/2021,5536587,"8,815.65",Blossom Care Group Limited,
Children & Culture,Children's Social Care,Children Looked After,Leaving Care-UASC,Leaving Care Financial Assistance - Supp Accom/Hous Rents,28/05/2021,5536589,"1,645.48",Elliot Leigh TLC Ltd,
Children & Culture,Education Services,Services to Young People and Other Community Learners,Further and Higher Education,Education Trust - Grant,28/05/2021,5536607,"4,500.00",London Film School,
Children & Culture,Children's Social Care,Children Looked After,S23 Fam Pl P&V-F/Care,Childrens Act Section 23 - Placement Fee,28/05/2021,5536610,"3,555.70",Foster Care Associates Limited,
Children & Culture,Children's Social Care,Support Service and Management Costs,Schools Catering,Kitchen Supplies - Food and Beverages,28/05/2021,5536691,392.73,William White Meats Ltd,
Children & Culture,Children's Social Care,Support Service and Management Costs,Schools Catering,Kitchen Supplies - Food and Beverages,28/05/2021,5536730,306.46,William White Meats Ltd,
Children & Culture,Children's Social Care,Support Service and Management Costs,Schools Catering,Kitchen Supplies - Food and Beverages,28/05/2021,5536735,349.43,William White Meats Ltd,
Children & Culture,Children's Social Care,Support Service and Management Costs,Schools Catering,Kitchen Supplies - Food and Beverages,28/05/2021,5536743,395.51,William White Meats Ltd,
Children & Culture,Children's Social Care,Support Service and Management Costs,Schools Catering,Kitchen Supplies - Food and Beverages,28/05/2021,5536744,361.27,William White Meats Ltd,
Children & Culture,Children's Social Care,Support Service and Management Costs,Sch. Meals A/c - Central Production Unit,Kitchen Supplies - Food and Beverages,28/05/2021,5536752,506.00,William White Meats Ltd,
Children & Culture,Children's Social Care,Support Service and Management Costs,Schools Catering,Kitchen Supplies - Food and Beverages,28/05/2021,5536755,257.12,William White Meats Ltd,
Children & Culture,Children's Social Care,Support Service and Management Costs,Schools Catering,Kitchen Supplies - Food and Beverages,28/05/2021,5536757,320.34,William White Meats Ltd,
Children & Culture,Children's Social Care,Support Service and Management Costs,Schools Catering,Kitchen Supplies - Food and Beverages,28/05/2021,5536764,272.38,William White Meats Ltd,
Children & Culture,Children's Social Care,Support Service and Management Costs,Swanlea,Kitchen Supplies - Food and Beverages,28/05/2021,5536766,290.12,William White Meats Ltd,
Children & Culture,Children's Social Care,Support Service and Management Costs,Schools Catering,Kitchen Supplies - Food and Beverages,28/05/2021,5536769,276.68,William White Meats Ltd,
Children & Culture,Children's Social Care,Support Service and Management Costs,Schools Catering,Kitchen Supplies - Food and Beverages,28/05/2021,5536775,274.56,William White Meats Ltd,
Children & Culture,Children's Social Care,Children Looked After,S23 Fam Pl P&V-F/Care,Childrens Act Section 23 - Placement Fee,28/05/2021,5536798,"5,407.02",Diverse Care (UK) Limited,
Children & Culture,Children's Social Care,Children Looked After,S23 Fam Pl P&V-F/Care,Childrens Act Section 23 - Placement Fee,28/05/2021,5536801,"3,100.00",Futures for Children Ltd,
Children & Culture,Children's Social Care,Children Looked After,S23 Fam Pl P&V-F/Care,Childrens Act Section 23 - Placement Fee,28/05/2021,5536802,"3,323.51",Futures for Children Ltd,
Children & Culture,Children's Social Care,Children Looked After,S23 Fam Pl P&V-F/Care,Third Party Payments - Placement Fee,28/05/2021,5536803,"3,356.99",Futures for Children Ltd,
Children & Culture,Children's Social Care,Children Looked After,S23-Resi-P&V/OLA-Child Home,Childrens Act Section 23 - Placement Fee,28/05/2021,5536886,"22,692.86",Halliwell Homes,
Children & Culture,Children's Social Care,Children Looked After,S23-Other-Mother & Baby Unit,Childrens Act Section 23 - Placement Fee,28/05/2021,5536892,"3,298.00",Jamma Umoja (Residential Services) LTD,
Children & Culture,Children's Social Care,Children Looked After,S23-Other-Mother & Baby Unit,Childrens Act Section 23 - Placement Fee,28/05/2021,5536893,618.00,Jamma Umoja (Residential Services) LTD,
Children & Culture,Children's Social Care,Services for young people,Youth Service Management,Third Party Payments - Voluntary Associations,28/05/2021,5537021,"13,125.00",Tower Project,
Children & Culture,Education Services,Other Strategic Functions,Special Education Needs DSG,Third Party Payments - SEN Top Up Funding,28/05/2021,5537022,"1,666.67",Integrated Service Programme,
Children & Culture,Children's Social Care,Children Looked After,S23-Other-Semi-Ind. Unit,Childrens Act Section 23 - Placement Fee,28/05/2021,5537026,"13,350.00",St Michaels Fellowship,
Children & Culture,Children's Social Care,Children Looked After,S23-Other-Semi-Ind. Unit,Childrens Act Section 23 - Placement Fee,28/05/2021,5537027,650.00,St Michaels Fellowship,
Children & Culture,Children's Social Care,Service Strategy,FSP Sect 17 - Team 1,Childrens Act Section 17 - Expert Assessmt/Witness Costs,28/05/2021,5537063,939.00,Alpha Biolaboratories Legal Limited,
Children & Culture,No Service Specified,No Division Specified,Capital-Minor Works (SC),Building Works - Main Works,28/05/2021,5537124,"5,000.00",GLJ Design Services Ltd.,
Children & Culture,Children's Social Care,Children Looked After,S23 Fam Pl P&V-F/Care,Childrens Act Section 23 - Non-Contact Taxi Costs,28/05/2021,5537125,"1,680.00",Ladybirds 1991 Ltd,
Children & Culture,Education Services,Other Strategic Functions,Non-Statemented Ed.Placemts,Third Party Payments - SEN Top Up Funding,28/05/2021,5537138,"1,575.00",Ellern Mede School,
Children & Culture,Children's Social Care,Children Looked After,S23 Fam Pl P&V-F/Care,Childrens Act Section 23 - Placement Fee,28/05/2021,5537165,"5,358.66",CAPSTONE FOSTER CARE (SE) LTD,
Children & Culture,Children's Social Care,Children Looked After,LCS/Allowances-Accom,Leaving Care Financial Assistance - Supp Accom/Hous Rents,28/05/2021,5537167,"2,850.00",Atlantic Lodge,
Children & Culture,Children's Social Care,Family Support Services,IPST S17 NRPF,Childrens Act Section 17 - Other Placements Bed & Breakfast,28/05/2021,5537169,"1,765.07",Atlantic Lodge,
Children & Culture,No Service Specified,No Division Specified,Capital-Minor Works (SC),Other External Fees - Other External Fees,28/05/2021,5537226,"4,326.53",Macegreen Consulting Ltd,
Children & Culture,No Service Specified,No Division Specified,Capital-Minor Works (SC),Other External Fees - Consultants Fees,28/05/2021,5537227,"7,000.00",Macegreen Consulting Ltd,
Children & Culture,Children's Social Care,Children Looked After,S23-Other-Hospital,Childrens Act Section 23 - Commissioned Services,28/05/2021,5537435,"1,417.57",DA Languages Ltd,
Children & Culture,Children's Social Care,Children Looked After,S23 Fam Pl P&V-F/Care,Childrens Act Section 23 - Placement Fee,28/05/2021,5537452,"3,410.00",Compass Fostering East Limited,
Children & Culture,Children's Social Care,Children Looked After,S23 Fam Pl P&V-F/Care,Childrens Act Section 23 - Placement Fee,28/05/2021,5537456,"7,285.80",Caring Hearts Fostering,
Children & Culture,Children's Social Care,Children Looked After,Leaving Care-UASC,Leaving Care Financial Assistance - Reg Plan Maint L-Allow,28/05/2021,5537462,"1,071.43",Jordan Xavier LTD,
Children & Culture,Children's Social Care,Children Looked After,Leaving Care-UASC,Leaving Care Financial Assistance - Supp Accom/Hous Rents,28/05/2021,5537462,"1,285.71",Jordan Xavier LTD,
Children & Culture,Children's Social Care,Children Looked After,Leaving Care-UASC,Leaving Care Financial Assistance - Supported Living,28/05/2021,5537462,"2,571.43",Jordan Xavier LTD,
Children & Culture,Children's Social Care,Children Looked After,Leaving Care-UASC,Leaving Care Financial Assistance - Reg Plan Maint L-Allow,28/05/2021,5537463,338.57,Jordan Xavier LTD,
Children & Culture,Children's Social Care,Children Looked After,Leaving Care-UASC,Leaving Care Financial Assistance - Supp Accom/Hous Rents,28/05/2021,5537465,"2,057.14",Jordan Xavier LTD,
Children & Culture,Children's Social Care,Children Looked After,Leaving Care-UASC,Leaving Care Financial Assistance - Supported Living,28/05/2021,5537465,535.71,Jordan Xavier LTD,
Children & Culture,Children's Social Care,Children Looked After,Leaving Care-UASC,Leaving Care Financial Assistance - Reg Plan Maint Travel A,28/05/2021,5537466,535.71,Jordan Xavier LTD,
Children & Culture,Children's Social Care,Children Looked After,Leaving Care-UASC,Leaving Care Financial Assistance - Supp Accom/Hous Rents,28/05/2021,5537466,"1,285.71",Jordan Xavier LTD,
Children & Culture,Children's Social Care,Children Looked After,Leaving Care-UASC,Leaving Care Financial Assistance - Supported Living,28/05/2021,5537466,"2,571.43",Jordan Xavier LTD,
Children & Culture,Children's Social Care,Children Looked After,S23 Fam Pl P&V-F/Care,Childrens Act Section 23 - Placement Fee,28/05/2021,5537742,"3,514.20",Integrated Fostering Services Ltd,
Children & Culture,Children's Social Care,Children Looked After,S23 Fam Pl P&V-F/Care,Childrens Act Section 23 - Placement Fee,28/05/2021,5537743,"3,300.00",Integrated Fostering Services Ltd,
Children & Culture,Children's Social Care,Children Looked After,S23 Fam Pl P&V-F/Care,Childrens Act Section 23 - Placement Fee,28/05/2021,5537750,"5,143.52",COMPASS FOSTERING LONDON LIMITED,
Children & Culture,Children's Social Care,Children Looked After,S23 Fam Pl P&V-F/Care,Childrens Act Section 23 - Placement Fee,28/05/2021,5537751,"6,061.74",COMPASS FOSTERING LONDON LIMITED,
Children & Culture,Education Services,Other Strategic Functions,SEN External Travel,Non Staff Transport Costs - Reimbursement,28/05/2021,5537786,"19,390.00",Ladybirds 1991 Ltd,
Children & Culture,Children's Social Care,Family Support Services,Short Breaks and Family Support,Third Party Payments - Voluntary Associations,28/05/2021,5537793,405.00,REMARK LTD,
Children & Culture,Children's Social Care,Children Looked After,S23-Other-Semi-Ind. Unit,Childrens Act Section 23 - Placement Fee,28/05/2021,5537795,"1,585.80",HAMLETTS LTD,
Children & Culture,Children's Social Care,Children Looked After,Leaving Care-UASC,Leaving Care Financial Assistance - Supp Accom/Hous Rents,28/05/2021,5537796,"1,714.20",HAMLETTS LTD,
Children & Culture,Children's Social Care,Children Looked After,S23-Other-Semi-Ind. Unit,Childrens Act Section 23 - Placement Fee,28/05/2021,5537797,"1,714.20",HAMLETTS LTD,
Children & Culture,Children's Social Care,Children Looked After,S23-Other-Semi-Ind. Unit,Childrens Act Section 23 - Placement Fee,28/05/2021,5537798,"1,714.20",HAMLETTS LTD,
Children & Culture,Children's Social Care,Children Looked After,S23-Other-Semi-Ind. Unit,Childrens Act Section 23 - Placement Fee,28/05/2021,5537799,"1,714.20",HAMLETTS LTD,
Children & Culture,Children's Social Care,Children Looked After,S23-Other-Semi-Ind. Unit,Childrens Act Section 23 - Placement Fee,28/05/2021,5537800,"1,714.20",HAMLETTS LTD,
Children & Culture,Children's Social Care,Children Looked After,S23-Other-Semi-Ind. Unit,Childrens Act Section 23 - Placement Fee,28/05/2021,5537801,"1,714.20",HAMLETTS LTD,
Children & Culture,Children's Social Care,Children Looked After,S23-Other-Semi-Ind. Unit,Childrens Act Section 23 - Placement Fee,28/05/2021,5537802,"1,585.80",HAMLETTS LTD,
Children & Culture,Children's Social Care,Children Looked After,S23-Other-Semi-Ind. Unit,Childrens Act Section 23 - Placement Fee,28/05/2021,5537803,"1,585.80",HAMLETTS LTD,
Children & Culture,Children's Social Care,Children Looked After,S23-Other-Semi-Ind. Unit,Childrens Act Section 23 - Placement Fee,28/05/2021,5537804,"1,714.20",HAMLETTS LTD,
Children & Culture,Children's Social Care,Children Looked After,S23-Other-Semi-Ind. Unit,Childrens Act Section 23 - Placement Fee,28/05/2021,5537805,"1,714.20",HAMLETTS LTD,
Children & Culture,Children's Social Care,Children Looked After,S23-Other-Semi-Ind. Unit,Childrens Act Section 23 - Placement Fee,28/05/2021,5537806,"1,714.20",HAMLETTS LTD,
Children & Culture,Children's Social Care,Children Looked After,S23-Other-Semi-Ind. Unit,Childrens Act Section 23 - Placement Fee,28/05/2021,5537808,"1,599.92",HAMLETTS LTD,
Children & Culture,Children's Social Care,Children Looked After,S23-Other-Semi-Ind. Unit,Childrens Act Section 23 - Placement Fee,28/05/2021,5537809,"1,142.80",HAMLETTS LTD,
Children & Culture,Children's Social Care,Children Looked After,Leaving Care-UASC,Leaving Care Financial Assistance - Supp Accom/Hous Rents,28/05/2021,5537810,"1,585.80",HAMLETTS LTD,
Children & Culture,Children's Social Care,Children Looked After,LCS/Allowances-Accom,Leaving Care Financial Assistance - Supp Accom/Hous Rents,28/05/2021,5537811,"2,592.85",Jordan Xavier LTD,
Children & Culture,Children's Social Care,Children Looked After,LCS/Allowances-Accom,Leaving Care Financial Assistance - Supp Accom/Hous Rents,28/05/2021,5537812,"2,592.85",Jordan Xavier LTD,
Children & Culture,Education Services,Early Years,John Smith CC,Educational/Training Supplies - Arts & Crafts,28/05/2021,5537914,424.95,TTS GROUP LTD,
Children & Culture,Children's Social Care,Support Service and Management Costs,Schools Catering,Kitchen Supplies - Food and Beverages,28/05/2021,5538511,304.72,William White Meats Ltd,
Children & Culture,Children's Social Care,Children Looked After,S23-Other-Mother & Baby Unit,Childrens Act Section 23 - Placement Fee,28/05/2021,5538620,"14,392.86",OneOneCoCo,
Children & Culture,Children's Social Care,Children Looked After,S23 Fam Pl P&V-F/Care,Childrens Act Section 23 - Placement Fee,28/05/2021,5538663,"5,889.25",Flourish Fostering Ltd,
Children & Culture,Children's Social Care,Children Looked After,S23 Fam Pl P&V-F/Care,Childrens Act Section 23 - Placement Fee,28/05/2021,5538667,"6,428.57",Flowers Fostering Ltd,
Children & Culture,Children's Social Care,Children Looked After,S23-Other-Semi-Ind. Unit,Childrens Act Section 23 - Placement Fee,28/05/2021,5538698,295.00,HAMLETTS LTD,
Children & Culture,Education Services,Secondary Schools,PFI Hldg Account-Mulberry Scho,Payments to Private Contractors - Other Contractors,28/05/2021,5539053,"7,918.97",D4E Mulberry LTD,
Children & Culture,Education Services,Secondary Schools,PFI Hldg Account-Mulberry Scho,Payments to Private Contractors - Other Contractors,28/05/2021,5539054,"198,215.95",D4E Mulberry LTD,
Children & Culture,Children's Social Care,Children Looked After,S23-Resi-P&V/OLA-Child Home,Childrens Act Section 23 - Placement Fee,28/05/2021,5539222,"21,035.67",Oasis Adolescent Services Limited,
Children & Culture,Children's Social Care,Children Looked After,S23-Other-Semi-Ind. Unit,Childrens Act Section 23 - Placement Fee,28/05/2021,5539223,"4,319.43",Epic care home Ltd,
Children & Culture,Children's Social Care,Children Looked After,S23-Other-Semi-Ind. Unit,Childrens Act Section 23 - Placement Fee,28/05/2021,5539229,900.00,HAMLETTS LTD,
Children & Culture,Children's Social Care,Service Strategy,Social Work Academy,Training Expenses - Other Internal Training,28/05/2021,5539498,800.00,Triple Helix Training,
Children & Culture,Education Services,Other Strategic Functions,SEN External Travel,Non Staff Transport Costs - Reimbursement,28/05/2021,5539535,"10,644.00",Ladybirds 1991 Ltd,
Children & Culture,Children's Social Care,Services for young people,Youth Service Management,Social Care - Prevention & Support,28/05/2021,5540317,"21,000.00",Poplar HARCA LTD,
Children & Culture,Children's Social Care,Services for young people,Youth Service Management,Social Care - Prevention & Support,28/05/2021,5540318,"21,000.00",Poplar HARCA LTD,
Children & Culture,Children's Social Care,Services for young people,Youth Service Management,Social Care - Prevention & Support,28/05/2021,5540319,"21,000.00",Poplar HARCA LTD,
Children & Culture,Children's Social Care,Services for young people,Youth Service Management,Social Care - Prevention & Support,28/05/2021,5540320,"21,000.00",Poplar HARCA LTD,
Children & Culture,Children's Social Care,Services for young people,Youth Service Management,Social Care - Prevention & Support,28/05/2021,5540321,"21,000.00",Poplar HARCA LTD,
Children & Culture,Children's Social Care,Services for young people,Youth Service Management,Social Care - Prevention & Support,28/05/2021,5540322,"21,000.00",Poplar HARCA LTD,
Children & Culture,Children's Social Care,Children Looked After,S23 Fam Pl P&V-F/Care,Childrens Act Section 23 - Placement Fee,28/05/2021,5540340,"3,653.66",Select Fostercare Services Ltd,
Children & Culture,Children's Social Care,Children Looked After,S23 Fam Pl P&V-F/Care,Childrens Act Section 23 - Placement Fee,28/05/2021,5540341,"3,653.66",Select Fostercare Services Ltd,
Children & Culture,Children's Social Care,Children Looked After,S23 Fam Pl P&V-F/Care,Childrens Act Section 23 - Placement Fee,28/05/2021,5540379,"5,121.30",Be My Family Fostering Agency,
Children & Culture,Children's Social Care,Children Looked After,S23 Fam Pl P&V-F/Care,Childrens Act Section 23 - Placement Fee,28/05/2021,5540380,"5,292.01",Be My Family Fostering Agency,
Children & Culture,Children's Social Care,Children Looked After,S23-Other-Semi-Ind. Unit,Childrens Act Section 23 - Placement Fee,28/05/2021,5540386,"6,642.85",Seades Support Services,
Children & Culture,Children's Social Care,Children Looked After,S23 Fam Pl P&V-F/Care,Social Care - Day Care,28/05/2021,5540387,"18,428.40",Julia Stewart Ltd,
Children & Culture,Cultural and Related Services,Open Spaces,Victoria Park,Grounds Maintenance - Contract - Horticultural Maintenance,28/05/2021,5540649,"6,486.06",Provender Nurseries Ltd,
Children & Culture,Children's Social Care,Commissioning and Social Work,Advice and Assessment Section 17,Childrens Act Section 17 - Other Placements Bed & Breakfast,28/05/2021,5540695,"1,800.00",Finefair Management,
Children & Culture,Children's Social Care,Commissioning and Social Work,Advice and Assessment Section 17,Childrens Act Section 17 - Other Placements Bed & Breakfast,28/05/2021,5540698,"1,500.00",Finefair Management,
Children & Culture,Children's Social Care,Children Looked After,S23 Fam Pl P&V-F/Care,Childrens Act Section 23 - Placement Fee,28/05/2021,5540891,"3,277.32",Synergy Fostering Ltd,
Children & Culture,Children's Social Care,Children Looked After,S23 Fam Pl P&V-F/Care,Childrens Act Section 23 - Placement Fee,28/05/2021,5540892,"3,277.32",Synergy Fostering Ltd,
Children & Culture,Children's Social Care,Children Looked After,S23 Fam Pl P&V-F/Care,Childrens Act Section 23 - Placement Fee,28/05/2021,5540912,"4,588.66",CAPSTONE FOSTER CARE (SE) LTD,
Children & Culture,Children's Social Care,Children Looked After,Leaving Care-UASC,Leaving Care Financial Assistance - Supported Living,28/05/2021,5540934,"-5,269.59",Pangea Support Services,
Children & Culture,Children's Social Care,Children Looked After,Leaving Care-UASC,Leaving Care Financial Assistance - Reg Plan Maint L-Allow,28/05/2021,5542457,338.57,Pangea Support Services,
Children & Culture,Children's Social Care,Children Looked After,Leaving Care-UASC,Leaving Care Financial Assistance - Supp Accom/Hous Rents,28/05/2021,5542457,"1,157.14",Pangea Support Services,
Children & Culture,Children's Social Care,Children Looked After,Leaving Care-UASC,Leaving Care Financial Assistance - Supported Living,28/05/2021,5542457,"1,193.57",Pangea Support Services,
Children & Culture,Education Services,Early Years,3&4 Year Old Funding Schools,Third Party Payments - Payments to Schools,28/05/2021,5543828,"41,427.60",The Letta Trust,
Children & Culture,Education Services,Early Years,3&4 Year Old Funding Schools,Third Party Payments - Payments to Schools,28/05/2021,5543829,"30,725.38",CLARA GRANT PRIMARY SCHOOL,
Children & Culture,Education Services,Early Years,3&4 Year Old Funding Schools,Third Party Payments - Payments to Schools,28/05/2021,5543830,"74,538.90",Paradigm Trust,
Children & Culture,Education Services,Early Years,3&4 Year Old Funding Schools,Third Party Payments - Payments to Schools,28/05/2021,5543831,"142,208.73",Paradigm Trust,
Children & Culture,Education Services,Early Years,3&4 Year Old Funding Schools,Third Party Payments - Payments to Schools,28/05/2021,5543832,"29,692.44",Sir William Burrough School,
Children & Culture,Education Services,Early Years,3&4 Year Old Funding Schools,Third Party Payments - Payments to Schools,28/05/2021,5543833,"41,342.10",Paradigm Trust,
Children & Culture,Education Services,Early Years,3&4 Year Old Funding Schools,Third Party Payments - Payments to Schools,28/05/2021,5543834,"29,059.17",ST Pauls Way Trust School,
Children & Culture,Education Services,Early Years,3&4 Year Old Funding Schools,Third Party Payments - Payments to Schools,28/05/2021,5543835,"68,713.04",The Letta Trust,
Children & Culture,Education Services,Early Years,3&4 Year Old Funding Schools,Third Party Payments - Payments to Schools,28/05/2021,5543836,"-36,086.40",Paradigm Trust,
Children & Culture,Education Services,Early Years,3&4 Year Old Funding Schools,Third Party Payments - Payments to Schools,28/05/2021,5543837,"-23,198.40",Sir William Burrough School,
Children & Culture,Education Services,Early Years,3&4 Year Old Funding Schools,Third Party Payments - Payments to Schools,28/05/2021,5543838,"-3,866.40",The Letta Trust,
Children & Culture,Education Services,Other Strategic Functions,High Needs Academies & Free Schs,Third Party Payments - SEN Top Up Funding,28/05/2021,5543839,"35,977.50",The Letta Trust,
Children & Culture,Education Services,Other Strategic Functions,High Needs Academies & Free Schs,Third Party Payments - SEN Top Up Funding,28/05/2021,5543840,"55,876.25",Paradigm Trust,
Children & Culture,Education Services,Other Strategic Functions,High Needs Academies & Free Schs,Third Party Payments - SEN Top Up Funding,28/05/2021,5543841,"50,107.50",IAN MIKARDO HIGH SCHOOL,
Children & Culture,Education Services,Other Strategic Functions,High Needs Academies & Free Schs,Third Party Payments - SEN Top Up Funding,28/05/2021,5543842,"77,669.26",Mulberry Academy Shoreditch,
Children & Culture,Education Services,Other Strategic Functions,High Needs Academies & Free Schs,Third Party Payments - SEN Top Up Funding,28/05/2021,5543843,"77,995.00",Mulberry School for Girls,
Children & Culture,Education Services,Other Strategic Functions,High Needs Academies & Free Schs,Third Party Payments - SEN Top Up Funding,28/05/2021,5543844,"35,591.51",Paradigm Trust,
Children & Culture,Education Services,Other Strategic Functions,High Needs Academies & Free Schs,Third Party Payments - SEN Top Up Funding,28/05/2021,5543845,"23,751.09",Sir William Burrough School,
Children & Culture,Education Services,Other Strategic Functions,High Needs Academies & Free Schs,Third Party Payments - SEN Top Up Funding,28/05/2021,5543846,"208,293.75",ST Pauls Way Trust School,
Children & Culture,Education Services,Other Strategic Functions,High Needs Academies & Free Schs,Third Party Payments - SEN Top Up Funding,28/05/2021,5543847,"71,433.17",The Letta Trust,
Children & Culture,Education Services,Other Strategic Functions,High Needs Academies & Free Schs,Third Party Payments - SEN Top Up Funding,28/05/2021,5543848,"94,213.75",Stepney Green Maths Computing Science College,
Children & Culture,Education Services,Other Strategic Functions,High Needs Academies & Free Schs,Third Party Payments - SEN Top Up Funding,28/05/2021,5543849,"60,375.29",CLARA GRANT PRIMARY SCHOOL,
Children & Culture,Education Services,Other Strategic Functions,High Needs Academies & Free Schs,Third Party Payments - SEN Top Up Funding,28/05/2021,5543850,"-31,220.40",Paradigm Trust,
Children & Culture,Education Services,Other Strategic Functions,Schools Finance Holding Account,Third Party Payments - Grant,28/05/2021,5543851,"3,573.18",CLARA GRANT PRIMARY SCHOOL,
Children & Culture,Education Services,Other Strategic Functions,Schools Finance Holding Account,Third Party Payments - Grant,28/05/2021,5543852,"6,532.00",Paradigm Trust,
Children & Culture,Education Services,Other Strategic Functions,Schools Finance Holding Account,Third Party Payments - Grant,28/05/2021,5543853,"6,421.60",Paradigm Trust,
Children & Culture,Education Services,Other Strategic Functions,Schools Finance Holding Account,Third Party Payments - Grant,28/05/2021,5543854,"3,818.00",Paradigm Trust,
Children & Culture,Education Services,Other Strategic Functions,Schools Finance Holding Account,Third Party Payments - Grant,28/05/2021,5543855,"3,019.90",Sir William Burrough School,
Children & Culture,Education Services,Other Strategic Functions,Schools Finance Holding Account,Third Party Payments - Grant,28/05/2021,5543856,"2,283.84",The Letta Trust,
Children & Culture,Education Services,Other Strategic Functions,Schools Finance Holding Account,Third Party Payments - Grant,28/05/2021,5543857,"4,207.32",CLARA GRANT PRIMARY SCHOOL,
Children & Culture,Education Services,Other Strategic Functions,Schools Finance Holding Account,Third Party Payments - Grant,28/05/2021,5543858,"5,545.30",Paradigm Trust,
Children & Culture,Education Services,Other Strategic Functions,Schools Finance Holding Account,Third Party Payments - Grant,28/05/2021,5543859,"5,186.50",Paradigm Trust,
Children & Culture,Education Services,Other Strategic Functions,Schools Finance Holding Account,Third Party Payments - Grant,28/05/2021,5543860,"2,640.40",Paradigm Trust,
Children & Culture,Education Services,Other Strategic Functions,Schools Finance Holding Account,Third Party Payments - Grant,28/05/2021,5543861,"6,851.52",The Letta Trust,
Children & Culture,Education Services,Other Strategic Functions,Schools Finance Holding Account,Third Party Payments - Grant,28/05/2021,5543862,"2,953.08",ST Pauls Way Trust School,
Children & Culture,Children's Social Care,Children Looked After,S23-Other-Semi-Ind. Unit,Childrens Act Section 23 - Placement Fee,28/05/2021,5543918,"4,966.80",ThamesCare,
Children & Culture,Children's Social Care,Children Looked After,S23-Other-Semi-Ind. Unit,Childrens Act Section 23 - Placement Fee,28/05/2021,5543919,"5,132.36",ThamesCare,
Children & Culture,Children's Social Care,Children Looked After,S23-Other-Semi-Ind. Unit,Childrens Act Section 23 - Placement Fee,28/05/2021,5543923,"5,132.36",ThamesCare,
Children & Culture,Education Services,Other Strategic Functions,Music Trading Account,Subscriptions - Associations,28/05/2021,5543967,780.00,The UK Association for Music Education - Music Mark,
Children & Culture,Cultural and Related Services,Open Spaces,Mile End Park,Contract Cleaning,28/05/2021,5543968,860.36,Wetton Cleaning Services LTD,
Children & Culture,Cultural and Related Services,Open Spaces,Mile End Park,Contract Cleaning,28/05/2021,5543968,872.83,Wetton Cleaning Services LTD,
Children & Culture,Cultural and Related Services,Open Spaces,Mile End Park,Contract Cleaning,28/05/2021,5543968,"1,280.13",Wetton Cleaning Services LTD,
Children & Culture,Children's Social Care,Support Service and Management Costs,Schools Catering,Kitchen Supplies - Food and Beverages,28/05/2021,5543988,443.13,Thomas Ridley & Son Ltd,
Children & Culture,Children's Social Care,Support Service and Management Costs,Sch. Meals A/c - Central Production Unit,Kitchen Supplies - Food and Beverages,28/05/2021,5543989,437.29,Thomas Ridley & Son Ltd,
Children & Culture,Children's Social Care,Support Service and Management Costs,Schools Catering,Kitchen Supplies - Food and Beverages,28/05/2021,5543991,534.80,Thomas Ridley & Son Ltd,
Children & Culture,Children's Social Care,Support Service and Management Costs,Schools Catering,Kitchen Supplies - Food and Beverages,28/05/2021,5543992,293.38,Thomas Ridley & Son Ltd,
Children & Culture,Children's Social Care,Support Service and Management Costs,Schools Catering,Kitchen Supplies - Food and Beverages,28/05/2021,5543993,542.15,Thomas Ridley & Son Ltd,
Children & Culture,Children's Social Care,Support Service and Management Costs,Schools Catering,Kitchen Supplies - Food and Beverages,28/05/2021,5543994,449.03,Thomas Ridley & Son Ltd,
Children & Culture,Children's Social Care,Support Service and Management Costs,Schools Catering,Kitchen Supplies - Food and Beverages,28/05/2021,5543995,310.54,Thomas Ridley & Son Ltd,
Children & Culture,Children's Social Care,Support Service and Management Costs,Schools Catering,Kitchen Supplies - Food and Beverages,28/05/2021,5543997,340.73,Thomas Ridley & Son Ltd,
Children & Culture,Children's Social Care,Support Service and Management Costs,Schools Catering,Kitchen Supplies - Food and Beverages,28/05/2021,5543998,397.83,Thomas Ridley & Son Ltd,
Children & Culture,Children's Social Care,Support Service and Management Costs,Schools Catering,Kitchen Supplies - Food and Beverages,28/05/2021,5543999,319.06,Thomas Ridley & Son Ltd,
Children & Culture,Children's Social Care,Support Service and Management Costs,Schools Catering,Kitchen Supplies - Food and Beverages,28/05/2021,5544000,299.71,Thomas Ridley & Son Ltd,
Children & Culture,Children's Social Care,Support Service and Management Costs,Schools Catering,Kitchen Supplies - Food and Beverages,28/05/2021,5544001,882.08,Thomas Ridley & Son Ltd,
Children & Culture,Children's Social Care,Support Service and Management Costs,Schools Catering,Kitchen Supplies - Food and Beverages,28/05/2021,5544002,346.56,Thomas Ridley & Son Ltd,
Children & Culture,Children's Social Care,Support Service and Management Costs,Schools Catering,Kitchen Supplies - Food and Beverages,28/05/2021,5544004,939.22,Thomas Ridley & Son Ltd,
Children & Culture,Children's Social Care,Support Service and Management Costs,Schools Catering,Kitchen Supplies - Food and Beverages,28/05/2021,5544005,558.24,Thomas Ridley & Son Ltd,
Children & Culture,Children's Social Care,Support Service and Management Costs,Schools Catering,Kitchen Supplies - Food and Beverages,28/05/2021,5544006,310.16,Thomas Ridley & Son Ltd,
Children & Culture,Children's Social Care,Support Service and Management Costs,Schools Catering,Kitchen Supplies - Food and Beverages,28/05/2021,5544007,272.23,Thomas Ridley & Son Ltd,
Children & Culture,Children's Social Care,Support Service and Management Costs,Schools Catering,Kitchen Supplies - Food and Beverages,28/05/2021,5544008,"1,022.46",Thomas Ridley & Son Ltd,
Children & Culture,Children's Social Care,Other Children's and Family Services,Permanancy and Adoption Support Team 1,Third Party Payments - Other Agencies,28/05/2021,5544176,"84,262.63",London Borough of Havering,
Children & Culture,Children's Social Care,Children Looked After,Leaving Care-UASC,Leaving Care Financial Assistance - Supported Living,28/05/2021,5544241,"1,457.14",Pangea Support Services,
Children & Culture,Children's Social Care,Children Looked After,Leaving Care-UASC,Leaving Care Financial Assistance - Supported Living,28/05/2021,5544242,"2,607.14",Pangea Support Services,
Children & Culture,Children's Social Care,Children Looked After,Leaving Care-UASC,Leaving Care Financial Assistance - Reg Plan Maint L-Allow,28/05/2021,5544244,293.73,Pangea Support Services,
Children & Culture,Children's Social Care,Children Looked After,Leaving Care-UASC,Leaving Care Financial Assistance - Supp Accom/Hous Rents,28/05/2021,5544244,"1,002.86",Pangea Support Services,
Corporate & Democratic Core,Corporate Management,Corporate Budget,Subscriptions - Associations,07/05/2021,5529280,"60,406.00",London Councils,,
Corporate & Democratic Core,Corporate Management,Corporate Budget,Subscriptions - London Boroughs Grant Scheme,12/05/2021,5533239,"114,663.00",London Councils,,
Corporate & Democratic Core,Corporate Management,Corporate Budget,Subscriptions - Associations,12/05/2021,5536613,"9,585.00",LG Futures Ltd,,
Corporate & Democratic Core,Corporate Management,Corporate Budget,Audit Fees - Core audit fees,19/05/2021,5536647,"83,333.33",Deloitte LLP,,
Corporate & Democratic Core,Corporate Management,Corporate Budget,Services - Professional Fees - Financial Services Fees,19/05/2021,5539211,"3,590.00",Arlingclose,,
Governance,Planning Services,Community Development,Controlling Migration Fund (CMF),Third Party Payments - Voluntary Associations,05/05/2021,5528597,"8,727.00",WEA London Region,
Governance,Planning Services,Community Development,Controlling Migration Fund (CMF),Third Party Payments - Voluntary Associations,05/05/2021,5529239,"8,727.00",WEA London Region,
Governance,Children's Social Care,Other Children's and Family Services,Social Care Team,Services - Professional Fees - Counsel's Fees,05/05/2021,5535340,"1,145.00",4 Brick Court Chambers Management Limited,
Governance,Children's Social Care,Other Children's and Family Services,Social Care Team,Services - Professional Fees - Counsel's Fees,05/05/2021,5535342,700.00,4 Brick Court Chambers Management Limited,
Governance,Corporate & Democratic Core,Corporate Management,Business Team,Services - Professional Fees - Legal Fees/Expenses,05/05/2021,5535343,"2,500.00",Five Paper Buildings,
Governance,Corporate & Democratic Core,Corporate Management,Business Team,Services - Professional Fees - Legal Fees/Expenses,05/05/2021,5535345,525.00,Five Paper Buildings,
Governance,Corporate & Democratic Core,Corporate Management,Business Team,Services - Professional Fees - Legal Fees/Expenses,05/05/2021,5535346,700.00,Five Paper Buildings,
Governance,Corporate & Democratic Core,Corporate Management,Business Team,Services - Professional Fees - Legal Fees/Expenses,05/05/2021,5535347,525.00,Five Paper Buildings,
Governance,Children's Social Care,Other Children's and Family Services,Social Care Team,Services - Professional Fees - Counsel's Fees,05/05/2021,5535348,"4,000.00",Field Court Chambers  - Fees Account,
Governance,Children's Social Care,Other Children's and Family Services,Social Care Team,Services - Professional Fees - Counsel's Fees,05/05/2021,5535349,700.00,33 Bedford Row Chambers,
Governance,Children's Social Care,Other Children's and Family Services,Social Care Team,Services - Professional Fees - Counsel's Fees,05/05/2021,5535350,"1,725.00",4 Paper Buildings (Client Account),
Governance,General Fund/Council Fund,Housing Strategy,Housing Services,Services - Professional Fees - Legal Fees/Expenses,05/05/2021,5535576,"4,100.00",Barnes Solicitors LLP (Office Account),
Governance,Corporate & Democratic Core,Corporate Management,Tower Design,Printing - External,07/05/2021,5530810,710.40,Beta Distribution (South) Ltd t/a London Letterbox Marketing,
Governance,Central Services to the Public,Elections,Electoral Registration,Stationery,07/05/2021,5532486,376.00,Scanner Express,
Governance,Corporate & Democratic Core,Democratic Representation & Management,GOV Covid19 Response,Contract Cleaning - Cleaning,07/05/2021,5535461,816.96,Wetton Cleaning Services LTD,
Governance,Children's Social Care,Other Children's and Family Services,Social Care Team,Services - Professional Fees - Counsel's Fees,07/05/2021,5535979,475.00,4 Brick Court Chambers Management Limited,
Governance,Children's Social Care,Other Children's and Family Services,Social Care Team,Services - Professional Fees - Counsel's Fees,07/05/2021,5535980,"16,700.00",4 Brick Court Chambers Management Limited,
Governance,Corporate & Democratic Core,Corporate Management,Business Team,Staff Advertising,07/05/2021,5536988,720.00,Centaur Media Plc Group,
Governance,Children's Social Care,Other Children's and Family Services,Social Care Team,Services - Professional Fees - Counsel's Fees,07/05/2021,5536989,675.00,5 Pump Court CDS,
Governance,Corporate & Democratic Core,Corporate Management,Tower Design,Printing - External,10/05/2021,5530689,325.00,Visual Print and Design,
Governance,Corporate & Democratic Core,Corporate Management,Tower Design,Printing - External,12/05/2021,5529062,"1,182.60",Promo2u Ltd,
Governance,Corporate & Democratic Core,Corporate Management,Corporate Campaigns,Services - Professional Fees - Translation Fees,12/05/2021,5530695,324.75,Language Line Ltd,
Governance,Corporate & Democratic Core,Corporate Management,Tower Design,Printing - External,12/05/2021,5530839,"1,302.00",Broadway Publishing Limited,
Governance,Corporate & Democratic Core,Corporate Management,Tower Design,Printing - External,12/05/2021,5531170,544.00,Billboard Posters T/A Augustus Martin,
Governance,Planning Services,Community Development,Ch Exec Mainstream Grants,Third Party Payments - Voluntary Associations,12/05/2021,5533671,"65,000.00",TOWER HAMLETS COUNCIL FOR VOLUNTARY SERV,
Governance,Children's Social Care,Other Children's and Family Services,Social Care Team,Services - Professional Fees - Counsel's Fees,12/05/2021,5536990,385.00,5 Pump Court CDS,
Governance,Children's Social Care,Other Children's and Family Services,Social Care Team,Services - Professional Fees - Counsel's Fees,12/05/2021,5536991,"1,350.00",4 Brick Court Chambers Management Limited,
Governance,Children's Social Care,Other Children's and Family Services,Social Care Team,Services - Professional Fees - Counsel's Fees,12/05/2021,5536992,"1,200.00",4 Brick Court Chambers Management Limited,
Governance,Children's Social Care,Other Children's and Family Services,Social Care Team,Services - Professional Fees - Counsel's Fees,12/05/2021,5536993,"1,100.00",5 Pump Court CDS,
Governance,Children's Social Care,Other Children's and Family Services,Social Care Team,Services - Professional Fees - Counsel's Fees,12/05/2021,5536994,750.00,4 Brick Court Chambers Management Limited,
Governance,Children's Social Care,Other Children's and Family Services,Social Care Team,Services - Professional Fees - Counsel's Fees,12/05/2021,5536995,"13,712.50",Field Court Chambers  - Fees Account,
Governance,Children's Social Care,Other Children's and Family Services,Social Care Team,Services - Professional Fees - Counsel's Fees,12/05/2021,5536996,495.00,5 Pump Court CDS,
Governance,Children's Social Care,Other Children's and Family Services,Social Care Team,Services - Professional Fees - Counsel's Fees,12/05/2021,5536997,875.00,4 Brick Court Chambers Management Limited,
Governance,Children's Social Care,Other Children's and Family Services,Social Care Team,Services - Professional Fees - Counsel's Fees,12/05/2021,5537002,"1,200.00",4 Brick Court Chambers Management Limited,
Governance,Children's Social Care,Other Children's and Family Services,Social Care Team,Services - Professional Fees - Counsel's Fees,12/05/2021,5537003,250.00,4 Brick Court Chambers Management Limited,
Governance,Corporate & Democratic Core,Corporate Management,Business Team,Services - Professional Fees - Legal Fees/Expenses,12/05/2021,5537286,400.00,Five Paper Buildings,
Governance,Children's Social Care,Other Children's and Family Services,Social Care Team,Services - Professional Fees - Counsel's Fees,12/05/2021,5537289,825.00,4 Brick Court Chambers Management Limited,
